{"text_format":"1","workbook":"xlsx","n_sheets":13,"sheets":["Hoofdmenu","Toelichting","Voorblad","Mededelingen","NAW_gegevens","Kostenverzamelstaat","Specifieke informatie A","Specifieke informatie C","Contractinformatie","Wanbetalers","Controleoverzicht","Blad1","Parameters"],"not_rendered":{"charts":0,"images":1,"macros":1,"external_links":0,"defined_names":92,"comments":0,"pivot_tables":0},"unopened":[],"bounds":{"document_bytes":16777216,"sheet_cells":100000,"rows_first":2000,"rows_last":500,"rows_between":2000,"halvings":0,"cell_chars":16384,"cell_head_chars":4096},"cells_cut":0,"cells_raw":0,"read":"whole","date_system":"1900"}

{"sheet":"Hoofdmenu","index":0,"n_rows":3,"n_cols":2,"rows_kept":3,"cut":false,"hidden":false,"merged":[[0,0,0,1],[1,0,1,1]]}
[" "]
[{"$f":"CONCATENATE(\"KWARTAALSTAAT ZVW \", jaar_id,\" \",kwartaal_id,\"E KWARTAAL\")","v":"KWARTAALSTAAT ZVW 2018 3E KWARTAAL"}]
["Navigatie","Afdrukken"]

{"sheet":"Toelichting","index":1,"n_rows":4,"n_cols":2,"rows_kept":4,"cut":false,"hidden":false,"merged":[]}
[]
[]
[]
[null,{"$f":"CONCATENATE(\" KWARTAALSTAAT ZVW \",jaar_id,\" \",kwartaal_id,\"E KWARTAAL (VERSIE: \",revisie_id,\")\")","v":" KWARTAALSTAAT ZVW 2018 3E KWARTAAL (VERSIE: A)"}]

{"sheet":"Voorblad","index":2,"n_rows":35,"n_cols":4,"rows_kept":35,"cut":false,"hidden":false,"merged":[[15,3,16,11],[13,3,14,11],[17,3,18,11]]}
[null,null,"VOORBLAD"]
[]
[]
[]
[]
["Pagina 1",null,null," "]
[]
[]
[]
[]
[]
[]
[]
[null,null,null,{"$f":"CONCATENATE(\"KWARTAALSTAAT ZVW \",jaar_id)","v":"KWARTAALSTAAT ZVW 2018"}]
[]
[null,null,null,{"$f":"CONCATENATE(kwartaal_id,\"E KWARTAAL\")","v":"3E KWARTAAL"}]
[]
[null,null,null,"SPECIFIEKE INFORMATIE"]
[]
[]
[]
[null,null,null,"    KOSTENVERZAMELSTAAT (SPECIFIEKE INFORMATIE A)"]
[null,null,null,"     ● Informatie risicoverevening (pagina 1 t/m 4)"]
[]
[null,null,null,"    SPECIFIEKE INFORMATIE A"]
[null,null,null,"     ● Informatie risicoverevening (pagina 1 t/m 4)"]
[]
[null,null,null,"    SPECIFIEKE INFORMATIE C"]
[null,null,null,"     ● Specificaties van kosten en productie (pagina 1 t/m 7)"]
[]
[null,null,null,"    CONTRACTINFORMATIE (SPECIFIEKE INFORMATIE C)"]
[null,null,null,"     ● Specificaties van kosten en productie (pagina 1 & 2)"]
[]
[null,null,null,"    WANBETALERS (SPECIFIEKE INFORMATIE C)"]
[null,null,null,"     ● Specificaties van aantallen (pagina 1)"]

{"sheet":"Mededelingen","index":3,"n_rows":49,"n_cols":12,"rows_kept":49,"cut":false,"hidden":false,"merged":[[48,3,48,4]]}
[]
[]
[]
[]
[]
["Pagina 1",null,null,{"$f":"CONCATENATE(\"KWARTAALSTAAT ZVW \", jaar_id,\" \",kwartaal_id,\"E KWARTAAL\")","v":"KWARTAALSTAAT ZVW 2018 3E KWARTAAL"}]
[null,null,null,{"$f":"IF(naw_uzovi_zorgverzekeraar<>\"0000\",CONCATENATE(UPPER(naw_naam_zorgverzekeraar),\"\",),\"\")","v":""},null,null,null,null,null,null,null,{"$f":"CONCATENATE(\"UZOVI: \",naw_uzovi_zorgverzekeraar)","v":"UZOVI: 0000"}]
[null,null,null,"MEDEDELINGEN :"]
[]
[]
[]
[]
[]
[]
[]
[]
[]
[]
[]
[]
[]
[]
[]
[]
[]
[]
[]
[]
[]
[]
[]
[]
[]
[]
[]
[]
[]
[]
[]
[]
[]
[]
[]
[]
[]
[]
[]
[]
[null,null,null,{"$f":"NOW()","v":"2018-08-27T17:37:02.050"},null,null,null,null,null,null,null,{"$f":"CONCATENATE(\"Mededelingen \",LOWER(A6))","v":"Mededelingen pagina 1"}]

{"sheet":"NAW_gegevens","index":4,"n_rows":40,"n_cols":6,"rows_kept":40,"cut":false,"hidden":false,"merged":[[2,1,2,2],[3,1,3,2]]}
[]
[]
[null,"NAW-GEGEVENS"]
[null,{"$f":"CONCATENATE(\"KWARTAALSTAAT ZVW \", jaar_id,\" \",kwartaal_id,\"E KWARTAAL\")","v":"KWARTAALSTAAT ZVW 2018 3E KWARTAAL"}]
[null," Selecteer uw nummer:","0000 KIES UW UZOVI-NUMMER"]
[null," Uzovi-nummer:",{"$f":"MID(keuze_uzovi_nummer,1,4)","v":"0000"}]
[null," Zorgverzekeraar:"]
[null," Contactpersoon:"]
[null," Telefoonnummer:"]
[null," E-mail:"]
[]
[null,"Let op dat u het goede UZOVI-nummer invult, zie onderstaand overzicht:"]
[]
[null,"UZOVI","NAAM",null,null,"PLAATS"]
[null,"0101","N.V. UNIVÉ ZORG",null,null,"ARNHEM"]
[null,"0104","DELTA LLOYD ZORGVERZEKERING N.V.",null,null,"TILBURG"]
[null,"0201","OHRA ZIEKTEKOSTENVERZEKERINGEN N.V. ",null,null,"TILBURG"]
[null,"0403","ASR BASIS ZIEKTENKOSTENVERZEKERINGEN N.V. ",null,null,"AMERSFOORT"]
[null,"0420","N.V. VGZ CARES ",null,null,"ARNHEM"]
[null,"0699","IZA ZORGVERZEKERAAR N.V.",null,null,"ARNHEM"]
[null,"0736","N.V. ZORGVERZEKERAAR UMC",null,null,"ARNHEM"]
[null,"3311","ZILVEREN KRUIS ACHMEA ZORGVERZEKERINGEN N.V.",null,null,"AMSTERDAM"]
[null,"3313","INTERPOLIS ZORGVERZEKERINGEN N.V.",null,null,"AMSTERDAM"]
[null,"3314","OZF ACHMEA ZORGVERZEKERINGEN N.V.",null,null,"HENGELO"]
[null,3329,"AVÉRO ACHMEA ZORGVERZEKERINGEN N.V.",null,null,"AMSTERDAM"]
[null,3332,"MENZIS ZORGVERZEKERAAR NV",null,null,"WAGENINGEN"]
[null,3333,"ANDERZORG NV",null,null,"GRONINGEN"]
[null,3343,"ONVZ ZIEKTEKOSTENVERZEKERAAR N.V.",null,null,"HOUTEN"]
[null,3351,"FBTO ZORGVERZEKERINGEN N.V.",null,null,"LEEUWARDEN"]
[null,3352,"IPTIQ LIFE S.A.",null,null,"AMSTELVEEN"]
[null,"7029","OWM ZORGVERZEKERAAR 'DSW' U.A.",null,null,"SCHIEDAM"]
[null,"7032","ENO ZORGVERZEKERAAR N.V.",null,null,"DEVENTER"]
[null,"7037","STAD HOLLAND ZORGVERZEKERAAR OWM U.A.",null,null,"SCHIEDAM"]
[null,"7053","OHRA ZORGVERZEKERINGEN  N.V.",null,null,"TILBURG"]
[null,"7054","AZIVO ZORGVERZEKERAAR N.V.",null,null,"DEN HAAG"]
[null,"7084","DE FRIESLAND ZORGVERZEKERAAR N.V.",null,null,"LEEUWARDEN"]
[null,"7085","OWM ZORGVERZEKERAAR ZORG EN ZEKERHEID U.A.",null,null,"LEIDEN"]
[null,"7095","VGZ ZORGVERZEKERAAR N.V.",null,null,"ARNHEM"]
[null,"7119","OWM CENTRALE ZORGVERZEKRAARS GROEP, ZORGVERZEKERAAR UA'",null,null,"TILBURG"]
[null,"9015","VGZ VOOR DE ZORG N.V.",null,null,"ARNHEM"]

{"sheet":"Kostenverzamelstaat","index":5,"n_rows":135,"n_cols":14,"rows_kept":135,"cut":false,"hidden":false,"merged":[[82,10,83,10],[115,11,116,11],[115,13,116,13],[115,12,116,12],[115,10,116,10],[82,9,83,9],[115,9,116,9],[104,3,104,6],[115,8,116,8],[116,3,116,6],[115,3,115,7],[82,13,83,13],[82,12,83,12],[82,8,83,8],[97,3,97,6],[82,11,83,11],[108,3,108,4],[103,3,103,7],[98,3,98,6],[105,3,105,7],[101,3,101,7],[100,3,100,6],[93,3,93,6],[94,3,94,7],[90,3,90,7],[29,3,29,6],[30,3,30,6],[52,3,52,6],[55,3,55,6],[54,3,54,6],[86,3,86,6],[84,3,84,7],[87,3,87,6],[88,3,88,6],[85,3,85,6],[82,7,83,7],[51,3,51,6],[91,3,91,6],[92,3,92,6],[102,3,102,6],[95,3,95,6],[96,3,96,7],[99,3,99,6],[134,3,134,4],[117,3,117,6],[118,3,118,6],[119,3,119,6],[120,3,120,6],[14,3,14,7],[16,3,16,6],[18,3,18,6],[53,3,53,6],[48,10,49,10],[35,3,35,6],[34,3,34,6],[23,3,23,7],[50,3,50,7],[48,7,49,7],[48,8,49,8],[48,9,49,9],[39,3,39,4],[31,3,31,6],[32,3,32,7],[33,3,33,7],[25,3,25,6],[28,3,28,7],[26,3,26,7],[27,3,27,6],[80,12,81,13],[73,3,73,4],[69,3,69,6],[56,3,56,6],[65,3,65,7],[66,3,66,7],[68,3,68,7],[70,3,70,6],[57,3,57,6],[67,3,67,6],[80,8,81,9],[80,10,81,11],[10,8,11,9],[15,3,15,6],[12,7,13,7],[19,3,19,6],[12,9,13,9],[12,8,13,8],[17,3,17,6],[48,11,49,11],[48,13,49,13],[10,12,11,13],[12,12,13,12],[12,13,13,13],[10,10,11,11],[12,11,13,11],[12,10,13,10],[46,10,47,11],[46,12,47,13],[48,12,49,12],[20,3,20,6],[21,3,21,6],[22,3,22,6],[24,3,24,7],[46,8,47,9],[36,3,36,7]]}
[null,null,"INVULSPECIFICATIES SPECIFIEKE INFORMATIE A"]
[]
[]
[]
[]
["Pagina 1",null,null,{"$f":"CONCATENATE(\"KWARTAALSTAAT ZVW \", jaar_id,\" \",kwartaal_id,\"E KWARTAAL\")","v":"KWARTAALSTAAT ZVW 2018 3E KWARTAAL"}]
[null,null,null,"KOSTENVERZAMELSTAAT (SPECIFIEKE INFORMATIE A)"]
[null,null,null,{"$f":"IF(naw_uzovi_zorgverzekeraar<>\"0000\",CONCATENATE(UPPER(naw_naam_zorgverzekeraar),\"\",),\"\")","v":""},null,null,null,null,null,null,null,null,null,{"$f":"CONCATENATE(\"UZOVI: \",naw_uzovi_zorgverzekeraar)","v":"UZOVI: 0000"}]
[null,null,null,"SPECIFICATIES INFORMATIE RISICOVEREVENING"]
[null,null,null,"KOSTENVERZAMELSTAAT"]
[null,null,null,null,null,null,null,null,{"$f":"CONCATENATE(\"LASTEN \",jaar_id,)","v":"LASTEN 2018"},null,{"$f":"CONCATENATE(\"LASTEN \",jaar_id-1,)","v":"LASTEN 2017"},null,{"$f":"CONCATENATE(\"LASTEN \",jaar_id-2,\" EN OUDER\")","v":"LASTEN 2016 EN OUDER"}]
[]
[null,null,null,null,null,null,null,"\ncode","Lasten 2018 inclusief balanspost ","Ontvangen en geaccepteerde declaraties t/m 3e kwartaal 2018","Lasten 2017 inclusief balanspost","Ontvangen en geaccepteerde declaraties m.b.t. 2017","Lasten 2016 en ouder inclusief balanspost","Ontvangen en geaccepteerde declaraties m.b.t. 2016 en ouder"]
[null,null,null," KOSTENRUBRIEK"]
[null,null,null," 01  HUISARTSENZORG en MDZ"]
[null,null,null," Bijzondere betalingen",null,null,null,"503   "]
[null,null,null," Avond-, nacht- en weekenddiensten",null,null,null,"504   "]
[null,null,null," Inschrijftarieven",null,null,null,"505   "]
[null,null,null," Consulttarieven",null,null,null,"506   "]
[null,null,null," Overige tarieven",null,null,null,"507   "]
[null,null,null," Multidisciplinaire zorg",null,null,null,"510   "]
[null,null,null," Resultaatbeloning en zorgvernieuwing huisartsen",null,null,null,"515   "]
[null,null,null," Resultaatbeloning en zorgvernieuwing MDZ",null,null,null,"516   "]
[null,null,null," TOTAAL RUBRIEK 01",null,null,null,null,{"$f":"SUM(I16:I23)","v":0},0,0,0,0,0]
[null,null,null," 02 FARMACEUTISCHE ZORG"]
[null,null,null," TOTAAL RUBRIEK 02",null,null,null,"520   "]
[null,null,null," 03 VERPLEGING EN VERZORGING "]
[null,null,null," Kosten van verpleging en verzorging ",null,null,null,"530   "]
[null,null,null," 04  MONDZORG"]
[null,null,null," Kosten mondzorg volwassen verzekerden",null,null,null,"560.1"]
[null,null,null," Kosten mondzorg jeugdige verzekerden",null,null,null,"560.2"]
[null,null,null," Kosten gebitsprothesen",null,null,null,"561   "]
[null,null,null," TOTAAL RUBRIEK 04",null,null,null,null,{"$f":"SUM(I30:I32)","v":0},0,0,0,0,0]
[null,null,null," 05  VERLOSKUNDIGE ZORG"]
[null,null,null," Kosten verloskundige zorg door verloskundigen",null,null,null,"580   "]
[null,null,null," Kosten verloskundige zorg door huisartsen",null,null,null,"581   "]
[null,null,null," TOTAAL RUBRIEK 05",null,null,null,null,{"$f":"SUM(I35:I36)","v":0},0,0,0,0,0]
[]
[]
[null,null,null,{"$f":"NOW()","v":"2018-08-27T17:37:02.050"},null,null,null,null,null,null,null,null,null,{"$f":"CONCATENATE(\"Specifieke informatie A, \",LOWER(A6))","v":"Specifieke informatie A, pagina 1"}]
[]
["Pagina 2",null,null,{"$f":"CONCATENATE(\"KWARTAALSTAAT ZVW \", jaar_id,\" \",kwartaal_id,\"E KWARTAAL\")","v":"KWARTAALSTAAT ZVW 2018 3E KWARTAAL"}]
[null,null,null,"KOSTENVERZAMELSTAAT (SPECIFIEKE INFORMATIE A)"]
[null,null,null,{"$f":"IF(naw_uzovi_zorgverzekeraar<>\"0000\",CONCATENATE(UPPER(naw_naam_zorgverzekeraar),\"\",),\"\")","v":""},null,null,null,null,null,null,null,null,null,{"$f":"CONCATENATE(\"UZOVI: \",naw_uzovi_zorgverzekeraar)","v":"UZOVI: 0000"}]
[null,null,null,"SPECIFICATIES INFORMATIE RISICOVEREVENING"]
[null,null,null,"KOSTENVERZAMELSTAAT - vervolg"]
[null,null,null,null,null,null,null,null,{"$f":"CONCATENATE(\"LASTEN \",jaar_id,)","v":"LASTEN 2018"},null,{"$f":"CONCATENATE(\"LASTEN \",jaar_id-1,)","v":"LASTEN 2017"},null,{"$f":"CONCATENATE(\"LASTEN \",jaar_id-2,\" EN OUDER\")","v":"LASTEN 2016 EN OUDER"}]
[]
[null,null,null,null,null,null,null,"\ncode","Lasten 2018 inclusief balanspost ","Ontvangen en geaccepteerde declaraties t/m 3e kwartaal 2018","Lasten 2017 inclusief balanspost","Ontvangen en geaccepteerde declaraties m.b.t. 2017","Lasten 2016 en ouder inclusief balanspost","Ontvangen en geaccepteerde declaraties m.b.t. 2016 en ouder"]
[null,null,null," KOSTENRUBRIEK"]
[null,null,null," 06  MEDISCH SPECIALISTISCHE ZORG"]
[null,null,null," Kosten specialisten mondziekten en kaakchirurgie",null,null,null,"545   "]
[null,null,null," Overige kosten ziekenhuiszorg en curatieve zorg",null,null,null,"610   "]
[null,null,null," Overige zorgproducten",null,null,null,"611   "]
[null,null,null," Kosten add-ons ",null,null,null,"612   "]
[null,null,null," Integrale kosten van DBC-zorgproduct \n gereguleerde segment  ",null,null,null,"613.1 "]
[null,null,null," Integrale kosten DBC-zorgproduct vrije segment",null,null,null,"615.1 "]
[null,null,null," Integrale kosten extramuraal werkende \n specialisten",null,null,null,"619   "]
[null,null,null," TOTAAL RUBRIEK 06",null,null,null,null,{"$f":"SUM(I52:I58)","v":0},0,0,0,0,0]
[null,null,null," 07  PARAMEDISCHE ZORG"]
[null,null,null," Kosten fysiotherapie",null,null,null,"620   "]
[null,null,null," Kosten oefentherapie Mensendieck/Cesar",null,null,null,"621   "]
[null,null,null," Kosten logopedie",null,null,null,"623   "]
[null,null,null," Kosten ergotherapie",null,null,null,"624   "]
[null,null,null," Kosten dieetadvisering",null,null,null,"625   "]
[null,null,null," TOTAAL RUBRIEK 07",null,null,null,null,{"$f":"SUM(I61:I65)","v":0},0,0,0,0,0]
[null,null,null," 08  HULPMIDDELENZORG"]
[null,null,null," TOTAAL RUBRIEK 08",null,null,null,"640   "]
[null,null,null," 09  ZIEKENVERVOER"]
[null,null,null," Kosten vervoer per ambulance/helikopter",null,null,null,"650   "]
[null,null,null," Kosten vervoer per openbaar vervoer, taxi \n en eigen auto",null,null,null,"651   "]
[null,null,null," TOTAAL RUBRIEK 09",null,null,null,null,{"$f":"SUM(I70:I71)","v":0},0,0,0,0,0]
[]
[null,null,null,{"$f":"NOW()","v":"2018-08-27T17:37:02.050"},null,null,null,null,null,null,null,null,null,{"$f":"CONCATENATE(\"Specifieke informatie A, \",LOWER(A42))","v":"Specifieke informatie A, pagina 2"}]
[]
["Pagina 3",null,null,{"$f":"CONCATENATE(\"KWARTAALSTAAT ZVW \", jaar_id,\" \",kwartaal_id,\"E KWARTAAL\")","v":"KWARTAALSTAAT ZVW 2018 3E KWARTAAL"}]
[null,null,null,"KOSTENVERZAMELSTAAT (SPECIFIEKE INFORMATIE A)"]
[null,null,null,{"$f":"IF(naw_uzovi_zorgverzekeraar<>\"0000\",CONCATENATE(UPPER(naw_naam_zorgverzekeraar),\"\",),\"\")","v":""},null,null,null,null,null,null,null,null,null,{"$f":"CONCATENATE(\"UZOVI: \",naw_uzovi_zorgverzekeraar)","v":"UZOVI: 0000"}]
[null,null,null,"SPECIFICATIES INFORMATIE RISICOVEREVENING"]
[null,null,null,"KOSTENVERZAMELSTAAT - vervolg"]
[null,null,null,null,null,null,null,null,{"$f":"CONCATENATE(\"LASTEN \",jaar_id,)","v":"LASTEN 2018"},null,{"$f":"CONCATENATE(\"LASTEN \",jaar_id-1,)","v":"LASTEN 2017"},null,{"$f":"CONCATENATE(\"LASTEN \",jaar_id-2,\" EN OUDER\")","v":"LASTEN 2016 EN OUDER"}]
[]
[null,null,null,null,null,null,null,"\ncode","Lasten 2018 inclusief balanspost ","Ontvangen en geaccepteerde declaraties t/m 3e kwartaal 2018","Lasten 2017 inclusief balanspost","Ontvangen en geaccepteerde declaraties m.b.t. 2017","Lasten 2016 en ouder inclusief balanspost","Ontvangen en geaccepteerde declaraties m.b.t. 2016 en ouder"]
[null,null,null," KOSTENRUBRIEK"]
[null,null,null," 10 GENEESKUNDIGE GEESTELIJKE GEZONDHEIDSZORG"]
[null,null,null," Kosten specialistische GGZ met verblijf",null,null,null,"661   "]
[null,null,null," Kosten LGGZ (langdurige GGZ, jaar 2 en 3)",null,null,null,"661.1 "]
[null,null,null," Kosten specialistische GGZ zonder verblijf",null,null,null,"662   "]
[null,null,null," Generalistische basis GGZ",null,null,null,"665"]
[null,null,null," TOTAAL RUBRIEK 10",null,null,null,null,{"$f":"SUM(I86:I89)","v":0},0,0,0,0,0]
[null,null,null," 11  GERIATRISCHE REVALIDATIEZORG"]
[null,null,null," Geriatrische Revalidatie",null,null,null,"670   "]
[null,null,null," Eerstelijnsverblijf ",null,null,null,"671   "]
[null,null,null," TOTAAL RUBRIEK 11",null,null,null,null,{"$f":"SUM(I92:I93)","v":0},{"$f":"SUM(J92:J93)","v":0},{"$f":"SUM(K92)","v":0},{"$f":"SUM(L92)","v":0},0,{"$f":"SUM(N92)","v":0}]
[null,null,null," 12  KRAAMZORG"]
[null,null,null," TOTAAL RUBRIEK 12",null,null,null,"680   "]
[null,null,null," 13  DIVERSE OVERIGE KOSTEN"]
[null,null,null," Overige kosten",null,null,null,"700   "]
[null,null,null," Overige geneeskundige zorg",null,null,null,"701"]
[null,null,null," Kosten van zorg zintuiglijk gehandicapten ",null,null,null,"702"]
[null,null,null," TOTAAL RUBRIEK 13",null,null,null,null,{"$f":"SUM(I98:I100)","v":0},0,0,0,0,0]
[null,null,null," 15  GRENSOVERSCHRIJDENDE ZORG"]
[null,null,null," TOTAAL RUBRIEK 15",null,null,null,"720   "]
[null,null,null," 16  KWALITEITSGELDEN"]
[null,null,null," TOTAAL RUBRIEK 16",null,null,null,"730   "]
[null,null,null," TOTAAL LASTEN   (bruto-schade, definitie ZIN)",null,null,null,null,{"$f":"SUM(I24,I26,I28,I33,I37,I59,I66,I68,I72,I90,I94,I96,I101,I103,I105)","v":0},{"$f":"SUM(J24,J26,J28,J33,J37,J59,J66,J68,J72,J90,J94,J96,J101,J103,J105)","v":0},0,0,0,0]
[]
[]
[null,null,null,{"$f":"NOW()","v":"2018-08-27T17:37:02.050"},null,null,null,null,null,null,null,null,null,{"$f":"CONCATENATE(\"Specifieke informatie A, \",LOWER(A76))","v":"Specifieke informatie A, pagina 3"}]
[]
["Pagina 4",null,null,{"$f":"CONCATENATE(\"KWARTAALSTAAT ZVW \", jaar_id,\" \",kwartaal_id,\"E KWARTAAL\")","v":"KWARTAALSTAAT ZVW 2018 3E KWARTAAL"}]
[null,null,null,"KOSTENVERZAMELSTAAT (SPECIFIEKE INFORMATIE A)"]
[null,null,null,{"$f":"IF(naw_uzovi_zorgverzekeraar<>\"0000\",CONCATENATE(UPPER(naw_naam_zorgverzekeraar),\"\",),\"\")","v":""},null,null,null,null,null,null,null,null,null,{"$f":"CONCATENATE(\"UZOVI: \",naw_uzovi_zorgverzekeraar)","v":"UZOVI: 0000"}]
[null,null,null,"SPECIFICATIES INFORMATIE RISICOVEREVENING"]
[null,null,null,"KOSTENVERZAMELSTAAT - vervolg"]
[null,null,null," VERSCHIL POSTEN SCHADE DE NEDERLANDSCHE BANK",null,null,null,null,"Lasten 2018 inclusief balanspost ","Ontvangen en geaccepteerde declaraties t/m 3e kwartaal 2018","Lasten 2017 inclusief balanspost","Ontvangen en geaccepteerde declaraties m.b.t. 2017","Lasten 2016 en ouder inclusief balanspost","Ontvangen en geaccepteerde declaraties m.b.t. 2016 en ouder"]
[null,null,null,null,null,null,null,"code"]
[null,null,null," OPBRENGSTEN VERHAAL",null,null,null,"890.1"]
[null,null,null," SCHADE T.L.V. HET VRIJWILLIG EIGEN RISICO",null,null,null,"910   "]
[null,null,null," SCHADE T.L.V. HET VERPLICHT EIGEN RISICO",null,null,null,"915   "]
[null,null,null," SCHADE-AFHANDELINGSKOSTEN",null,null,null,"920   "]
[]
[]
[]
[]
[]
[]
[]
[]
[]
[]
[]
[]
[]
[null,null,null,{"$f":"NOW()","v":"2018-08-27T17:37:02.050"},null,null,null,null,null,null,null,null,null,{"$f":"CONCATENATE(\"Specifieke informatie A, \",LOWER(A111))","v":"Specifieke informatie A, pagina 4"}]

{"sheet":"Specifieke informatie A","index":6,"n_rows":183,"n_cols":12,"rows_kept":183,"cut":false,"hidden":false,"merged":[[176,9,178,11],[182,3,182,4],[101,9,101,10],[101,11,102,11],[131,9,133,11],[137,3,137,4],[146,9,146,10],[146,11,147,11],[11,11,12,11],[13,3,13,10],[14,3,14,10],[11,3,12,10],[92,3,92,4],[15,3,15,10],[56,9,56,10],[16,3,16,10],[86,9,88,11],[47,3,47,4],[56,11,57,11]]}
[null,null,"INVULSPECIFICATIES SPECIFIEKE INFORMATIE A"]
[]
[]
[]
[]
["Pagina 1",null,null,{"$f":"CONCATENATE(\"KWARTAALSTAAT ZVW \", jaar_id,\" \",kwartaal_id,\"E KWARTAAL\")","v":"KWARTAALSTAAT ZVW 2018 3E KWARTAAL"}]
[null,null,null,"SPECIFIEKE INFORMATIE A"]
[null,null,null,{"$f":"IF(naw_uzovi_zorgverzekeraar<>\"0000\",CONCATENATE(UPPER(naw_naam_zorgverzekeraar),\"\",),\"\")","v":""},null,null,null,null,null,null,null,{"$f":"CONCATENATE(\"UZOVI: \",naw_uzovi_zorgverzekeraar)","v":"UZOVI: 0000"}]
[]
[null,null,null,"SPECIFICATIES INFORMATIE RISICOVEREVENING"]
[null,null,null,"KOSTEN NAAR DEELBIJDRAGE"]
[null,null,null," KOSTEN NAAR DEELBIJDRAGE",null,null,null,null,null,null,null,"Lasten 2018 inclusief balanspost "]
[]
[null,null,null," Variabele zorgkosten "]
[null,null,null," Vaste zorgkosten"]
[null,null,null," Kosten geneeskundige geestelijke gezondheidszorg "]
[null,null,null," TOTAAL lasten (bruto-schade, definitie ZIN)",null,null,null,null,null,null,null,{"$f":"SUM(L14:L16)","v":0}]
[]
[]
[]
[]
[]
[]
[]
[]
[]
[]
[]
[]
[]
[]
[]
[]
[]
[]
[]
[]
[]
[]
[]
[]
[]
[]
[]
[]
[]
[]
[null,null,null,{"$f":"NOW()","v":"2018-08-27T17:37:02.050"},null,null,null,null,null,null,null,{"$f":"CONCATENATE(\"Specifieke informatie A, \",LOWER(A6))","v":"Specifieke informatie A, pagina 1"}]
[]
["Pagina 2",null,null,{"$f":"CONCATENATE(\"KWARTAALSTAAT ZVW \", jaar_id,\" \",kwartaal_id,\"E KWARTAAL\")","v":"KWARTAALSTAAT ZVW 2018 3E KWARTAAL"}]
[null,null,null,"SPECIFIEKE INFORMATIE A"]
[null,null,null,{"$f":"IF(naw_uzovi_zorgverzekeraar<>\"0000\",CONCATENATE(UPPER(naw_naam_zorgverzekeraar),\"\",),\"\")","v":""},null,null,null,null,null,null,null,{"$f":"CONCATENATE(\"UZOVI: \",naw_uzovi_zorgverzekeraar)","v":"UZOVI: 0000"}]
[]
[null,null,null,"SPECIFICATIES INFORMATIE RISICOVEREVENING"]
[null,null,null,"VERZEKERDENSTAND NAAR RISICOKLASSE",null,null,null,null,null,null,null,"Peildatum: datum van nominale premieprolongatie"]
[null,null,null,null,null,null,null,null,null,null,null,"voor de maand AUGUSTUS 2018"]
[null,null,null," LEEFTIJD",null,null,null,null,null,"AANTAL NAAR GESLACHT",null,"TOTAAL \nAANTAL"]
[null,null,null,null,null,null,null,null,null,"MAN","VROUW"]
[null,null,null,"  1a.   0  t/m   1",null,null,null,null,null,null,null,{"$f":"SUM(J59:K59)","v":0}]
[null,null,null,"  1b.   2  t/m   4",null,null,null,null,null,null,null,{"$f":"SUM(J60:K60)","v":0}]
[null,null,null,"  2.     5  t/m   9",null,null,null,null,null,null,null,0]
[null,null,null,"  3.   10  t/m 14",null,null,null,null,null,null,null,0]
[null,null,null,"  4.   15  t/m 19",null,null,null,null,null,null,null,0]
[null,null,null,"  5.   20  t/m 24",null,null,null,null,null,null,null,0]
[null,null,null,"  6.   25  t/m 29",null,null,null,null,null,null,null,0]
[null,null,null,"  7.   30  t/m 34",null,null,null,null,null,null,null,0]
[null,null,null,"  8.   35  t/m 39",null,null,null,null,null,null,null,0]
[null,null,null,"  9.   40  t/m 44",null,null,null,null,null,null,null,0]
[null,null,null," 10.  45  t/m 49",null,null,null,null,null,null,null,0]
[null,null,null," 11.  50  t/m 54",null,null,null,null,null,null,null,0]
[null,null,null," 12.  55  t/m 59",null,null,null,null,null,null,null,0]
[null,null,null," 13.  60  t/m 64",null,null,null,null,null,null,null,0]
[null,null,null," 14.  65  t/m 69",null,null,null,null,null,null,null,0]
[null,null,null," 15.  70  t/m 74",null,null,null,null,null,null,null,0]
[null,null,null," 16.  75  t/m 79",null,null,null,null,null,null,null,0]
[null,null,null," 17.  80  t/m 84",null,null,null,null,null,null,null,0]
[null,null,null," 18.  85  t/m 89",null,null,null,null,null,null,null,0]
[null,null,null," 19.  90 en ouder",null,null,null,null,null,null,null,0]
[null,null,null," TOTAAL",null,null,null,null,null,{"$f":"SUM(J59:J78)","v":0},{"$f":"SUM(K59:K78)","v":0},{"$f":"SUM(L59:L78)","v":0}]
[]
[null,null,null,"VERZEKERDENSTAND NAAR NOMINALE PREMIE",null,null,null,null,null,null,null,"Peildatum: datum van nominale premieprolongatie"]
[null,null,null,null,null,null,null,null,null,null,null,"voor de maand AUGUSTUS 2018"]
[null,null,null,null,null,null,null,null,null,null,null,"AANTAL"]
[null,null,null," Verzekerden met nominale premie Zvw"]
[null,null,null," Verzekerden zonder nominale premie Zvw"]
[null,null,null," TOTAAL",null,null,null,null,null,null,null,{"$f":"SUM(L84:L85)","v":0}]
[null,null,null,null,null,null,null,null,null,{"$f":"IF(AND(ISBLANK(K78)=FALSE,ISBLANK(L84)=FALSE),IF(L84<SUM(L64:L78),\"ATTENTIE: is het juist dat het aantal verzekerden \nmet nominale premie kleiner is dan het totaal\naantal verzekerden van 20 jaar en ouder?\",\"\"),\"\")","v":""}]
[]
[]
[]
[]
[]
[null,null,null,{"$f":"NOW()","v":"2018-08-27T17:37:02.050"},null,null,null,null,null,null,null,{"$f":"CONCATENATE(\"Specifieke informatie A, \",LOWER(A50))","v":"Specifieke informatie A, pagina 2"}]
[]
["Pagina 3",null,null,{"$f":"CONCATENATE(\"KWARTAALSTAAT ZVW \", jaar_id,\" \",kwartaal_id,\"E KWARTAAL\")","v":"KWARTAALSTAAT ZVW 2018 3E KWARTAAL"}]
[null,null,null,"SPECIFIEKE INFORMATIE A"]
[null,null,null,{"$f":"IF(naw_uzovi_zorgverzekeraar<>\"0000\",CONCATENATE(UPPER(naw_naam_zorgverzekeraar),\"\",),\"\")","v":""},null,null,null,null,null,null,null,{"$f":"CONCATENATE(\"UZOVI: \",naw_uzovi_zorgverzekeraar)","v":"UZOVI: 0000"}]
[]
[null,null,null,"SPECIFICATIES INFORMATIE RISICOVEREVENING"]
[null,null,null,"VERZEKERDENSTAND NAAR RISICOKLASSE",null,null,null,null,null,null,null,"Peildatum: datum van nominale premieprolongatie"]
[null,null,null,null,null,null,null,null,null,null,null,"voor de maand SEPTEMBER 2018"]
[null,null,null," LEEFTIJD",null,null,null,null,null,"AANTAL NAAR GESLACHT",null,"TOTAAL \nAANTAL"]
[null,null,null,null,null,null,null,null,null,"MAN","VROUW"]
[null,null,null,"  1a.   0  t/m   1",null,null,null,null,null,null,null,{"$f":"SUM(J104:K104)","v":0}]
[null,null,null,"  1b.   2  t/m   4",null,null,null,null,null,null,null,{"$f":"SUM(J105:K105)","v":0}]
[null,null,null,"  2.     5  t/m   9",null,null,null,null,null,null,null,0]
[null,null,null,"  3.   10  t/m 14",null,null,null,null,null,null,null,0]
[null,null,null,"  4.   15  t/m 19",null,null,null,null,null,null,null,0]
[null,null,null,"  5.   20  t/m 24",null,null,null,null,null,null,null,0]
[null,null,null,"  6.   25  t/m 29",null,null,null,null,null,null,null,0]
[null,null,null,"  7.   30  t/m 34",null,null,null,null,null,null,null,0]
[null,null,null,"  8.   35  t/m 39",null,null,null,null,null,null,null,0]
[null,null,null,"  9.   40  t/m 44",null,null,null,null,null,null,null,0]
[null,null,null," 10.  45  t/m 49",null,null,null,null,null,null,null,0]
[null,null,null," 11.  50  t/m 54",null,null,null,null,null,null,null,0]
[null,null,null," 12.  55  t/m 59",null,null,null,null,null,null,null,0]
[null,null,null," 13.  60  t/m 64",null,null,null,null,null,null,null,0]
[null,null,null," 14.  65  t/m 69",null,null,null,null,null,null,null,0]
[null,null,null," 15.  70  t/m 74",null,null,null,null,null,null,null,0]
[null,null,null," 16.  75  t/m 79",null,null,null,null,null,null,null,0]
[null,null,null," 17.  80  t/m 84",null,null,null,null,null,null,null,0]
[null,null,null," 18.  85  t/m 89",null,null,null,null,null,null,null,0]
[null,null,null," 19.  90 en ouder",null,null,null,null,null,null,null,0]
[null,null,null," TOTAAL",null,null,null,null,null,{"$f":"SUM(J104:J123)","v":0},{"$f":"SUM(K104:K123)","v":0},{"$f":"SUM(L104:L123)","v":0}]
[]
[null,null,null,"VERZEKERDENSTAND NAAR NOMINALE PREMIE",null,null,null,null,null,null,null,"Peildatum: datum van nominale premieprolongatie"]
[null,null,null,null,null,null,null,null,null,null,null,"voor de maand SEPTEMBER 2018"]
[null,null,null,null,null,null,null,null,null,null,null,"AANTAL"]
[null,null,null," Verzekerden met nominale premie Zvw"]
[null,null,null," Verzekerden zonder nominale premie Zvw"]
[null,null,null," TOTAAL",null,null,null,null,null,null,null,{"$f":"SUM(L129:L130)","v":0}]
[null,null,null,null,null,null,null,null,null,{"$f":"IF(AND(ISBLANK(K123)=FALSE,ISBLANK(L129)=FALSE),IF(L129<SUM(L109:L123),\"ATTENTIE: is het juist dat het aantal verzekerden \nmet nominale premie kleiner is dan het totaal\naantal verzekerden van 20 jaar en ouder?\",\"\"),\"\")","v":""}]
[]
[]
[]
[]
[]
[null,null,null,{"$f":"NOW()","v":"2018-08-27T17:37:02.050"},null,null,null,null,null,null,null,{"$f":"CONCATENATE(\"Specifieke informatie A, \",LOWER(A95))","v":"Specifieke informatie A, pagina 3"}]
[]
["Pagina 4",null,null,{"$f":"CONCATENATE(\"KWARTAALSTAAT ZVW \", jaar_id,\" \",kwartaal_id,\"E KWARTAAL\")","v":"KWARTAALSTAAT ZVW 2018 3E KWARTAAL"}]
[null,null,null,"SPECIFIEKE INFORMATIE A"]
[null,null,null,{"$f":"IF(naw_uzovi_zorgverzekeraar<>\"0000\",CONCATENATE(UPPER(naw_naam_zorgverzekeraar),\"\",),\"\")","v":""},null,null,null,null,null,null,null,{"$f":"CONCATENATE(\"UZOVI: \",naw_uzovi_zorgverzekeraar)","v":"UZOVI: 0000"}]
[]
[null,null,null,"SPECIFICATIES INFORMATIE RISICOVEREVENING"]
[null,null,null,"VERZEKERDENSTAND NAAR RISICOKLASSE",null,null,null,null,null,null,null,"Peildatum: datum van nominale premieprolongatie"]
[null,null,null,null,null,null,null,null,null,null,null,"voor de maand OKTOBER 2018"]
[null,null,null," LEEFTIJD",null,null,null,null,null,"AANTAL NAAR GESLACHT",null,"TOTAAL \nAANTAL"]
[null,null,null,null,null,null,null,null,null,"MAN","VROUW"]
[null,null,null,"  1a.   0  t/m   1",null,null,null,null,null,null,null,{"$f":"SUM(J149:K149)","v":0}]
[null,null,null,"  1b.   2  t/m   4",null,null,null,null,null,null,null,{"$f":"SUM(J150:K150)","v":0}]
[null,null,null,"  2.     5  t/m   9",null,null,null,null,null,null,null,0]
[null,null,null,"  3.   10  t/m 14",null,null,null,null,null,null,null,0]
[null,null,null,"  4.   15  t/m 19",null,null,null,null,null,null,null,0]
[null,null,null,"  5.   20  t/m 24",null,null,null,null,null,null,null,0]
[null,null,null,"  6.   25  t/m 29",null,null,null,null,null,null,null,0]
[null,null,null,"  7.   30  t/m 34",null,null,null,null,null,null,null,0]
[null,null,null,"  8.   35  t/m 39",null,null,null,null,null,null,null,0]
[null,null,null,"  9.   40  t/m 44",null,null,null,null,null,null,null,0]
[null,null,null," 10.  45  t/m 49",null,null,null,null,null,null,null,0]
[null,null,null," 11.  50  t/m 54",null,null,null,null,null,null,null,0]
[null,null,null," 12.  55  t/m 59",null,null,null,null,null,null,null,0]
[null,null,null," 13.  60  t/m 64",null,null,null,null,null,null,null,0]
[null,null,null," 14.  65  t/m 69",null,null,null,null,null,null,null,0]
[null,null,null," 15.  70  t/m 74",null,null,null,null,null,null,null,0]
[null,null,null," 16.  75  t/m 79",null,null,null,null,null,null,null,0]
[null,null,null," 17.  80  t/m 84",null,null,null,null,null,null,null,0]
[null,null,null," 18.  85  t/m 89",null,null,null,null,null,null,null,0]
[null,null,null," 19.  90 en ouder",null,null,null,null,null,null,null,0]
[null,null,null," TOTAAL",null,null,null,null,null,{"$f":"SUM(J149:J168)","v":0},{"$f":"SUM(K149:K168)","v":0},{"$f":"SUM(L149:L168)","v":0}]
[]
[null,null,null,"VERZEKERDENSTAND NAAR NOMINALE PREMIE",null,null,null,null,null,null,null,"Peildatum: datum van nominale premieprolongatie"]
[null,null,null,null,null,null,null,null,null,null,null,"voor de maand OKTOBER 2018"]
[null,null,null,null,null,null,null,null,null,null,null,"AANTAL"]
[null,null,null," Verzekerden met nominale premie Zvw"]
[null,null,null," Verzekerden zonder nominale premie Zvw"]
[null,null,null," TOTAAL",null,null,null,null,null,null,null,{"$f":"SUM(L174:L175)","v":0}]
[null,null,null,null,null,null,null,null,null,{"$f":"IF(AND(ISBLANK(K168)=FALSE,ISBLANK(L174)=FALSE),IF(L174<SUM(L154:L168),\"ATTENTIE: is het juist dat het aantal verzekerden \nmet nominale premie kleiner is dan het totaal\naantal verzekerden van 20 jaar en ouder?\",\"\"),\"\")","v":""}]
[]
[]
[]
[]
[]
[null,null,null,{"$f":"NOW()","v":"2018-08-27T17:37:02.050"},null,null,null,null,null,null,null,{"$f":"CONCATENATE(\"Specifieke informatie A, \",LOWER(A140))","v":"Specifieke informatie A, pagina 4"}]

{"sheet":"Specifieke informatie C","index":7,"n_rows":294,"n_cols":12,"rows_kept":294,"cut":false,"hidden":false,"merged":[[108,3,108,10],[116,3,116,10],[115,3,115,10],[111,3,111,10],[110,3,110,10],[109,3,109,10],[105,11,106,11],[103,8,103,10],[103,3,103,7],[101,3,102,10],[101,11,102,11],[94,3,94,10],[85,3,85,4],[74,11,75,11],[92,11,93,11],[77,3,77,10],[96,5,96,10],[95,5,95,10],[95,3,96,4],[92,3,93,10],[76,3,76,10],[74,3,75,10],[97,3,97,10],[10,11,11,11],[12,3,12,10],[17,11,18,11],[17,3,18,10],[10,3,11,10],[13,3,13,10],[15,3,15,10],[14,3,14,10],[51,11,52,11],[22,5,22,10],[37,11,38,11],[37,3,38,10],[33,3,33,10],[29,11,30,11],[39,3,39,10],[35,3,35,10],[31,3,31,10],[29,3,30,10],[51,3,52,10],[27,3,27,10],[42,3,42,10],[21,5,21,10],[23,3,23,10],[19,3,20,4],[21,3,22,4],[19,5,19,10],[55,3,55,10],[53,3,53,10],[20,5,20,10],[43,3,43,10],[25,3,25,10],[24,3,24,10],[32,3,32,10],[54,3,54,10],[26,3,26,10],[34,3,34,10],[40,3,40,10],[44,3,44,4],[41,3,41,10],[117,3,117,10],[153,6,154,6],[142,3,142,10],[147,5,147,10],[138,3,138,10],[119,3,119,10],[122,3,122,10],[120,3,120,10],[118,3,118,10],[140,3,140,10],[129,3,129,4],[148,3,149,4],[148,5,148,10],[149,5,149,10],[121,3,121,10],[57,11,58,11],[69,3,70,3],[70,4,70,10],[69,4,69,10],[66,3,66,10],[64,3,65,10],[64,11,65,11],[112,3,112,10],[114,3,114,10],[113,3,113,10],[107,3,107,10],[105,3,106,10],[59,3,59,10],[57,3,58,10],[60,3,60,10],[68,3,68,10],[72,3,72,10],[71,3,71,10],[67,3,67,10],[99,3,99,10],[98,3,98,10],[61,3,61,10],[79,3,79,10],[78,3,78,10],[161,8,162,8],[157,3,157,5],[153,7,154,7],[152,8,152,9],[153,9,154,9],[136,3,137,10],[126,3,126,10],[144,3,145,10],[141,3,141,10],[152,10,152,11],[153,10,154,10],[153,8,154,8],[136,11,137,11],[139,3,139,10],[146,3,147,4],[144,11,145,11],[178,10,179,10],[153,11,154,11],[161,10,162,10],[124,3,125,10],[127,3,127,10],[128,3,128,10],[160,10,160,11],[160,8,160,9],[160,3,162,5],[160,6,160,7],[161,9,162,9],[152,3,154,5],[156,3,156,5],[155,3,155,5],[152,6,152,7],[158,3,158,5],[178,11,179,11],[177,10,177,11],[161,11,162,11],[161,7,162,7],[178,8,179,8],[124,11,125,11],[146,5,146,10],[161,6,162,6],[170,3,170,4],[177,8,177,9],[180,3,183,3],[183,4,183,5],[177,6,177,7],[178,7,179,7],[178,9,179,9],[178,6,179,6],[177,3,179,5],[182,4,182,5],[180,4,180,5],[181,4,181,5],[184,3,187,3],[211,3,211,10],[212,3,212,10],[191,7,192,7],[210,3,210,10],[191,9,192,9],[208,3,209,10],[208,11,209,11],[199,3,199,4],[190,10,190,11],[191,11,192,11],[184,4,184,5],[187,4,187,5],[186,4,186,5],[185,4,185,5],[215,3,215,4],[248,3,248,10],[246,3,247,10],[222,11,223,11],[246,11,247,11],[202,3,202,5],[203,3,203,5],[204,3,204,5],[190,6,190,7],[193,3,193,4],[190,3,192,5],[193,5,193,11],[228,11,229,11],[237,11,238,11],[230,3,230,10],[228,3,229,10],[222,3,223,10],[242,3,242,10],[240,3,240,10],[233,3,233,10],[243,3,243,10],[224,3,224,10],[226,3,226,10],[232,3,232,10],[225,3,225,10],[235,3,235,10],[234,3,234,10],[231,3,231,10],[237,3,238,10],[253,3,253,4],[241,3,241,10],[239,3,239,10],[282,3,282,5],[260,3,261,10],[275,3,275,10],[280,11,281,11],[271,11,272,11],[260,11,261,11],[250,3,250,10],[249,3,249,10],[293,3,293,4],[267,3,267,10],[268,3,268,10],[269,3,269,10],[271,3,272,10],[264,3,264,10],[262,3,262,10],[263,3,263,10],[280,6,281,6],[273,3,273,10],[279,6,279,7],[279,3,281,5],[274,3,274,10],[276,3,276,10],[280,7,281,7],[280,8,281,8],[280,9,281,9],[279,8,279,9],[280,10,281,10],[284,3,284,5],[279,10,279,11],[265,3,265,10],[266,3,266,10],[283,3,283,5],[163,3,163,11],[195,3,195,5],[194,3,194,5],[196,3,196,5],[197,3,197,5],[198,3,198,5],[199,5,199,11],[200,3,200,5],[201,3,201,5],[164,3,164,5],[165,3,165,5],[166,3,166,5],[167,3,167,5],[168,3,168,5],[191,10,192,10],[191,6,192,6],[191,8,192,8],[190,8,190,9],[188,3,188,5]]}
[null,null,"INVULSPECIFICATIES SPECIFIEKE INFORMATIE C"]
[]
[]
[]
[]
["Pagina 1",null,null,{"$f":"CONCATENATE(\"KWARTAALSTAAT ZVW \", jaar_id,\" \",kwartaal_id,\"E KWARTAAL\")","v":"KWARTAALSTAAT ZVW 2018 3E KWARTAAL"}]
[null,null,null,"SPECIFIEKE INFORMATIE C"]
[null,null,null,{"$f":"IF(naw_uzovi_zorgverzekeraar<>\"0000\",CONCATENATE(UPPER(naw_naam_zorgverzekeraar),\"\",),\"\")","v":""},null,null,null,null,null,null,null,{"$f":"CONCATENATE(\"UZOVI: \",naw_uzovi_zorgverzekeraar)","v":"UZOVI: 0000"}]
[null,null,null,"SPECIFICATIES VAN KOSTEN EN PRODUCTIE"]
[null,null,null,"RUBRIEK 01 HUISARTSENZORG"]
[null,null,null,"  CODE 503 - BIJZONDERE BETALINGEN",null,null,null,null,null,null,null,"Ontvangen en geaccepteerde declaraties tot en met 3e kwartaal 2018"]
[]
[null,null,null," Module achterstandsfonds"]
[null,null,null," Module modernisering en innovatie"]
[null,null,null," Overige kosten"]
[null,null,null," TOTAAL code 503"]
[]
[null,null,null,"  CODE 506 - CONSULTTARIEVEN",null,null,null,null,null,null,null,"Ontvangen en geaccepteerde declaraties tot en met 3e kwartaal 2018"]
[]
[null,null,null," Kosten consulten huisartsen",null," ≤ 20 minuten"]
[null,null,null,null,null," > 20 minuten"]
[null,null,null," Kosten visites huisartsen",null," ≤ 20 minuten"]
[null,null,null,null,null," > 20 minuten"]
[null,null,null," Kosten telefonisch consulten huisartsen"]
[null,null,null," Kosten e-mailconsulten huisartsen"]
[null,null,null," Kosten consulttarieven POH GGZ"]
[null,null,null," Kosten huisartsenzorg ELV en Intensieve zorg "]
[null,null,null," TOTAAL code 506"]
[]
[null,null,null,"  CODE 507 - OVERIGE TARIEVEN",null,null,null,null,null,null,null,"Ontvangen en geaccepteerde declaraties tot en met 3e kwartaal 2018"]
[null,null,null,null,null,null,null,null,null,null,null,"Ontvangen en geaccepteerde declaraties mbt jaar T"]
[null,null,null," Module POH GGZ"]
[null,null,null," S1 Verrichtingen "]
[null,null,null," Vaccinaties"]
[null,null,null," Passantentarieven"]
[null,null,null," TOTAAL code 507"]
[]
[null,null,null,"  CODE 510 - MULTIDISCIPLINAIRE ZORG",null,null,null,null,null,null,null,"Ontvangen en geaccepteerde declaraties tot en met 3e kwartaal 2018"]
[null,null,null,null,null,null,null,null,null,null,null,"Ontvangen en geaccepteerde declaraties mbt jaar T"]
[null,null,null," Multidisciplinaire zorgverlening Diabetes Mellitus type 2 en multidisciplinaire zorgverlening Cardiovasculair risicomanagement \n (vergoedingscomponent te verzekeren prestatie Zvw)"]
[null,null,null," Multidisciplinaire zorgverlening COPD (vergoedingscomponent te verzekeren prestatie Zvw) "]
[null,null,null," Ondersteuning en infrastructuur"]
[null,null,null," Programma stoppen met roken"]
[null,null,null," TOTAAL code 510"]
[null,null,null,{"$f":"NOW()","v":"2018-08-27T17:37:02.050"},null,null,null,null,null,null,null,{"$f":"CONCATENATE(\"Specifieke informatie C, \",LOWER(A6))","v":"Specifieke informatie C, pagina 1"}]
[]
["Pagina 2",null,null,{"$f":"CONCATENATE(\"KWARTAALSTAAT ZVW \", jaar_id,\" \",kwartaal_id,\"E KWARTAAL\")","v":"KWARTAALSTAAT ZVW 2018 3E KWARTAAL"}]
[null,null,null,"SPECIFIEKE INFORMATIE C"]
[null,null,null,{"$f":"IF(naw_uzovi_zorgverzekeraar<>\"0000\",CONCATENATE(UPPER(naw_naam_zorgverzekeraar),\"\",),\"\")","v":""},null,null,null,null,null,null,null,{"$f":"CONCATENATE(\"UZOVI: \",naw_uzovi_zorgverzekeraar)","v":"UZOVI: 0000"}]
[null,null,null,"SPECIFICATIES VAN KOSTEN EN PRODUCTIE"]
[null,null,null,"RUBRIEK 01 HUISARTSENZORG"]
[null,null,null,"  CODE 515 - RESULTAATBELONING EN ZORGVERNIEUWING HUISARTSEN",null,null,null,null,null,null,null,"Ontvangen en geaccepteerde declaraties tot en met 3e kwartaal 2018"]
[null,null,null,null,null,null,null,null,null,null,null,"Ontvangen en geaccepteerde declaraties mbt jaar T"]
[null,null,null," Kosten resultaatbeloning huisartsen"]
[null,null,null," Kosten zorgvernieuwing huisartsen"]
[null,null,null," TOTAAL code 515"]
[]
[null,null,null,"  CODE 516 - RESULTAATBELONING EN ZORGVERNIEUWING MDZ",null,null,null,null,null,null,null,"Ontvangen en geaccepteerde declaraties tot en met 3e kwartaal 2018"]
[null,null,null,null,null,null,null,null,null,null,null,"Ontvangen en geaccepteerde declaraties mbt jaar T"]
[null,null,null," Kosten resultaatbeloning MDZ"]
[null,null,null," Kosten zorgvernieuwing MDZ"]
[null,null,null," TOTAAL code 516"]
[]
[null,null,null,"RUBRIEK 03 VERPLEGING EN VERZORGING"]
[null,null,null,"  CODE 530 - VERPLEGING EN VERZORGING ",null,null,null,null,null,null,null,"Ontvangen en geaccepteerde declaraties tot en met 3e kwartaal 2018"]
[null,null,null,null,null,null,null,null,null,null,null,"Ontvangen en geaccepteerde declaraties mbt jaar T"]
[null,null,null," Kosten verpleging"]
[null,null,null," Kosten verzorging"]
[null,null,null," Kosten PGB"]
[null,null,null," Overige kosten"," Prestatie AIV, Beloning op maat, Experiment bekostiging VenV (prestaties op verzekerdenniveau)"]
[null,null,null,null," Wijkgericht werken, Experiment regelarme instelling, Regionale beschikbaarheidsfunctie, Experimenten \n ketenzorg dementie (prestaties niet op verzekerdenniveau)"]
[null,null,null," Kosten verpleegkundige dagopvang en verblijf bij Intensieve kindzorg"]
[null,null,null," TOTAAL code 530"]
[]
[null,null,null,"  CODE 530 - VERPLEGING EN VERZORGING ",null,null,null,null,null,null,null,"AANTAL tot en met 3e kwartaal 2018"]
[null,null,null,null,null,null,null,null,null,null,null,"Ontvangen en geaccepteerde declaraties mbt jaar T"]
[null,null,null," Verpleging"]
[null,null,null," Verzorging"]
[null,null,null," PGB"]
[null,null,null," Verpleegkundige dagopvang en verblijf bij Intensieve kindzorg"]
[]
[]
[]
[]
[]
[null,null,null,{"$f":"NOW()","v":"2018-08-27T17:37:02.050"},null,null,null,null,null,null,null,{"$f":"CONCATENATE(\"Specifieke informatie C, \",LOWER(A47))","v":"Specifieke informatie C, pagina 2"}]
[]
["Pagina 3",null,null,{"$f":"CONCATENATE(\"KWARTAALSTAAT ZVW \", jaar_id,\" \",kwartaal_id,\"E KWARTAAL\")","v":"KWARTAALSTAAT ZVW 2018 3E KWARTAAL"}]
[null,null,null,"SPECIFIEKE INFORMATIE C"]
[null,null,null,{"$f":"IF(naw_uzovi_zorgverzekeraar<>\"0000\",CONCATENATE(UPPER(naw_naam_zorgverzekeraar),\"\",),\"\")","v":""},null,null,null,null,null,null,null,{"$f":"CONCATENATE(\"UZOVI: \",naw_uzovi_zorgverzekeraar)","v":"UZOVI: 0000"}]
[null,null,null,"SPECIFICATIES VAN KOSTEN EN PRODUCTIE"]
[null,null,null,"RUBRIEK 04 MONDZORG "]
[null,null,null,"  CODE 560.1 - MONDZORG VOLWASSEN VERZEKERDEN",null,null,null,null,null,null,null,"Ontvangen en geaccepteerde declaraties tot en met 3e kwartaal 2018"]
[]
[null,null,null," X   Maken en beoordelen foto's (Röntgendiagnostiek)"]
[null,null,null," Bijzondere tandheelkundige zorg \n (art. 2.7, lid 1, sub a)",null," Implantaten "]
[null,null,null,null,null," Overig"]
[null,null,null," Bijzondere tandheelkundige zorg (art. 2.7, lid 1, b en c)"]
[null,null,null," Bijzondere tandheelkundige zorg (art. 2.7, lid 3), Orthodontie"]
[null,null,null," TOTAAL code 560.1"]
[]
[null,null,null,"  CODE 560.1 - MONDZORG VOLWASSEN VERZEKERDEN - vervolg",null,null,null,null,null,null,null,"AANTAL tot en met 3e kwartaal 2018"]
[null,null,null,null,null,null,null,null,null,null,null,"Ontvangen en geaccepteerde declaraties mbt jaar T"]
[null,null,null," Bijzondere tandheelkundige zorg (art. 2.7, lid 1, sub a)",null,null,null,null," Implantaten"]
[]
[null,null,null,"  CODE 560.2 - MONDZORG JEUGDIGE VERZEKERDEN",null,null,null,null,null,null,null,"Ontvangen en geaccepteerde declaraties tot en met 3e kwartaal 2018"]
[null,null,null,null,null,null,null,null,null,null,null,"Ontvangen en geaccepteerde declaraties mbt jaar T"]
[null,null,null," C        Consultatie en diagnostiek"]
[null,null,null," X        Maken en beoordelen foto's"]
[null,null,null," M        Preventieve mondzorg"]
[null,null,null," A+B    Verdoving"]
[null,null,null," V        Vullingen"]
[null,null,null," E        Wortelkanaalbehandelingen"]
[null,null,null," R        Kronen en bruggen"]
[null,null,null," G        Kaakgewrichtbehandelingen "]
[null,null,null," H        Chirurgische ingrepen"]
[null,null,null," P        Uitneembare prothetische voorzieningen"]
[null,null,null," T        Tandvleesbehandelingen "]
[null,null,null," J        Implantaten"]
[null,null,null," Z       Abbonementstarieven"]
[null,null,null," Bijzondere tandheelkundige zorg (art. 2.7, lid 1, sub a,b en c)"]
[null,null,null," Bijzondere tandheelkundige zorg (art. 2.7, lid 3), Orthodontie"]
[null,null,null," TOTAAL code 560.2"]
[]
[null,null,null,"  CODE 560.2 - MONDZORG JEUGDIGE VERZEKERDEN - vervolg",null,null,null,null,null,null,null,"AANTAL tot en met 3e kwartaal 2018"]
[null,null,null,null,null,null,null,null,null,null,null,"Ontvangen en geaccepteerde declaraties mbt jaar T"]
[null,null,null," C     Consultatie en diagnostiek (C11, Periodieke controle)"]
[null,null,null," M     Preventieve mondzorg (M01, Preventieve voorlichting en/of instructie) "]
[null,null,null," M     Preventieve mondzorg (M02, Consult voor evaluatie van preventie)"]
[null,null,null,{"$f":"NOW()","v":"2018-08-27T17:37:02.050"},null,null,null,null,null,null,null,{"$f":"CONCATENATE(\"Specifieke informatie C, \",LOWER(A88))","v":"Specifieke informatie C, pagina 3"}]
[]
["Pagina 4",null,null,{"$f":"CONCATENATE(\"KWARTAALSTAAT ZVW \", jaar_id,\" \",kwartaal_id,\"E KWARTAAL\")","v":"KWARTAALSTAAT ZVW 2018 3E KWARTAAL"}]
[null,null,null,"SPECIFIEKE INFORMATIE C "]
[null,null,null,{"$f":"IF(naw_uzovi_zorgverzekeraar<>\"0000\",CONCATENATE(UPPER(naw_naam_zorgverzekeraar),\"\",),\"\")","v":""},null,null,null,null,null,null,null,{"$f":"CONCATENATE(\"UZOVI: \",naw_uzovi_zorgverzekeraar)","v":"UZOVI: 0000"}]
[null,null,null,"SPECIFICATIES VAN KOSTEN EN PRODUCTIE"]
[null,null,null,"RUBRIEK 04 MONDZORG - vervolg"]
[null,null,null,"  CODE 561 - GEBITSPROTHESEN",null,null,null,null,null,null,null,"Ontvangen en geaccepteerde declaraties tot en met 3e kwartaal 2018"]
[null,null,null,null,null,null,null,null,null,null,null,"Ontvangen en geaccepteerde declaraties mbt jaar T"]
[null,null,null," Volledige conventionele gebitsprothesen voor onder- en/of bovenkaak"]
[null,null,null," Rebasings en reparaties van de conventionele gebitsprothesen "]
[null,null,null," Volledige implantaat gedragen gebitsprothesen voor onder- en/of bovenkaak"]
[null,null,null," Rebasings en reparaties implantaat gedragen gebitsprothesen "]
[null,null,null," TOTAAL code 561"]
[]
[null,null,null,"  CODE 561 - GEBITSPROTHESEN - vervolg",null,null,null,null,null,null,null,"AANTAL tot en met 3e kwartaal 2018"]
[null,null,null,null,null,null,null,null,null,null,null,"Ontvangen en geaccepteerde declaraties mbt jaar T"]
[null,null,null," Volledige conventionele \n gebitsprothesen \n ",null," onder en boven"]
[null,null,null,null,null," onder of boven (tellen per kaak) "]
[null,null,null," Volledige implantaat gedragen  \n gebitsprothesen \n ",null," onder en boven"]
[null,null,null,null,null," onder of boven (tellen per kaak) "]
[]
[null,null,null,"RUBRIEK 06 MEDISCH SPECIALISTISCHE ZORG"]
[null,null,null," CODE 610 - OVERIGE KOSTEN \n ZIEKENHUISZORG EN CURATIEVE ZORG",null,null,"Lasten 2018 t/m 3e kwartaal",null,"Lasten 2017 ",null,"Lasten 2016 en ouder"]
[null,null,null,null,null,null,"Lasten 2018 inclusief balanspost","Ontvangen en geaccepteerde declaraties t/m 3e kwartaal 2018","Lasten 2017 inclusief balanspost","Ontvangen en geaccepteerde declaraties m.b.t. 2017","Lasten 2016 en ouder inclusief balanspost ","Ontvangen en geaccepteerde declaraties m.b.t. 2016 en ouder"]
[null,null,null,null,null,null,null,null,"Ontvangen en geaccepteerde declaraties mbt jaar T","Ontvangen en geaccepteerde declaraties mbt jaar T","Ontvangen en geaccepteerde declaraties mbt jaar T","Ontvangen en geaccepteerde declaraties mbt jaar T"]
[null,null,null," Kosten van eerstelijnsdiagnostiek \n aangevraagd door eerstelijnszorg-\n aanbieders geleverd door \n huisartsenlaboratoria "]
[null,null,null," Trombosediensten "]
[null,null,null," SKION en NTS"]
[null,null,null," TOTAAL code 610",null,null,{"$f":"SUM(G156:G158)","v":0},0,0,0,0,0]
[]
[null,null,null,"  CODE 611 - NAAR INSTELLING",null,null,"Lasten 2018 t/m 3e kwartaal",null,"Lasten 2017 ",null,"Lasten 2016 en ouder"]
[null,null,null,null,null,null,"Lasten 2018 inclusief balanspost","Ontvangen en geaccepteerde declaraties t/m 3e kwartaal 2018","Lasten 2017 inclusief balanspost","Ontvangen en geaccepteerde declaraties m.b.t. 2017","Lasten 2016 en ouder inclusief balanspost ","Ontvangen en geaccepteerde declaraties m.b.t. 2016 en ouder"]
[null,null,null,null,null,null,null,null,"Ontvangen en geaccepteerde declaraties mbt jaar T","Ontvangen en geaccepteerde declaraties mbt jaar T","Ontvangen en geaccepteerde declaraties mbt jaar T","Ontvangen en geaccepteerde declaraties mbt jaar T"]
[null,null,null," Overige zorgproducten"]
[null,null,null," Academische ziekenhuizen"]
[null,null,null," Algemene ziekenhuizen"]
[null,null,null," Zelfstandige behandelcentra"]
[null,null,null," Overige zorgaanbieders"]
[null,null,null," TOTAAL code 611",null,null,{"$f":"SUM(G165:G168)","v":0},0,0,0,0,0]
[]
[null,null,null,{"$f":"NOW()","v":"2018-08-27T17:37:02.050"},null,null,null,null,null,null,null,{"$f":"CONCATENATE(\"Specifieke informatie C, \",LOWER(A132))","v":"Specifieke informatie C, pagina 4"}]
[]
["Pagina 5",null,null,{"$f":"CONCATENATE(\"KWARTAALSTAAT ZVW \", jaar_id,\" \",kwartaal_id,\"E KWARTAAL\")","v":"KWARTAALSTAAT ZVW 2018 3E KWARTAAL"}]
[null,null,null,"SPECIFIEKE INFORMATIE C "]
[null,null,null,{"$f":"IF(naw_uzovi_zorgverzekeraar<>\"0000\",CONCATENATE(UPPER(naw_naam_zorgverzekeraar),\"\",),\"\")","v":""},null,null,null,null,null,null,null,{"$f":"CONCATENATE(\"UZOVI: \",naw_uzovi_zorgverzekeraar)","v":"UZOVI: 0000"}]
[null,null,null,"SPECIFICATIES VAN KOSTEN EN PRODUCTIE"]
[null,null,null,"RUBRIEK 06 MEDISCH SPECIALISTISCHE ZORG - vervolg"]
[null,null,null," CODE 612 - KOSTEN ADD-ONS NAAR \n INSTELLING",null,null,"Lasten 2018 t/m 3e kwartaal",null,"Lasten 2017 ",null,"Lasten 2016 en ouder"]
[null,null,null,null,null,null,"Lasten 2018 inclusief balanspost","Ontvangen en geaccepteerde declaraties t/m 3e kwartaal 2018","Lasten 2017 inclusief balanspost","Ontvangen en geaccepteerde declaraties m.b.t. 2017","Lasten 2016 en ouder inclusief balanspost ","Ontvangen en geaccepteerde declaraties m.b.t. 2016 en ouder"]
[null,null,null,null,null,null,null,null,"Ontvangen en geaccepteerde declaraties mbt jaar T","Ontvangen en geaccepteerde declaraties mbt jaar T","Ontvangen en geaccepteerde declaraties mbt jaar T","Ontvangen en geaccepteerde declaraties mbt jaar T"]
[null,null,null," Geneesmiddelen"," Academ. ziekenhuizen"]
[null,null,null,null," Algemene ziekenhuizen"]
[null,null,null,null," Zelfst. behandelcentra"]
[null,null,null,null," Overige zorgaanbieders"]
[null,null,null," IC "," Academ. ziekenhuizen"]
[null,null,null,null," Algemene ziekenhuizen"]
[null,null,null,null," Zelfst. behandelcentra"]
[null,null,null,null," Overige zorgaanbieders"]
[null,null,null," TOTAAL code 612",null,null,{"$f":"SUM(G181:G188)","v":0},0,0,0,0,0]
[]
[null,null,null,"  DBC-ZORGPRODUCTEN NAAR \n  INSTELLING",null,null,"Lasten 2018 t/m 3e kwartaal",null,"Lasten 2017 ",null,"Lasten 2016 en ouder"]
[null,null,null,null,null,null,"Lasten 2018 inclusief balanspost","Ontvangen en geaccepteerde declaraties t/m 3e kwartaal 2018","Lasten 2017 inclusief balanspost","Ontvangen en geaccepteerde declaraties m.b.t. 2017","Lasten 2016 en ouder inclusief balanspost ","Ontvangen en geaccepteerde declaraties m.b.t. 2016 en ouder"]
[null,null,null,null,null,"code",null,null,"Ontvangen en geaccepteerde declaraties mbt jaar T","Ontvangen en geaccepteerde declaraties mbt jaar T","Ontvangen en geaccepteerde declaraties mbt jaar T","Ontvangen en geaccepteerde declaraties mbt jaar T"]
[null,null,null," Integrale kosten DBC-zorgproduct \n gereguleerde segment",null," 613.1"]
[null,null,null," Academische ziekenhuizen"]
[null,null,null," Algemene ziekenhuizen"]
[null,null,null," Zelfstandige behandelcentra"]
[null,null,null," Overige zorgaanbieders"]
[null,null,null," TOTAAL code 613.1",null,null,{"$f":"SUM(G195:G198)","v":0},0,0,0,0,0]
[null,null,null," Integrale kosten DBC-zorgproduct \n vrije segment",null," 615.1 "]
[null,null,null," Academische ziekenhuizen"]
[null,null,null," Algemene ziekenhuizen"]
[null,null,null," Zelfstandige behandelcentra"]
[null,null,null," Overige zorgaanbieders"]
[null,null,null," TOTAAL code 615.1",null,null,{"$f":"SUM(G201:G204)","v":0},0,0,0,0,0]
[]
[null,null,null,"SPECIFICATIES VAN KOSTEN EN PRODUCTIE"]
[null,null,null,"RUBRIEK 10 GENEESKUNDIGE GEESTELIJKE GEZONDHEIDSZORG"]
[null,null,null,"  CODE 662 - SPECIALISTISCHE GGZ ZONDER VERBLIJF",null,null,null,null,null,null,null,"Ontvangen en geaccepteerde declaraties tot en met 3e kwartaal 2018"]
[null,null,null,null,null,null,null,null,null,null,null,"Ontvangen en geaccepteerde declaraties mbt jaar T"]
[null,null,null," Instellingen "]
[null,null,null," Zelfstandig gevestigden"]
[null,null,null," TOTAAL code 662",null,null,null,null,null,null,null,{"$f":"SUM(L211:L212)","v":0}]
[]
[]
[null,null,null,{"$f":"NOW()","v":"2018-08-27T17:37:02.050"},null,null,null,null,null,null,null,{"$f":"CONCATENATE(\"Specifieke informatie C, \",LOWER(A173))","v":"Specifieke informatie C, pagina 5"}]
[]
["Pagina 6",null,null,{"$f":"CONCATENATE(\"KWARTAALSTAAT ZVW \", jaar_id,\" \",kwartaal_id,\"E KWARTAAL\")","v":"KWARTAALSTAAT ZVW 2018 3E KWARTAAL"}]
[null,null,null,"SPECIFIEKE INFORMATIE C "]
[null,null,null,{"$f":"IF(naw_uzovi_zorgverzekeraar<>\"0000\",CONCATENATE(UPPER(naw_naam_zorgverzekeraar),\"\",),\"\")","v":""},null,null,null,null,null,null,null,{"$f":"CONCATENATE(\"UZOVI: \",naw_uzovi_zorgverzekeraar)","v":"UZOVI: 0000"}]
[null,null,null,"SPECIFICATIES VAN KOSTEN EN PRODUCTIE"]
[null,null,null,"RUBRIEK 10 GENEESKUNDIGE GEESTELIJKE GEZONDHEIDSZORG - vervolg"]
[null,null,null,"  CODE 665 - GENERALISTISCHE BASIS GGZ",null,null,null,null,null,null,null,"Ontvangen en geaccepteerde declaraties tot en met 3e kwartaal 2018"]
[null,null,null,null,null,null,null,null,null,null,null,"Ontvangen en geaccepteerde declaraties mbt jaar T"]
[null,null,null," Instellingen "]
[null,null,null," Zelfstandig gevestigden"]
[null,null,null," TOTAAL code 665",null,null,null,null,null,null,null,{"$f":"SUM(L225:L226)","v":0}]
[]
[null,null,null,"  CODE 665 - GENERALISTISCHE BASIS GGZ",null,null,null,null,null,null,null,"Ontvangen en geaccepteerde declaraties tot en met 3e kwartaal 2018"]
[null,null,null,null,null,null,null,null,null,null,null,"Ontvangen en geaccepteerde declaraties mbt jaar T"]
[null,null,null," Basis GGZ - Kort"]
[null,null,null," Basis GGZ - Middel"]
[null,null,null," Basis GGZ - Intensief "]
[null,null,null," Basis GGZ - Chronisch"]
[null,null,null," Onvolledig behandeltraject"]
[null,null,null," TOTAAL code 665",null,null,null,null,null,null,null,{"$f":"SUM(L231:L235)","v":0}]
[]
[null,null,null,"  CODE 665 - GENERALISTISCHE BASIS GGZ",null,null,null,null,null,null,null,"AANTAL tot en met 3e kwartaal 2018"]
[]
[null,null,null," Basis GGZ - Kort"]
[null,null,null," Basis GGZ - Middel"]
[null,null,null," Basis GGZ - Intensief "]
[null,null,null," Basis GGZ - Chronisch"]
[null,null,null," Onvolledig behandeltraject"]
[]
[null,null,null,"RUBRIEK 13 DIVERSE OVERIGE KOSTEN"]
[null,null,null," CODE 700 - OVERIGE KOSTEN",null,null,null,null,null,null,null,"Ontvangen en geaccepteerde declaraties tot en met 3e kwartaal 2018"]
[null,null,null,null,null,null,null,null,null,null,null,"Ontvangen en geaccepteerde declaraties mbt jaar T"]
[null,null,null," Kosten i.v.m. beleidsregel innovatie t.b.v. nieuwe zorgprestaties "]
[null,null,null," Kosten Integrale geboortezorg "]
[null,null,null," TOTAAL code 700"]
[]
[]
[null,null,null,{"$f":"NOW()","v":"2018-08-27T17:37:02.050"},null,null,null,null,null,null,null,{"$f":"CONCATENATE(\"Specifieke informatie C, \",LOWER(A218))","v":"Specifieke informatie C, pagina 6"}]
[]
["Pagina 7",null,null,{"$f":"CONCATENATE(\"KWARTAALSTAAT ZVW \", jaar_id,\" \",kwartaal_id,\"E KWARTAAL\")","v":"KWARTAALSTAAT ZVW 2018 3E KWARTAAL"}]
[null,null,null,"SPECIFIEKE INFORMATIE C "]
[null,null,null,{"$f":"IF(naw_uzovi_zorgverzekeraar<>\"0000\",CONCATENATE(UPPER(naw_naam_zorgverzekeraar),\"\",),\"\")","v":""},null,null,null,null,null,null,null,{"$f":"CONCATENATE(\"UZOVI: \",naw_uzovi_zorgverzekeraar)","v":"UZOVI: 0000"}]
[null,null,null,"SPECIFICATIES VAN KOSTEN EN PRODUCTIE"]
[null,null,null,"RUBRIEK 13 DIVERSE OVERIGE KOSTEN"]
[null,null,null," CODE 701 - OVERIGE GENEESKUNDIGE ZORG",null,null,null,null,null,null,null,"Ontvangen en geaccepteerde declaraties tot en met 3e kwartaal 2018"]
[null,null,null,null,null,null,null,null,null,null,null,"Ontvangen en geaccepteerde declaraties mbt jaar T"]
[null,null,null," Geneeskundige individuele zorg bij tuberculose en infectieziekten door GGD'en"]
[null,null,null," Huidtherapie"]
[null,null,null," Orthoptie"]
[null,null,null," Optometrie"]
[null,null,null," Kosten voetzorg bij Diabetes Mellitus type 2"]
[null,null,null," Koemelkallergietest (niet horend bij Multidisciplinaire Zorg) "]
[null,null,null," Regiefunctie complexe wondzorg"]
[null,null,null," TOTAAL code 701"]
[]
[null,null,null," CODE 702 - ZINTUIGLIJK GEHANDICAPTEN",null,null,null,null,null,null,null,"Ontvangen en geaccepteerde declaraties tot en met 3e kwartaal 2018"]
[null,null,null,null,null,null,null,null,null,null,null,"Ontvangen en geaccepteerde declaraties mbt jaar T"]
[null,null,null," Kosten van zorg ivm visuele beperking"]
[null,null,null," Kosten van zorg ivm auditieve beperking"]
[null,null,null," Kosten van zorg ivm taalontwikkelingsstoornis"]
[null,null,null," TOTAAL code 702"]
[]
[null,null,null,"RUBRIEK 15 GRENSOVERSCHRIJDENDE ZORG "]
[null,null,null,"  CODE 720 GRENSOVERSCHRIJDENDE \n                  ZORG",null,null,"Lasten 2018 t/m 3e kwartaal",null,"Lasten 2017 ",null,"Lasten 2016 en ouder"]
[null,null,null,null,null,null,"Lasten 2018 inclusief balanspost","Ontvangen en geaccepteerde declaraties t/m 3e kwartaal 2018","Lasten 2017 inclusief balanspost","Ontvangen en geaccepteerde declaraties m.b.t. 2017","Lasten 2016 en ouder inclusief balanspost ","Ontvangen en geaccepteerde declaraties m.b.t. 2016 en ouder"]
[null,null,null,null,null,"CVZ-code",null,null,"Ontvangen en geaccepteerde declaraties mbt jaar T","Ontvangen en geaccepteerde declaraties mbt jaar T","Ontvangen en geaccepteerde declaraties mbt jaar T","Ontvangen en geaccepteerde declaraties mbt jaar T"]
[null,null,null," Kosten naar toepassing verordening \n of verdrag, via internationaal \n verbindingsorgaan",null,null,null,null,{"$f":"J283","v":0},null,{"$f":"L283","v":0}]
[null,null,null," Kosten gemaakt in het buitenland \n via verzekeraar"]
[null,null,null," TOTAAL code 720",null,null,{"$f":"SUM(G283:G284)","v":0},0,0,0,0,0]
[]
[]
[]
[]
[]
[]
[]
[]
[null,null,null,{"$f":"NOW()","v":"2018-08-27T17:37:02.050"},null,null,null,null,null,null,null,{"$f":"CONCATENATE(\"Specifieke informatie C, \",LOWER(A256))","v":"Specifieke informatie C, pagina 7"}]

{"sheet":"Contractinformatie","index":8,"n_rows":90,"n_cols":11,"rows_kept":90,"cut":false,"hidden":false,"merged":[[38,3,38,9],[39,3,39,9],[42,3,42,9],[84,3,84,9],[79,3,79,10],[80,3,80,9],[81,3,81,9],[82,3,82,9],[83,3,83,9],[40,3,40,9],[89,3,89,4],[59,3,59,9],[60,3,60,9],[62,3,62,9],[63,3,63,9],[70,3,70,9],[67,3,67,9],[68,3,68,9],[69,3,69,9],[66,3,66,9],[73,3,73,9],[74,3,74,10],[75,3,75,9],[76,3,76,9],[77,3,77,9],[78,3,78,9],[11,3,11,9],[13,3,13,9],[14,3,14,9],[19,3,19,9],[15,3,15,9],[12,3,12,10],[16,3,16,9],[17,3,17,10],[18,3,18,9],[33,3,33,9],[25,3,25,9],[27,3,27,9],[34,3,34,9],[29,3,29,9],[32,3,32,9],[28,3,28,9],[20,3,20,9],[37,3,37,9],[36,3,36,9],[58,3,58,9],[54,3,54,9],[55,3,55,9],[53,3,53,9],[52,3,52,9],[57,3,57,9],[56,3,56,9],[45,3,45,4],[43,3,43,9],[26,3,26,9],[35,3,35,9],[21,3,21,9],[22,3,22,9]]}
[null,null,"INVULSPECIFICATIES SPECIFIEKE INFORMATIE C"]
[]
[]
[]
[]
["Pagina 1",null,null,{"$f":"CONCATENATE(\"KWARTAALSTAAT ZVW \", jaar_id,\" \",kwartaal_id,\"E KWARTAAL\")","v":"KWARTAALSTAAT ZVW 2018 3E KWARTAAL"}]
[null,null,null,"SPECIFIEKE INFORMATIE C - CONTRACTINFORMATIE"]
[null,null,null,{"$f":"IF(naw_uzovi_zorgverzekeraar<>\"0000\",CONCATENATE(UPPER(naw_naam_zorgverzekeraar),\"\",),\"\")","v":""},null,null,null,null,null,null,{"$f":"CONCATENATE(\"UZOVI: \",naw_uzovi_zorgverzekeraar)","v":"UZOVI: 0000"}]
[]
[]
[null,null,null," CONTRACTINFORMATIE HUISARTSENZORG EN MULTIDISCIPLINAIRE ZORG, rubriek 01"]
[null,null,null,null,null,null,null,null,null,null,"Lasten inclusief balanspost 2018"]
[null,null,null," Huisartsenzorg, codes 503, 504, 505, 506, 507, 515"]
[null,null,null," Gecontracteerde zorg"]
[null,null,null," Lopende onderhandelingen"]
[null,null,null," Niet gecontracteerde zorg"]
[null,null,null," Subtotaal huisartsenzorg"]
[null,null,null," Multidisciplinaire zorg, codes 510 en 516"]
[null,null,null," Gecontracteerde zorg"]
[null,null,null," Lopende onderhandelingen"]
[null,null,null," Niet gecontracteerde zorg"]
[null,null,null," Subtotaal multidisciplinaire zorg"]
[null,null,null," TOTAAL RUBRIEK 01 "]
[]
[null,null,null," CONTRACTINFORMATIE VERPLEGING EN VERZORGING, rubriek 03"]
[null,null,null,null,null,null,null,null,null,null,"Lasten inclusief balanspost 2018"]
[null,null,null," Gecontracteerde zorg"]
[null,null,null," Lopende onderhandelingen"]
[null,null,null," Niet gecontracteerde zorg"]
[null,null,null," TOTAAL RUBRIEK 03"]
[]
[null,null,null," CONTRACTINFORMATIE MEDISCH SPECIALISTISCHE ZORG, rubriek 06"]
[null,null,null,null,null,null,null,null,null,null,"Lasten inclusief balanspost 2018"]
[null,null,null," Gecontracteerde zorg: aanneemsom"]
[null,null,null," Gecontracteerde zorg: plafond"]
[null,null,null," Gecontracteerde zorg: nacalculatie bij aanneemsommen en plafondcontracten"]
[null,null,null," Gecontracteerde zorg: open einde contract"]
[null,null,null," Subtotaal gecontracteerde zorg"]
[null,null,null," Lopende onderhandelingen"]
[null,null,null," Niet gecontracteerde zorg"]
[null,null,null," TOTAAL RUBRIEK 06 "]
[]
[null,null,null,null,null,null,null,null,null,null,2018]
[null,null,null," Totaal afgesproken maximumomzet plafondcontracten"]
[]
[null,null,null,{"$f":"NOW()","v":"2018-08-27T17:37:02.050"},null,null,null,null,null,null,{"$f":"CONCATENATE(\"Specifieke informatie C - Contractinformatie, \",LOWER(A6))","v":"Specifieke informatie C - Contractinformatie, pagina 1"}]
[]
["Pagina 2",null,null,{"$f":"CONCATENATE(\"KWARTAALSTAAT ZVW \", jaar_id,\" \",kwartaal_id,\"E KWARTAAL\")","v":"KWARTAALSTAAT ZVW 2018 3E KWARTAAL"}]
[null,null,null,"SPECIFIEKE INFORMATIE C - CONTRACTINFORMATIE"]
[null,null,null,{"$f":"IF(naw_uzovi_zorgverzekeraar<>\"0000\",CONCATENATE(UPPER(naw_naam_zorgverzekeraar),\"\",),\"\")","v":""},null,null,null,null,null,null,{"$f":"CONCATENATE(\"UZOVI: \",naw_uzovi_zorgverzekeraar)","v":"UZOVI: 0000"}]
[]
[null,null,null," CONTRACTINFORMATIE GENEESKUNDIGE GEESTELIJKE GEZONDHEIDSZORG, rubriek 10"]
[null,null,null,null,null,null,null,null,null,null,"Lasten inclusief balanspost 2018"]
[null,null,null," Gecontracteerde zorg: aanneemsom"]
[null,null,null," Gecontracteerde zorg: plafond"]
[null,null,null," Gecontracteerde zorg: nacalculatie bij aanneemsommen en plafondcontracten"]
[null,null,null," Gecontracteerde zorg: open einde contract"]
[null,null,null," Subtotaal gecontracteerde zorg"]
[null,null,null," Lopende onderhandelingen"]
[null,null,null," Niet gecontracteerde zorg"]
[null,null,null," TOTAAL RUBRIEK 10"]
[]
[null,null,null,null,null,null,null,null,null,null,2018]
[null,null,null," Totaal afgesproken maximumomzet plafondcontracten"]
[]
[null,null,null," CONTRACTINFORMATIE ZINTUIGLIJK GEHANDICAPTEN, code 702 "]
[null,null,null,null,null,null,null,null,null,null,"Lasten inclusief balanspost 2018"]
[null,null,null," Gecontracteerde zorg"]
[null,null,null," Lopende onderhandelingen"]
[null,null,null," Niet gecontracteerde zorg"]
[null,null,null," TOTAAL CODE 702"]
[]
[null,null,null," CONTRACTINFORMATIE GERIATRISCHE REVALIDATIEZORG & EERSTELIJNSVERBLIJF, rubriek 11"]
[null,null,null,null,null,null,null,null,null,null,"Lasten inclusief balanspost 2018"]
[null,null,null," Geriatrische Revalidatie zorg, code 670"]
[null,null,null," Gecontracteerde zorg"]
[null,null,null," Lopende onderhandelingen"]
[null,null,null," Niet gecontracteerde zorg"]
[null,null,null," Subtotaal Geriatrische Revalidatie zorg"]
[null,null,null," Eerstelijnsverblijf, code 671"]
[null,null,null," Gecontracteerde zorg"]
[null,null,null," Lopende onderhandelingen"]
[null,null,null," Niet gecontracteerde zorg"]
[null,null,null," Subtotaal Eerstelijnsverblijf "]
[null,null,null," TOTAAL RUBRIEK 11"]
[]
[]
[]
[]
[null,null,null,{"$f":"NOW()","v":"2018-08-27T17:37:02.050"},null,null,null,null,null,null,{"$f":"CONCATENATE(\"Specifieke informatie C - Contractinformatie, \",LOWER(A48))","v":"Specifieke informatie C - Contractinformatie, pagina 2"}]

{"sheet":"Wanbetalers","index":9,"n_rows":49,"n_cols":11,"rows_kept":49,"cut":false,"hidden":false,"merged":[[15,3,15,7],[16,3,16,7],[10,3,10,7],[11,3,11,7],[12,3,12,7],[13,3,13,7],[26,3,26,7],[48,3,48,4],[27,3,27,7],[17,3,17,7],[19,3,19,7],[20,3,20,7],[21,3,21,7],[22,3,22,7],[24,3,24,7],[25,3,25,7]]}
[null,null,"INVULSPECIFICATIES SPECIFIEKE INFORMATIE C"]
[]
[]
[]
[]
["Pagina 1",null,null,{"$f":"CONCATENATE(\"KWARTAALSTAAT ZVW \", jaar_id,\" \",kwartaal_id,\"E KWARTAAL\")","v":"KWARTAALSTAAT ZVW 2018 3E KWARTAAL"}]
[null,null,null,"SPECIFIEKE INFORMATIE C - WANBETALERS"]
[null,null,null,{"$f":"IF(naw_uzovi_zorgverzekeraar<>\"0000\",CONCATENATE(UPPER(naw_naam_zorgverzekeraar),\"\",),\"\")","v":""},null,null,null,null,null,null,{"$f":"CONCATENATE(\"UZOVI: \",naw_uzovi_zorgverzekeraar)","v":"UZOVI: 0000"}]
[]
[null,null,null,"SPECIFICATIES VAN WANBETALERS"]
[null,null,null,null,null,null,null,null,"AANTAL \njuli","AANTAL \naugustus","AANTAL \nseptember"]
[null,null,null," Verzekeringnemers die een achterstand in de premiebetaling hebben van \n twee of meer, maar minder dan vier volle maandpremies."]
[null,null,null," Verzekeringnemers die een achterstand in de premiebetaling hebben van \n vier of meer, maar minder dan zes volle maandpremies."]
[null,null,null," Verzekeringnemers die een achterstand in de premiebetaling hebben van \n zes of meer volle maandpremies."]
[]
[null,null,null,null,null,null,null,null,"AANTAL \njuli","AANTAL \naugustus","AANTAL \nseptember"]
[null,null,null," Verstuurde tweedemaandsbrieven"]
[null,null,null," Verstuurde vierdemaandsbrieven"]
[]
[null,null,null,null,null,null,null,null,"AANTAL \njuli","AANTAL \naugustus","AANTAL \nseptember"]
[null,null,null," Debiteuren met een interne betalingsregeling, al dan niet uitsluitend \n voor premiebetaling."]
[null,null,null," Debiteuren met een externe betalingsregeling, al dan niet uitsluitend \n voor premiebetaling."]
[null,null,null," Actieve stabilisatieovereenkomsten voor premiebetaling."]
[]
[null,null,null,null,null,null,null,null,"AANTAL \njuli","AANTAL \naugustus","AANTAL \nseptember"]
[null,null,null," Wanbetalers bij CAK aangemeld met een betalingsachterstand van minder \n dan € 250."]
[null,null,null," Wanbetalers bij CAK aangemeld met een betalingsachterstand van \n meer dan € 250, maar minder dan € 750."]
[null,null,null," Wanbetalers bij CAK aangemeld met een betalingsachterstand van meer \n dan € 750."]
[]
[]
[]
[]
[]
[]
[]
[]
[]
[]
[]
[]
[]
[]
[]
[]
[]
[]
[]
[]
[null,null,null,{"$f":"NOW()","v":"2018-08-27T17:37:02.050"},null,null,null,null,null,null,{"$f":"CONCATENATE(\"Specifieke informatie C - Wanbetalers, \",LOWER(A6))","v":"Specifieke informatie C - Wanbetalers, pagina 1"}]

{"sheet":"Controleoverzicht","index":10,"n_rows":181,"n_cols":12,"rows_kept":181,"cut":false,"hidden":false,"merged":[[9,11,10,11],[19,11,20,11],[19,9,20,9],[19,10,20,10],[21,3,21,8],[17,3,17,8],[19,3,20,8],[27,3,27,8],[22,3,22,8],[15,10,16,10],[121,11,122,11],[118,3,118,8],[102,3,103,8],[106,3,106,8],[112,11,113,11],[112,10,113,10],[112,3,113,8],[107,3,107,8],[102,11,103,11],[115,3,115,8],[121,10,122,10],[117,3,117,8],[121,9,122,9],[112,9,113,9],[121,3,122,8],[109,3,109,8],[108,3,108,8],[110,3,110,8],[162,3,162,8],[151,3,151,8],[150,3,150,8],[149,3,149,8],[160,3,160,8],[159,3,159,8],[158,3,158,8],[157,3,157,8],[153,3,153,8],[152,3,152,8],[166,3,166,11],[155,11,156,11],[155,10,156,10],[161,3,161,8],[155,9,156,9],[165,3,165,10],[155,3,156,8],[164,3,164,10],[37,3,37,8],[66,3,66,8],[146,11,147,11],[146,10,147,10],[146,9,147,9],[146,3,147,8],[104,3,104,8],[102,9,103,9],[130,11,131,11],[130,9,131,9],[130,10,131,10],[134,3,134,8],[132,3,132,8],[136,3,136,8],[135,3,135,8],[148,3,148,8],[133,3,133,8],[126,3,126,8],[130,3,131,8],[127,3,127,8],[128,3,128,8],[137,3,137,8],[76,10,77,10],[116,3,116,8],[114,3,114,8],[119,3,119,8],[105,3,105,8],[76,3,77,8],[102,10,103,10],[125,3,125,8],[124,3,124,8],[123,3,123,8],[76,9,77,9],[78,3,78,8],[79,3,79,8],[80,3,80,8],[81,3,81,8],[92,3,92,8],[82,3,82,8],[83,3,83,8],[91,3,91,8],[73,3,73,8],[76,11,77,11],[64,3,64,8],[68,3,68,8],[62,3,62,8],[31,3,31,8],[33,3,33,8],[38,3,38,8],[67,3,67,8],[61,3,61,8],[36,3,36,8],[34,3,34,8],[59,3,59,8],[35,3,35,8],[32,3,32,8],[40,3,40,8],[41,3,41,8],[39,3,39,8],[65,3,65,8],[63,3,63,8],[60,3,60,8],[58,3,58,8],[43,3,43,8],[85,3,85,8],[86,3,86,8],[87,3,87,8],[88,3,88,8],[89,3,89,8],[90,3,90,8],[72,3,72,8],[69,3,69,8],[71,3,71,8],[70,3,70,8],[56,3,57,8],[42,3,42,8],[44,3,44,8],[45,3,45,8],[56,11,57,11],[56,10,57,10],[56,9,57,9],[9,9,10,9],[84,3,84,8],[9,3,10,8],[11,3,11,8],[15,3,16,8],[12,3,12,8],[13,3,13,8],[29,3,29,8],[30,3,30,8],[28,3,28,8],[9,10,10,10],[24,3,24,8],[26,3,26,8],[23,3,23,8],[25,3,25,8],[15,11,16,11],[15,9,16,9],[176,3,176,8],[169,3,170,8],[169,9,170,9],[169,10,170,10],[169,11,170,11],[171,3,171,8],[172,3,172,8],[173,3,173,8],[174,3,174,8],[175,3,175,8]]}
[null,null,"CONTROLEOVERZICHT"]
[]
[]
[]
[]
["Pagina 1",null,null,{"$f":"CONCATENATE(\"KWARTAALSTAAT ZVW \", jaar_id,\" \",kwartaal_id,\"E KWARTAAL\")","v":"KWARTAALSTAAT ZVW 2018 3E KWARTAAL"}]
[null,null,null,"CONTROLEOVERZICHT"]
[null,null,null,{"$f":"IF(naw_uzovi_zorgverzekeraar<>\"0000\",CONCATENATE(UPPER(naw_naam_zorgverzekeraar),\"\",),\"\")","v":""},null,null,null,null,null,null,null,{"$f":"CONCATENATE(\"UZOVI: \",naw_uzovi_zorgverzekeraar)","v":"UZOVI: 0000"}]
[null,null,null,"SPECIFIEKE INFORMATIE A"]
[null,null,null," VERZEKERDENSTANDEN",null,null,null,null,null,"AUGUSTUS","SEPTEMBER","OKTOBER"]
[]
[null,null,null," Verzekerdenstand naar risicoklasse",null,null,null,null,null,{"$f":"'Specifieke informatie A'!L79","v":0},{"$f":"'Specifieke informatie A'!L124","v":0},{"$f":"'Specifieke informatie A'!L169","v":0}]
[null,null,null," Verzekerdenstand naar nominale premie",null,null,null,null,null,{"$f":"'Specifieke informatie A'!L86","v":0},{"$f":"'Specifieke informatie A'!L131","v":0},{"$f":"'Specifieke informatie A'!L176","v":0}]
[null,null,null," Verschil",null,null,null,null,null,{"$f":"IF(J12<>J13,J12-J13,\"\")","v":""},{"$f":"IF(K12<>K13,K12-K13,\"\")","v":""},""]
[]
[null,null,null," KOSTENSPECIFICATIES",null,null,null,null,null,"VOLGENS\nKOSTENVER- \nZAMELSTAAT","VOLGENS\nDETAIL- \nSPECIFICATIE ","VERSCHIL"]
[]
[null,null,null," Totaal kosten t.l.v. deelbijdragen (totaal lasten t/m rubriek 16)\n - inclusief balanspost",null,null,null,null,null,{"$f":"Kostenverzamelstaat!I106","v":0},{"$f":"'Specifieke informatie A'!L17","v":0},{"$f":"IF(J18<>K18,J18-K18,\"\")","v":""}]
[]
[null,null,null," KOSTENVERZAMELSTAAT",null,null,null,null,null,"Kosten balanspost 2016","Kosten balanspost 2017","Kosten balanspost 2018"]
[]
[null,null,null," 503 Bijzondere betalingen",null,null,null,null,null,{"$f":"Kostenverzamelstaat!M16-Kostenverzamelstaat!N16","v":0},{"$f":"Kostenverzamelstaat!K16-Kostenverzamelstaat!L16","v":0},{"$f":"Kostenverzamelstaat!I16-Kostenverzamelstaat!J16","v":0}]
[null,null,null," 504 Avond-, nacht- en weekenddiensten",null,null,null,null,null,{"$f":"Kostenverzamelstaat!M17-Kostenverzamelstaat!N17","v":0},{"$f":"Kostenverzamelstaat!K17-Kostenverzamelstaat!L17","v":0},{"$f":"Kostenverzamelstaat!I17-Kostenverzamelstaat!J17","v":0}]
[null,null,null," 505 Inschrijftarieven",null,null,null,null,null,{"$f":"Kostenverzamelstaat!M18-Kostenverzamelstaat!N18","v":0},{"$f":"Kostenverzamelstaat!K18-Kostenverzamelstaat!L18","v":0},{"$f":"Kostenverzamelstaat!I18-Kostenverzamelstaat!J18","v":0}]
[null,null,null," 506 Consulttarieven",null,null,null,null,null,{"$f":"Kostenverzamelstaat!M19-Kostenverzamelstaat!N19","v":0},{"$f":"Kostenverzamelstaat!K19-Kostenverzamelstaat!L19","v":0},{"$f":"Kostenverzamelstaat!I19-Kostenverzamelstaat!J19","v":0}]
[null,null,null," 507 Overige tarieven",null,null,null,null,null,{"$f":"Kostenverzamelstaat!M20-Kostenverzamelstaat!N20","v":0},{"$f":"Kostenverzamelstaat!K20-Kostenverzamelstaat!L20","v":0},{"$f":"Kostenverzamelstaat!I20-Kostenverzamelstaat!J20","v":0}]
[null,null,null," 510 Multidisciplinaire zorg",null,null,null,null,null,{"$f":"Kostenverzamelstaat!M21-Kostenverzamelstaat!N21","v":0},{"$f":"Kostenverzamelstaat!K21-Kostenverzamelstaat!L21","v":0},{"$f":"Kostenverzamelstaat!I21-Kostenverzamelstaat!J21","v":0}]
[null,null,null," 515 Resultaatbeloning en zorgvernieuwing huisartsen",null,null,null,null,null,{"$f":"Kostenverzamelstaat!M22-Kostenverzamelstaat!N22","v":0},{"$f":"Kostenverzamelstaat!K22-Kostenverzamelstaat!L22","v":0},{"$f":"Kostenverzamelstaat!I22-Kostenverzamelstaat!J22","v":0}]
[null,null,null," 516 Resultaatbeloning en zorgvernieuwing MDZ",null,null,null,null,null,{"$f":"Kostenverzamelstaat!M23-Kostenverzamelstaat!N23","v":0},{"$f":"Kostenverzamelstaat!K23-Kostenverzamelstaat!L23","v":0},{"$f":"Kostenverzamelstaat!I23-Kostenverzamelstaat!J23","v":0}]
[null,null,null," 520 Farmaceutische zorg",null,null,null,null,null,{"$f":"Kostenverzamelstaat!M26-Kostenverzamelstaat!N26","v":0},{"$f":"Kostenverzamelstaat!K26-Kostenverzamelstaat!L26","v":0},{"$f":"Kostenverzamelstaat!I26-Kostenverzamelstaat!J26","v":0}]
[null,null,null," 530 Kosten van verpleging en verzorging",null,null,null,null,null,{"$f":"Kostenverzamelstaat!M28-Kostenverzamelstaat!N28","v":0},{"$f":"Kostenverzamelstaat!K28-Kostenverzamelstaat!L28","v":0},{"$f":"Kostenverzamelstaat!I28-Kostenverzamelstaat!J28","v":0}]
[null,null,null," 545 Kosten specialisten mondziekten en kaakchirurgie",null,null,null,null,null,{"$f":"Kostenverzamelstaat!M52-Kostenverzamelstaat!N52","v":0},{"$f":"Kostenverzamelstaat!K52-Kostenverzamelstaat!L52","v":0},{"$f":"Kostenverzamelstaat!I52-Kostenverzamelstaat!J52","v":0}]
[null,null,null," 560.1 Kosten mondzorg volwassen verzekerden",null,null,null,null,null,{"$f":"Kostenverzamelstaat!M30-Kostenverzamelstaat!N30","v":0},{"$f":"Kostenverzamelstaat!K30-Kostenverzamelstaat!L30","v":0},{"$f":"Kostenverzamelstaat!I30-Kostenverzamelstaat!J30","v":0}]
[null,null,null," 560.2 Kosten mondzorg jeugdige verzekerden",null,null,null,null,null,{"$f":"Kostenverzamelstaat!M31-Kostenverzamelstaat!N31","v":0},{"$f":"Kostenverzamelstaat!K31-Kostenverzamelstaat!L31","v":0},{"$f":"Kostenverzamelstaat!I31-Kostenverzamelstaat!J31","v":0}]
[null,null,null," 561 Kosten gebitsprothesen",null,null,null,null,null,{"$f":"Kostenverzamelstaat!M32-Kostenverzamelstaat!N32","v":0},{"$f":"Kostenverzamelstaat!K32-Kostenverzamelstaat!L32","v":0},{"$f":"Kostenverzamelstaat!I32-Kostenverzamelstaat!J32","v":0}]
[null,null,null," 580 Kosten verloskundige zorg door verloskundigen",null,null,null,null,null,{"$f":"Kostenverzamelstaat!M35-Kostenverzamelstaat!N35","v":0},{"$f":"Kostenverzamelstaat!K35-Kostenverzamelstaat!L35","v":0},{"$f":"Kostenverzamelstaat!I35-Kostenverzamelstaat!J35","v":0}]
[null,null,null," 581 Kosten verloskundige zorg door huisartsen",null,null,null,null,null,{"$f":"Kostenverzamelstaat!M36-Kostenverzamelstaat!N36","v":0},{"$f":"Kostenverzamelstaat!K36-Kostenverzamelstaat!L36","v":0},{"$f":"Kostenverzamelstaat!I36-Kostenverzamelstaat!J36","v":0}]
[null,null,null," 610 Overige kosten ziekenhuiszorg en curatieve zorg",null,null,null,null,null,{"$f":"Kostenverzamelstaat!M53-Kostenverzamelstaat!N53","v":0},{"$f":"Kostenverzamelstaat!K53-Kostenverzamelstaat!L53","v":0},{"$f":"Kostenverzamelstaat!I53-Kostenverzamelstaat!J53","v":0}]
[null,null,null," 611 Overige zorgproducten",null,null,null,null,null,{"$f":"Kostenverzamelstaat!M54-Kostenverzamelstaat!N54","v":0},{"$f":"Kostenverzamelstaat!K54-Kostenverzamelstaat!L54","v":0},{"$f":"Kostenverzamelstaat!I54-Kostenverzamelstaat!J54","v":0}]
[null,null,null," 612 Kosten add-ons ",null,null,null,null,null,{"$f":"Kostenverzamelstaat!M55-Kostenverzamelstaat!N55","v":0},{"$f":"Kostenverzamelstaat!K55-Kostenverzamelstaat!L55","v":0},{"$f":"Kostenverzamelstaat!I55-Kostenverzamelstaat!J55","v":0}]
[null,null,null," 613.1 Integrale kosten van DBC-zorgproduct gereguleerde segment ",null,null,null,null,null,{"$f":"Kostenverzamelstaat!M56-Kostenverzamelstaat!N56","v":0},{"$f":"Kostenverzamelstaat!K56-Kostenverzamelstaat!L56","v":0},{"$f":"Kostenverzamelstaat!I56-Kostenverzamelstaat!J56","v":0}]
[null,null,null," 615.1 Integrale kosten van DBC-zorgproduct vrije segment",null,null,null,null,null,{"$f":"Kostenverzamelstaat!M57-Kostenverzamelstaat!N57","v":0},{"$f":"Kostenverzamelstaat!K57-Kostenverzamelstaat!L57","v":0},{"$f":"Kostenverzamelstaat!I57-Kostenverzamelstaat!J57","v":0}]
[null,null,null," 619 Integrale kosten extramuraal werkende specialisten",null,null,null,null,null,{"$f":"Kostenverzamelstaat!M58-Kostenverzamelstaat!N58","v":0},{"$f":"Kostenverzamelstaat!K58-Kostenverzamelstaat!L58","v":0},{"$f":"Kostenverzamelstaat!I58-Kostenverzamelstaat!J58","v":0}]
[null,null,null," 620 Kosten fysiotherapie",null,null,null,null,null,{"$f":"Kostenverzamelstaat!M61-Kostenverzamelstaat!N61","v":0},{"$f":"Kostenverzamelstaat!K61-Kostenverzamelstaat!L61","v":0},{"$f":"Kostenverzamelstaat!I61-Kostenverzamelstaat!J61","v":0}]
[null,null,null," 621 Kosten oefentherapie Mensendieck/Cesar",null,null,null,null,null,{"$f":"Kostenverzamelstaat!M62-Kostenverzamelstaat!N62","v":0},{"$f":"Kostenverzamelstaat!K62-Kostenverzamelstaat!L62","v":0},{"$f":"Kostenverzamelstaat!I62-Kostenverzamelstaat!J62","v":0}]
[null,null,null," 623 Kosten logopedie",null,null,null,null,null,{"$f":"Kostenverzamelstaat!M63-Kostenverzamelstaat!N63","v":0},{"$f":"Kostenverzamelstaat!K63-Kostenverzamelstaat!L63","v":0},{"$f":"Kostenverzamelstaat!I63-Kostenverzamelstaat!J63","v":0}]
[]
[]
[]
[]
[null,null,null,{"$f":"NOW()","v":"2018-08-27T17:37:02.050"},null,null,null,null,null,null,null,{"$f":"CONCATENATE(\"Controleoverzicht \",LOWER(A6))","v":"Controleoverzicht pagina 1"}]
[]
["Pagina 2",null,null,{"$f":"CONCATENATE(\"KWARTAALSTAAT ZVW \", jaar_id,\" \",kwartaal_id,\"E KWARTAAL\")","v":"KWARTAALSTAAT ZVW 2018 3E KWARTAAL"}]
[null,null,null,"CONTROLEOVERZICHT"]
[null,null,null,{"$f":"IF(naw_uzovi_zorgverzekeraar<>\"0000\",CONCATENATE(UPPER(naw_naam_zorgverzekeraar),\"\",),\"\")","v":""},null,null,null,null,null,null,null,{"$f":"CONCATENATE(\"UZOVI: \",naw_uzovi_zorgverzekeraar)","v":"UZOVI: 0000"}]
[null,null,null,"SPECIFIEKE INFORMATIE A - vervolg"]
[null,null,null," KOSTENVERZAMELSTAAT",null,null,null,null,null,"Kosten balanspost 2016","Kosten balanspost 2017","Kosten balanspost 2018"]
[]
[null,null,null," 624 Kosten ergotherapie",null,null,null,null,null,{"$f":"Kostenverzamelstaat!M64-Kostenverzamelstaat!N64","v":0},{"$f":"Kostenverzamelstaat!K64-Kostenverzamelstaat!L64","v":0},{"$f":"Kostenverzamelstaat!I64-Kostenverzamelstaat!J64","v":0}]
[null,null,null," 625 Kosten dieetadvisering ",null,null,null,null,null,{"$f":"Kostenverzamelstaat!M65-Kostenverzamelstaat!N65","v":0},{"$f":"Kostenverzamelstaat!K65-Kostenverzamelstaat!L65","v":0},{"$f":"Kostenverzamelstaat!I65-Kostenverzamelstaat!J65","v":0}]
[null,null,null," 640 Hulpmiddelenzorg",null,null,null,null,null,{"$f":"Kostenverzamelstaat!M68-Kostenverzamelstaat!N68","v":0},{"$f":"Kostenverzamelstaat!K68-Kostenverzamelstaat!L68","v":0},{"$f":"Kostenverzamelstaat!I68-Kostenverzamelstaat!J68","v":0}]
[null,null,null," 650 Kosten vervoer per ambulance/helikopter",null,null,null,null,null,{"$f":"Kostenverzamelstaat!M70-Kostenverzamelstaat!N70","v":0},{"$f":"Kostenverzamelstaat!K70-Kostenverzamelstaat!L70","v":0},{"$f":"Kostenverzamelstaat!I70-Kostenverzamelstaat!J70","v":0}]
[null,null,null," 651 Kosten vervoer per openbaar vervoer, taxi en eigen auto",null,null,null,null,null,{"$f":"Kostenverzamelstaat!M71-Kostenverzamelstaat!N71","v":0},{"$f":"Kostenverzamelstaat!K71-Kostenverzamelstaat!L71","v":0},{"$f":"Kostenverzamelstaat!I71-Kostenverzamelstaat!J71","v":0}]
[null,null,null," 661 Kosten specialistische GGZ met verblijf",null,null,null,null,null,{"$f":"Kostenverzamelstaat!M86-Kostenverzamelstaat!N86","v":0},{"$f":"Kostenverzamelstaat!K86-Kostenverzamelstaat!L86","v":0},{"$f":"Kostenverzamelstaat!I86-Kostenverzamelstaat!J86","v":0}]
[null,null,null," 661.1 Kosten LGGZ (langdurige GGZ, jaar 2 en 3)",null,null,null,null,null,{"$f":"Kostenverzamelstaat!M87-Kostenverzamelstaat!N87","v":0},{"$f":"Kostenverzamelstaat!K87-Kostenverzamelstaat!L87","v":0},{"$f":"Kostenverzamelstaat!I87-Kostenverzamelstaat!J87","v":0}]
[null,null,null," 662 Kosten specialistische GGZ zonder verblijf",null,null,null,null,null,{"$f":"Kostenverzamelstaat!M88-Kostenverzamelstaat!N88","v":0},{"$f":"Kostenverzamelstaat!K88-Kostenverzamelstaat!L88","v":0},{"$f":"Kostenverzamelstaat!I88-Kostenverzamelstaat!J88","v":0}]
[null,null,null," 665 Generalistische basis GGZ",null,null,null,null,null,{"$f":"Kostenverzamelstaat!M89-Kostenverzamelstaat!N89","v":0},{"$f":"Kostenverzamelstaat!K89-Kostenverzamelstaat!L89","v":0},{"$f":"Kostenverzamelstaat!I89-Kostenverzamelstaat!J89","v":0}]
[null,null,null," 670 Geriatrische revalidatiezorg",null,null,null,null,null,{"$f":"Kostenverzamelstaat!M92-Kostenverzamelstaat!N92","v":0},{"$f":"Kostenverzamelstaat!K92-Kostenverzamelstaat!L92","v":0},{"$f":"Kostenverzamelstaat!I92-Kostenverzamelstaat!J92","v":0}]
[null,null,null," 680 Kraamzorg",null,null,null,null,null,{"$f":"Kostenverzamelstaat!M96-Kostenverzamelstaat!N96","v":0},{"$f":"Kostenverzamelstaat!K96-Kostenverzamelstaat!L96","v":0},{"$f":"Kostenverzamelstaat!I96-Kostenverzamelstaat!J96","v":0}]
[null,null,null," 700 Overige kosten",null,null,null,null,null,{"$f":"Kostenverzamelstaat!M98-Kostenverzamelstaat!N98","v":0},{"$f":"Kostenverzamelstaat!K98-Kostenverzamelstaat!L98","v":0},{"$f":"Kostenverzamelstaat!I98-Kostenverzamelstaat!J98","v":0}]
[null,null,null," 701 Overige geneeskundige zorg",null,null,null,null,null,{"$f":"Kostenverzamelstaat!M99-Kostenverzamelstaat!N99","v":0},{"$f":"Kostenverzamelstaat!K99-Kostenverzamelstaat!L99","v":0},{"$f":"Kostenverzamelstaat!I99-Kostenverzamelstaat!J99","v":0}]
[null,null,null," 702 Kosten van zorg zintuiglijk gehandicapten ",null,null,null,null,null,{"$f":"Kostenverzamelstaat!M100-Kostenverzamelstaat!N100","v":0},{"$f":"Kostenverzamelstaat!K100-Kostenverzamelstaat!L100","v":0},{"$f":"Kostenverzamelstaat!I100-Kostenverzamelstaat!J100","v":0}]
[null,null,null," 720 Grensoverschrijdende zorg",null,null,null,null,null,{"$f":"Kostenverzamelstaat!M103-Kostenverzamelstaat!N103","v":0},{"$f":"Kostenverzamelstaat!K103-Kostenverzamelstaat!L103","v":0},{"$f":"Kostenverzamelstaat!I103-Kostenverzamelstaat!J103","v":0}]
[null,null,null," 730 Kwaliteitsgelden",null,null,null,null,null,{"$f":"Kostenverzamelstaat!M105-Kostenverzamelstaat!N105","v":0},{"$f":"Kostenverzamelstaat!K105-Kostenverzamelstaat!L105","v":0},{"$f":"Kostenverzamelstaat!I105-Kostenverzamelstaat!J105","v":0}]
[]
[null,null,null,"VERGELIJKING SPECIFIEKE INFORMATIE A EN C"]
[null,null,null,"KOSTEN PER CODENUMMER\n(ONTVANGEN EN GEACCEPTEERDE DECLARATIES \nT/M 3E KWARTAAL 2018)",null,null,null,null,null,"Spec. inform. A\nkostenver-\nzamelstaat","Spec. inform. C\ndetail-\ninformatie","VERSCHIL"]
[]
[null,null,null," 503 Bijzondere betalingen"]
[null,null,null," 506 Consulttarieven"]
[null,null,null," 507 Overige tarieven"]
[null,null,null," 510 Multidisciplinaire zorg"]
[null,null,null," 515 Resultaatbeloning en zorgvernieuwing huisartsen"]
[null,null,null," 516 Resultaatbeloning en zorgvernieuwing MDZ"]
[null,null,null," 530 Kosten van verpleging en verzorging"]
[null,null,null," 560.1 Mondzorg volwassen verzekerden"]
[null,null,null," 560.2 Mondzorg jeugdige verzekerden"]
[null,null,null," 561 Gebitsprothesen"]
[null,null,null," 610 Overige kosten ziekenhuiszorg en curatieve zorg",null,null,null,null,null,{"$f":"Kostenverzamelstaat!J53","v":0},{"$f":"'Specifieke informatie C'!H159","v":0},{"$f":"J89-K89","v":0}]
[null,null,null," 611 Overige zorgproducten (naar instelling)",null,null,null,null,null,{"$f":"Kostenverzamelstaat!J54","v":0},{"$f":"'Specifieke informatie C'!H169","v":0},0]
[null,null,null," 612 Kosten add-on's ",null,null,null,null,null,{"$f":"Kostenverzamelstaat!J55","v":0},{"$f":"'Specifieke informatie C'!H189","v":0},0]
[null,null,null," 613.1 Integrale kosten DBC-zorgproduct gereguleerd segment",null,null,null,null,null,{"$f":"Kostenverzamelstaat!J56","v":0},{"$f":"'Specifieke informatie C'!H199","v":0},0]
[null,null,null," 615.1 Integrale kosten DBC-zorgproduct vrije segment",null,null,null,null,null,{"$f":"Kostenverzamelstaat!J57","v":0},{"$f":"'Specifieke informatie C'!H205","v":0},0]
[]
[]
[null,null,null,{"$f":"NOW()","v":"2018-08-27T17:37:02.050"},null,null,null,null,null,null,null,{"$f":"CONCATENATE(\"Controleoverzicht \",LOWER(A53))","v":"Controleoverzicht pagina 2"}]
[]
["Pagina 3",null,null,{"$f":"CONCATENATE(\"KWARTAALSTAAT ZVW \", jaar_id,\" \",kwartaal_id,\"E KWARTAAL\")","v":"KWARTAALSTAAT ZVW 2018 3E KWARTAAL"}]
[null,null,null,"CONTROLEOVERZICHT"]
[null,null,null,{"$f":"IF(naw_uzovi_zorgverzekeraar<>\"0000\",CONCATENATE(UPPER(naw_naam_zorgverzekeraar),\"\",),\"\")","v":""},null,null,null,null,null,null,null,{"$f":"CONCATENATE(\"UZOVI: \",naw_uzovi_zorgverzekeraar)","v":"UZOVI: 0000"}]
[]
[null,null,null,"VERGELIJKING SPECIFIEKE INFORMATIE A EN C - vervolg"]
[null,null,null,"KOSTEN PER CODENUMMER \n(ONTVANGEN EN GEACCEPTEERDE DECLARATIES \n T/M 3E KWARTAAL 2018)",null,null,null,null,null,"Spec. inform. A\nkostenver-\nzamelstaat","Spec. inform. C\ndetail-\ninformatie","VERSCHIL"]
[]
[null,null,null," 662 GGZ zonder verblijf ",null,null,null,null,null,{"$f":"Kostenverzamelstaat!J88","v":0},{"$f":"'Specifieke informatie C'!L213","v":0},{"$f":"J105-K105","v":0}]
[null,null,null," 665 Generalistische basis GGZ (naar instelling)",null,null,null,null,null,{"$f":"Kostenverzamelstaat!J89","v":0},{"$f":"'Specifieke informatie C'!L227","v":0},{"$f":"J106-K106","v":0}]
[null,null,null," 665 Generalistische basis GGZ",null,null,null,null,null,{"$f":"Kostenverzamelstaat!J89","v":0},{"$f":"'Specifieke informatie C'!L236","v":0},0]
[null,null,null," 700 Overige kosten"]
[null,null,null," 701 Overige geneeskundige zorg"]
[null,null,null," 702 Kosten van zorg zintuiglijk gehandicapten "]
[null,null,null," 720 Grensoverschrijdende zorg",null,null,null,null,null,{"$f":"Kostenverzamelstaat!J103","v":0},{"$f":"'Specifieke informatie C'!H285","v":0},{"$f":"J111-K111","v":0}]
[]
[null,null,null," KOSTEN PER CODENUMMER (KOSTEN INCLUSIEF BALANSPOST) 2018",null,null,null,null,null,"Spec. inform. A\nkostenver-\nzamelstaat","Spec. inform. C\ndetail-\ninformatie","VERSCHIL"]
[]
[null,null,null," 610 Overige kosten ziekenhuiszorg en curatieve zorg",null,null,null,null,null,{"$f":"Kostenverzamelstaat!I53","v":0},{"$f":"'Specifieke informatie C'!G159","v":0},{"$f":"J115-K115","v":0}]
[null,null,null," 611 Overige zorgproducten (naar instelling)",null,null,null,null,null,{"$f":"Kostenverzamelstaat!I54","v":0},{"$f":"'Specifieke informatie C'!G169","v":0},{"$f":"J116-K116","v":0}]
[null,null,null," 612 Kosten add-on's ",null,null,null,null,null,{"$f":"Kostenverzamelstaat!I55","v":0},{"$f":"'Specifieke informatie C'!G189","v":0},0]
[null,null,null," 613.1 Integrale kosten DBC-zorgproduct gereguleerd segment",null,null,null,null,null,{"$f":"Kostenverzamelstaat!I56","v":0},{"$f":"'Specifieke informatie C'!G199","v":0},0]
[null,null,null," 615.1 Integrale kosten DBC-zorgproduct vrije segment",null,null,null,null,null,{"$f":"Kostenverzamelstaat!I57","v":0},{"$f":"'Specifieke informatie C'!G205","v":0},0]
[null,null,null," 720 Grensoverschrijdende zorg",null,null,null,null,null,{"$f":"Kostenverzamelstaat!I103","v":0},{"$f":"'Specifieke informatie C'!G285","v":0},0]
[]
[null,null,null," KOSTEN PER CODENUMMER (KOSTEN INCLUSIEF BALANSPOST) 2017",null,null,null,null,null,"Spec. inform. A\nkostenver-\nzamelstaat","Spec. inform. C\ndetail-\ninformatie","VERSCHIL"]
[]
[null,null,null," 610 Overige kosten ziekenhuiszorg en curatieve zorg",null,null,null,null,null,{"$f":"Kostenverzamelstaat!K53","v":0},{"$f":"'Specifieke informatie C'!I159","v":0},{"$f":"J124-K124","v":0}]
[null,null,null," 611 Overige zorgproducten (naar instelling)",null,null,null,null,null,{"$f":"Kostenverzamelstaat!K54","v":0},{"$f":"'Specifieke informatie C'!I169","v":0},{"$f":"J125-K125","v":0}]
[null,null,null," 612 Kosten add-on's ",null,null,null,null,null,{"$f":"Kostenverzamelstaat!K55","v":0},{"$f":"'Specifieke informatie C'!I189","v":0},0]
[null,null,null," 613.1 Integrale kosten DBC-zorgproduct gereguleerd segment",null,null,null,null,null,{"$f":"Kostenverzamelstaat!K56","v":0},{"$f":"'Specifieke informatie C'!I199","v":0},0]
[null,null,null," 615.1 Integrale kosten DBC-zorgproduct vrije segment",null,null,null,null,null,{"$f":"Kostenverzamelstaat!K57","v":0},{"$f":"'Specifieke informatie C'!I205","v":0},0]
[null,null,null," 720 Grensoverschrijdende zorg",null,null,null,null,null,{"$f":"Kostenverzamelstaat!K103","v":0},{"$f":"'Specifieke informatie C'!I285","v":0},{"$f":"J129-K129","v":0}]
[]
[null,null,null," KOSTEN PER CODENUMMER \n (ONTVANGEN EN GEACCEPTEERDE DECLARATIES) M.B.T. 2017 ",null,null,null,null,null,"Spec. inform. A\nkostenver-\nzamelstaat","Spec. inform. C\ndetail-\ninformatie","VERSCHIL"]
[]
[null,null,null," 610 Overige kosten ziekenhuiszorg en curatieve zorg",null,null,null,null,null,{"$f":"Kostenverzamelstaat!L53","v":0},{"$f":"'Specifieke informatie C'!J159","v":0},{"$f":"J133-K133","v":0}]
[null,null,null," 611 Overige zorgproducten (naar instelling)",null,null,null,null,null,{"$f":"Kostenverzamelstaat!L54","v":0},{"$f":"'Specifieke informatie C'!J169","v":0},{"$f":"J134-K134","v":0}]
[null,null,null," 612 Kosten add-on's ",null,null,null,null,null,{"$f":"Kostenverzamelstaat!L55","v":0},{"$f":"'Specifieke informatie C'!J189","v":0},0]
[null,null,null," 613.1 Integrale kosten DBC-zorgproduct gereguleerd segment",null,null,null,null,null,{"$f":"Kostenverzamelstaat!L56","v":0},{"$f":"'Specifieke informatie C'!J199","v":0},0]
[null,null,null," 615.1 Integrale kosten DBC-zorgproduct vrije segment",null,null,null,null,null,{"$f":"Kostenverzamelstaat!L57","v":0},{"$f":"'Specifieke informatie C'!J205","v":0},0]
[null,null,null," 720 Grensoverschrijdende zorg",null,null,null,null,null,{"$f":"Kostenverzamelstaat!L103","v":0},{"$f":"'Specifieke informatie C'!J285","v":0},{"$f":"J138-K138","v":0}]
[null,null,null,{"$f":"NOW()","v":"2018-08-27T17:37:02.050"},null,null,null,null,null,null,null,{"$f":"CONCATENATE(\"Controleoverzicht \",LOWER(A98))","v":"Controleoverzicht pagina 3"}]
[]
["Pagina 4",null,null,{"$f":"CONCATENATE(\"KWARTAALSTAAT ZVW \", jaar_id,\" \",kwartaal_id,\"E KWARTAAL\")","v":"KWARTAALSTAAT ZVW 2018 3E KWARTAAL"}]
[null,null,null,"CONTROLEOVERZICHT"]
[null,null,null,{"$f":"IF(naw_uzovi_zorgverzekeraar<>\"0000\",CONCATENATE(UPPER(naw_naam_zorgverzekeraar),\"\",),\"\")","v":""},null,null,null,null,null,null,null,{"$f":"CONCATENATE(\"UZOVI: \",naw_uzovi_zorgverzekeraar)","v":"UZOVI: 0000"}]
[]
[]
[null,null,null,"VERGELIJKING SPECIFIEKE INFORMATIE A EN C - vervolg"]
[null,null,null," KOSTEN PER CODENUMMER \n (KOSTEN INCLUSIEF BALANSPOST) 2016 EN OUDER",null,null,null,null,null,"Spec. inform. A\nkostenver-\nzamelstaat","Spec. inform. C\ndetail-\ninformatie","VERSCHIL"]
[]
[null,null,null," 610 Overige kosten ziekenhuiszorg en curatieve zorg",null,null,null,null,null,{"$f":"Kostenverzamelstaat!M53","v":0},{"$f":"'Specifieke informatie C'!K159","v":0},{"$f":"J149-K149","v":0}]
[null,null,null," 611 Overige zorgproducten (naar instelling)",null,null,null,null,null,{"$f":"Kostenverzamelstaat!M54","v":0},{"$f":"'Specifieke informatie C'!K169","v":0},{"$f":"J150-K150","v":0}]
[null,null,null," 612 Kosten add-on's ",null,null,null,null,null,{"$f":"Kostenverzamelstaat!M55","v":0},{"$f":"'Specifieke informatie C'!K189","v":0},0]
[null,null,null," 613.1 Integrale kosten DBC-zorgproduct gereguleerd segment",null,null,null,null,null,{"$f":"Kostenverzamelstaat!M56","v":0},{"$f":"'Specifieke informatie C'!K199","v":0},0]
[null,null,null," 615.1 Integrale kosten DBC-zorgproduct vrije segment",null,null,null,null,null,{"$f":"Kostenverzamelstaat!M57","v":0},{"$f":"'Specifieke informatie C'!K205","v":0},0]
[null,null,null," 720 Grensoverschrijdende zorg",null,null,null,null,null,{"$f":"Kostenverzamelstaat!M103","v":0},{"$f":"'Specifieke informatie C'!K285","v":0},{"$f":"J154-K154","v":0}]
[]
[null,null,null,"KOSTEN PER CODENUMMER \n(ONTVANGEN EN GEACCEPTEERDE DECLARATIES \n M.B.T. 2016 EN OUDER)",null,null,null,null,null,"Spec. inform. A\nkostenver-\nzamelstaat","Spec. inform. C\ndetail-\ninformatie","VERSCHIL"]
[]
[null,null,null," 610 Overige kosten ziekenhuiszorg en curatieve zorg",null,null,null,null,null,{"$f":"Kostenverzamelstaat!N53","v":0},{"$f":"'Specifieke informatie C'!L159","v":0},{"$f":"J158-K158","v":0}]
[null,null,null," 611 Overige zorgproducten (naar instelling)",null,null,null,null,null,{"$f":"Kostenverzamelstaat!N54","v":0},{"$f":"'Specifieke informatie C'!L169","v":0},{"$f":"J159-K159","v":0}]
[null,null,null," 612 Kosten add-on's ",null,null,null,null,null,{"$f":"Kostenverzamelstaat!N55","v":0},{"$f":"'Specifieke informatie C'!L189","v":0},0]
[null,null,null," 613.1 Integrale kosten DBC-zorgproduct gereguleerd segment",null,null,null,null,null,{"$f":"Kostenverzamelstaat!N56","v":0},{"$f":"'Specifieke informatie C'!L199","v":0},0]
[null,null,null," 615.1 Integrale kosten DBC-zorgproduct vrije segment",null,null,null,null,null,{"$f":"Kostenverzamelstaat!N57","v":0},{"$f":"'Specifieke informatie C'!L205","v":0},0]
[null,null,null," 720 Grensoverschrijdende zorg",null,null,null,null,null,{"$f":"Kostenverzamelstaat!N103","v":0},{"$f":"'Specifieke informatie C'!L285","v":0},0]
[]
[null,null,null," Controle code 505 kostenverzamelstaat",null,null,null,null,null,null,null,{"$f":"Kostenverzamelstaat!I18","v":0}]
[null,null,null," Kosten per verzekerde o.b.v. laatst bekende verzekerdenstand (in hele euro's)",null,null,null,null,null,null,null,{"$f":"IF(L165<>0,(L165/J12),0)","v":0}]
[null,null,null,{"$f":"IF(OR(L166>kwartaal_id*145),\"Attentiebericht: Kosten per verzekerde liggen buiten het verwachte bereik. Controleer de kostenverzamelstaat!\",\"\")","v":""}]
[]
[null,null,null,"VERGELIJKING SPECIFIEKE INFORMATIE A EN C (Contractinformatie)"]
[null,null,null," KOSTEN PER RUBRIEK OF CODENUMMER \n (KOSTEN INCLUSIEF BALANSPOST) 2018",null,null,null,null,null,"Spec. inform. A\nkostenver-\nzamelstaat","Spec. inform. C\ncontract-\ninformatie","VERSCHIL"]
[]
[null,null,null," Huisartsenzorg en Multidisciplinaire zorg, rubriek 01"]
[null,null,null," Verpleging en Verzorging, rubriek 03"]
[null,null,null," Medisch Specialistische zorg, rubriek 06"]
[null,null,null," Geneeskundige Geestelijke Gezondheidszorg, rubriek 10"]
[null,null,null," Geriatrische Revalidatiezorg & Eerstelijnsverblijf, rubriek 11"]
[null,null,null," Zintuiglijk Gehandicapten, code 702"]
[]
[]
[]
[null,null,null,{"$f":"NOW()","v":"2018-08-27T17:37:02.050"},null,null,null,null,null,null,null,{"$f":"CONCATENATE(\"Controleoverzicht \",LOWER(A141))","v":"Controleoverzicht pagina 4"}]

{"sheet":"Blad1","index":11,"n_rows":586,"n_cols":6,"rows_kept":586,"cut":false,"hidden":true,"merged":[]}
[70120408,{"$f":"Kostenverzamelstaat!$I$16","v":0},null,null,null,"*=Kostenverzamelstaat!$I$16"]
[70120409,{"$f":"Kostenverzamelstaat!$J$16","v":0},null,null,null,"*=Kostenverzamelstaat!$J$16"]
[70120410,{"$f":"Kostenverzamelstaat!$K$16","v":0},null,null,null,"*=Kostenverzamelstaat!$K$16"]
[70120411,{"$f":"Kostenverzamelstaat!$L$16","v":0},null,null,null,"*=Kostenverzamelstaat!$L$16"]
[70120412,{"$f":"Kostenverzamelstaat!$M$16","v":0},null,null,null,"*=Kostenverzamelstaat!$M$16"]
[70120413,{"$f":"Kostenverzamelstaat!$N$16","v":0},null,null,null,"*=Kostenverzamelstaat!$N$16"]
[70120414,{"$f":"Kostenverzamelstaat!$I$17","v":0},null,null,null,"*=Kostenverzamelstaat!$I$17"]
[70120415,{"$f":"Kostenverzamelstaat!$J$17","v":0},null,null,null,"*=Kostenverzamelstaat!$J$17"]
[70120416,{"$f":"Kostenverzamelstaat!$K$17","v":0},null,null,null,"*=Kostenverzamelstaat!$K$17"]
[70120417,{"$f":"Kostenverzamelstaat!$L$17","v":0},null,null,null,"*=Kostenverzamelstaat!$L$17"]
[70120418,{"$f":"Kostenverzamelstaat!$M$17","v":0},null,null,null,"*=Kostenverzamelstaat!$M$17"]
[70120419,{"$f":"Kostenverzamelstaat!$N$17","v":0},null,null,null,"*=Kostenverzamelstaat!$N$17"]
[70120420,{"$f":"Kostenverzamelstaat!$I$18","v":0},null,null,null,"*=Kostenverzamelstaat!$I$18"]
[70120421,{"$f":"Kostenverzamelstaat!$J$18","v":0},null,null,null,"*=Kostenverzamelstaat!$J$18"]
[70120422,{"$f":"Kostenverzamelstaat!$K$18","v":0},null,null,null,"*=Kostenverzamelstaat!$K$18"]
[70120423,{"$f":"Kostenverzamelstaat!$L$18","v":0},null,null,null,"*=Kostenverzamelstaat!$L$18"]
[70120424,{"$f":"Kostenverzamelstaat!$M$18","v":0},null,null,null,"*=Kostenverzamelstaat!$M$18"]
[70120425,{"$f":"Kostenverzamelstaat!$N$18","v":0},null,null,null,"*=Kostenverzamelstaat!$N$18"]
[70120426,{"$f":"Kostenverzamelstaat!$I$19","v":0},null,null,null,"*=Kostenverzamelstaat!$I$19"]
[70120427,{"$f":"Kostenverzamelstaat!$J$19","v":0},null,null,null,"*=Kostenverzamelstaat!$J$19"]
[70120428,{"$f":"Kostenverzamelstaat!$K$19","v":0},null,null,null,"*=Kostenverzamelstaat!$K$19"]
[70120429,{"$f":"Kostenverzamelstaat!$L$19","v":0},null,null,null,"*=Kostenverzamelstaat!$L$19"]
[70120430,{"$f":"Kostenverzamelstaat!$M$19","v":0},null,null,null,"*=Kostenverzamelstaat!$M$19"]
[70120431,{"$f":"Kostenverzamelstaat!$N$19","v":0},null,null,null,"*=Kostenverzamelstaat!$N$19"]
[70120432,{"$f":"Kostenverzamelstaat!$I$20","v":0},null,null,null,"*=Kostenverzamelstaat!$I$20"]
[70120433,{"$f":"Kostenverzamelstaat!$J$20","v":0},null,null,null,"*=Kostenverzamelstaat!$J$20"]
[70120434,{"$f":"Kostenverzamelstaat!$K$20","v":0},null,null,null,"*=Kostenverzamelstaat!$K$20"]
[70120435,{"$f":"Kostenverzamelstaat!$L$20","v":0},null,null,null,"*=Kostenverzamelstaat!$L$20"]
[70120436,{"$f":"Kostenverzamelstaat!$M$20","v":0},null,null,null,"*=Kostenverzamelstaat!$M$20"]
[70120437,{"$f":"Kostenverzamelstaat!$N$20","v":0},null,null,null,"*=Kostenverzamelstaat!$N$20"]
[70120438,{"$f":"Kostenverzamelstaat!$I$21","v":0},null,null,null,"*=Kostenverzamelstaat!$I$21"]
[70120439,{"$f":"Kostenverzamelstaat!$J$21","v":0},null,null,null,"*=Kostenverzamelstaat!$J$21"]
[70120440,{"$f":"Kostenverzamelstaat!$K$21","v":0},null,null,null,"*=Kostenverzamelstaat!$K$21"]
[70120441,{"$f":"Kostenverzamelstaat!$L$21","v":0},null,null,null,"*=Kostenverzamelstaat!$L$21"]
[70120442,{"$f":"Kostenverzamelstaat!$M$21","v":0},null,null,null,"*=Kostenverzamelstaat!$M$21"]
[70120443,{"$f":"Kostenverzamelstaat!$N$21","v":0},null,null,null,"*=Kostenverzamelstaat!$N$21"]
[70120444,{"$f":"Kostenverzamelstaat!$I$22","v":0},null,null,null,"*=Kostenverzamelstaat!$I$22"]
[70120445,{"$f":"Kostenverzamelstaat!$J$22","v":0},null,null,null,"*=Kostenverzamelstaat!$J$22"]
[70120446,{"$f":"Kostenverzamelstaat!$K$22","v":0},null,null,null,"*=Kostenverzamelstaat!$K$22"]
[70120447,{"$f":"Kostenverzamelstaat!$L$22","v":0},null,null,null,"*=Kostenverzamelstaat!$L$22"]
[70120448,{"$f":"Kostenverzamelstaat!$M$22","v":0},null,null,null,"*=Kostenverzamelstaat!$M$22"]
[70120449,{"$f":"Kostenverzamelstaat!$N$22","v":0},null,null,null,"*=Kostenverzamelstaat!$N$22"]
[70120450,{"$f":"Kostenverzamelstaat!$I$23","v":0},null,null,null,"*=Kostenverzamelstaat!$I$23"]
[70120451,{"$f":"Kostenverzamelstaat!$J$23","v":0},null,null,null,"*=Kostenverzamelstaat!$J$23"]
[70120452,{"$f":"Kostenverzamelstaat!$K$23","v":0},null,null,null,"*=Kostenverzamelstaat!$K$23"]
[70120453,{"$f":"Kostenverzamelstaat!$L$23","v":0},null,null,null,"*=Kostenverzamelstaat!$L$23"]
[70120454,{"$f":"Kostenverzamelstaat!$M$23","v":0},null,null,null,"*=Kostenverzamelstaat!$M$23"]
[70120455,{"$f":"Kostenverzamelstaat!$N$23","v":0},null,null,null,"*=Kostenverzamelstaat!$N$23"]
[70120474,{"$f":"Kostenverzamelstaat!$I$26","v":0},null,null,null,"*=Kostenverzamelstaat!$I$26"]
[70120475,{"$f":"Kostenverzamelstaat!$J$26","v":0},null,null,null,"*=Kostenverzamelstaat!$J$26"]
[70120476,{"$f":"Kostenverzamelstaat!$K$26","v":0},null,null,null,"*=Kostenverzamelstaat!$K$26"]
[70120477,{"$f":"Kostenverzamelstaat!$L$26","v":0},null,null,null,"*=Kostenverzamelstaat!$L$26"]
[70120478,{"$f":"Kostenverzamelstaat!$M$26","v":0},null,null,null,"*=Kostenverzamelstaat!$M$26"]
[70120479,{"$f":"Kostenverzamelstaat!$N$26","v":0},null,null,null,"*=Kostenverzamelstaat!$N$26"]
[70120488,{"$f":"Kostenverzamelstaat!$I$30","v":0},null,null,null,"*=Kostenverzamelstaat!$I$30"]
[70120489,{"$f":"Kostenverzamelstaat!$J$30","v":0},null,null,null,"*=Kostenverzamelstaat!$J$30"]
[70120490,{"$f":"Kostenverzamelstaat!$K$30","v":0},null,null,null,"*=Kostenverzamelstaat!$K$30"]
[70120491,{"$f":"Kostenverzamelstaat!$L$30","v":0},null,null,null,"*=Kostenverzamelstaat!$L$30"]
[70120492,{"$f":"Kostenverzamelstaat!$M$30","v":0},null,null,null,"*=Kostenverzamelstaat!$M$30"]
[70120493,{"$f":"Kostenverzamelstaat!$N$30","v":0},null,null,null,"*=Kostenverzamelstaat!$N$30"]
[70120494,{"$f":"Kostenverzamelstaat!$I$31","v":0},null,null,null,"*=Kostenverzamelstaat!$I$31"]
[70120495,{"$f":"Kostenverzamelstaat!$J$31","v":0},null,null,null,"*=Kostenverzamelstaat!$J$31"]
[70120496,{"$f":"Kostenverzamelstaat!$K$31","v":0},null,null,null,"*=Kostenverzamelstaat!$K$31"]
[70120497,{"$f":"Kostenverzamelstaat!$L$31","v":0},null,null,null,"*=Kostenverzamelstaat!$L$31"]
[70120498,{"$f":"Kostenverzamelstaat!$M$31","v":0},null,null,null,"*=Kostenverzamelstaat!$M$31"]
[70120499,{"$f":"Kostenverzamelstaat!$N$31","v":0},null,null,null,"*=Kostenverzamelstaat!$N$31"]
[70120500,{"$f":"Kostenverzamelstaat!$I$32","v":0},null,null,null,"*=Kostenverzamelstaat!$I$32"]
[70120501,{"$f":"Kostenverzamelstaat!$J$32","v":0},null,null,null,"*=Kostenverzamelstaat!$J$32"]
[70120502,{"$f":"Kostenverzamelstaat!$K$32","v":0},null,null,null,"*=Kostenverzamelstaat!$K$32"]
[70120503,{"$f":"Kostenverzamelstaat!$L$32","v":0},null,null,null,"*=Kostenverzamelstaat!$L$32"]
[70120504,{"$f":"Kostenverzamelstaat!$M$32","v":0},null,null,null,"*=Kostenverzamelstaat!$M$32"]
[70120505,{"$f":"Kostenverzamelstaat!$N$32","v":0},null,null,null,"*=Kostenverzamelstaat!$N$32"]
[70120516,{"$f":"Kostenverzamelstaat!$I$35","v":0},null,null,null,"*=Kostenverzamelstaat!$I$35"]
[70120517,{"$f":"Kostenverzamelstaat!$J$35","v":0},null,null,null,"*=Kostenverzamelstaat!$J$35"]
[70120518,{"$f":"Kostenverzamelstaat!$K$35","v":0},null,null,null,"*=Kostenverzamelstaat!$K$35"]
[70120519,{"$f":"Kostenverzamelstaat!$L$35","v":0},null,null,null,"*=Kostenverzamelstaat!$L$35"]
[70120520,{"$f":"Kostenverzamelstaat!$M$35","v":0},null,null,null,"*=Kostenverzamelstaat!$M$35"]
[70120521,{"$f":"Kostenverzamelstaat!$N$35","v":0},null,null,null,"*=Kostenverzamelstaat!$N$35"]
[70120510,{"$f":"Kostenverzamelstaat!$I$36","v":0},null,null,null,"*=Kostenverzamelstaat!$I$36"]
[70120511,{"$f":"Kostenverzamelstaat!$J$36","v":0},null,null,null,"*=Kostenverzamelstaat!$J$36"]
[70120512,{"$f":"Kostenverzamelstaat!$K$36","v":0},null,null,null,"*=Kostenverzamelstaat!$K$36"]
[70120513,{"$f":"Kostenverzamelstaat!$L$36","v":0},null,null,null,"*=Kostenverzamelstaat!$L$36"]
[70120514,{"$f":"Kostenverzamelstaat!$M$36","v":0},null,null,null,"*=Kostenverzamelstaat!$M$36"]
[70120515,{"$f":"Kostenverzamelstaat!$N$36","v":0},null,null,null,"*=Kostenverzamelstaat!$N$36"]
[70120247,{"$f":"Kostenverzamelstaat!$I$52","v":0},null,null,null,"*=Kostenverzamelstaat!$I$52"]
[70120248,{"$f":"Kostenverzamelstaat!$J$52","v":0},null,null,null,"*=Kostenverzamelstaat!$J$52"]
[70120249,{"$f":"Kostenverzamelstaat!$K$52","v":0},null,null,null,"*=Kostenverzamelstaat!$K$52"]
[70120250,{"$f":"Kostenverzamelstaat!$L$52","v":0},null,null,null,"*=Kostenverzamelstaat!$L$52"]
[70120251,{"$f":"Kostenverzamelstaat!$M$52","v":0},null,null,null,"*=Kostenverzamelstaat!$M$52"]
[70120252,{"$f":"Kostenverzamelstaat!$N$52","v":0},null,null,null,"*=Kostenverzamelstaat!$N$52"]
[70120253,{"$f":"Kostenverzamelstaat!$I$53","v":0},null,null,null,"*=Kostenverzamelstaat!$I$53"]
[70120254,{"$f":"Kostenverzamelstaat!$J$53","v":0},null,null,null,"*=Kostenverzamelstaat!$J$53"]
[70120255,{"$f":"Kostenverzamelstaat!$K$53","v":0},null,null,null,"*=Kostenverzamelstaat!$K$53"]
[70120256,{"$f":"Kostenverzamelstaat!$L$53","v":0},null,null,null,"*=Kostenverzamelstaat!$L$53"]
[70120257,{"$f":"Kostenverzamelstaat!$M$53","v":0},null,null,null,"*=Kostenverzamelstaat!$M$53"]
[70120258,{"$f":"Kostenverzamelstaat!$N$53","v":0},null,null,null,"*=Kostenverzamelstaat!$N$53"]
[70120205,{"$f":"Kostenverzamelstaat!$I$54","v":0},null,null,null,"*=Kostenverzamelstaat!$I$54"]
[70120206,{"$f":"Kostenverzamelstaat!$J$54","v":0},null,null,null,"*=Kostenverzamelstaat!$J$54"]
[70120207,{"$f":"Kostenverzamelstaat!$K$54","v":0},null,null,null,"*=Kostenverzamelstaat!$K$54"]
[70120208,{"$f":"Kostenverzamelstaat!$L$54","v":0},null,null,null,"*=Kostenverzamelstaat!$L$54"]
[70120209,{"$f":"Kostenverzamelstaat!$M$54","v":0},null,null,null,"*=Kostenverzamelstaat!$M$54"]
[70120210,{"$f":"Kostenverzamelstaat!$N$54","v":0},null,null,null,"*=Kostenverzamelstaat!$N$54"]
[70120211,{"$f":"Kostenverzamelstaat!$I$55","v":0},null,null,null,"*=Kostenverzamelstaat!$I$55"]
[70120212,{"$f":"Kostenverzamelstaat!$J$55","v":0},null,null,null,"*=Kostenverzamelstaat!$J$55"]
[70120213,{"$f":"Kostenverzamelstaat!$K$55","v":0},null,null,null,"*=Kostenverzamelstaat!$K$55"]
[70120214,{"$f":"Kostenverzamelstaat!$L$55","v":0},null,null,null,"*=Kostenverzamelstaat!$L$55"]
[70120215,{"$f":"Kostenverzamelstaat!$M$55","v":0},null,null,null,"*=Kostenverzamelstaat!$M$55"]
[70120216,{"$f":"Kostenverzamelstaat!$N$55","v":0},null,null,null,"*=Kostenverzamelstaat!$N$55"]
[70120193,{"$f":"Kostenverzamelstaat!$I$56","v":0},null,null,null,"*=Kostenverzamelstaat!$I$56"]
[70120194,{"$f":"Kostenverzamelstaat!$J$56","v":0},null,null,null,"*=Kostenverzamelstaat!$J$56"]
[70120195,{"$f":"Kostenverzamelstaat!$K$56","v":0},null,null,null,"*=Kostenverzamelstaat!$K$56"]
[70120196,{"$f":"Kostenverzamelstaat!$L$56","v":0},null,null,null,"*=Kostenverzamelstaat!$L$56"]
[70120197,{"$f":"Kostenverzamelstaat!$M$56","v":0},null,null,null,"*=Kostenverzamelstaat!$M$56"]
[70120198,{"$f":"Kostenverzamelstaat!$N$56","v":0},null,null,null,"*=Kostenverzamelstaat!$N$56"]
[70120199,{"$f":"Kostenverzamelstaat!$I$57","v":0},null,null,null,"*=Kostenverzamelstaat!$I$57"]
[70120200,{"$f":"Kostenverzamelstaat!$J$57","v":0},null,null,null,"*=Kostenverzamelstaat!$J$57"]
[70120201,{"$f":"Kostenverzamelstaat!$K$57","v":0},null,null,null,"*=Kostenverzamelstaat!$K$57"]
[70120202,{"$f":"Kostenverzamelstaat!$L$57","v":0},null,null,null,"*=Kostenverzamelstaat!$L$57"]
[70120203,{"$f":"Kostenverzamelstaat!$M$57","v":0},null,null,null,"*=Kostenverzamelstaat!$M$57"]
[70120204,{"$f":"Kostenverzamelstaat!$N$57","v":0},null,null,null,"*=Kostenverzamelstaat!$N$57"]
[70120229,{"$f":"Kostenverzamelstaat!$I$58","v":0},null,null,null,"*=Kostenverzamelstaat!$I$58"]
[70120230,{"$f":"Kostenverzamelstaat!$J$58","v":0},null,null,null,"*=Kostenverzamelstaat!$J$58"]
[70120231,{"$f":"Kostenverzamelstaat!$K$58","v":0},null,null,null,"*=Kostenverzamelstaat!$K$58"]
[70120232,{"$f":"Kostenverzamelstaat!$L$58","v":0},null,null,null,"*=Kostenverzamelstaat!$L$58"]
[70120233,{"$f":"Kostenverzamelstaat!$M$58","v":0},null,null,null,"*=Kostenverzamelstaat!$M$58"]
[70120234,{"$f":"Kostenverzamelstaat!$N$58","v":0},null,null,null,"*=Kostenverzamelstaat!$N$58"]
[70120259,{"$f":"Kostenverzamelstaat!$I$61","v":0},null,null,null,"*=Kostenverzamelstaat!$I$61"]
[70120260,{"$f":"Kostenverzamelstaat!$J$61","v":0},null,null,null,"*=Kostenverzamelstaat!$J$61"]
[70120261,{"$f":"Kostenverzamelstaat!$K$61","v":0},null,null,null,"*=Kostenverzamelstaat!$K$61"]
[70120262,{"$f":"Kostenverzamelstaat!$L$61","v":0},null,null,null,"*=Kostenverzamelstaat!$L$61"]
[70120263,{"$f":"Kostenverzamelstaat!$M$61","v":0},null,null,null,"*=Kostenverzamelstaat!$M$61"]
[70120264,{"$f":"Kostenverzamelstaat!$N$61","v":0},null,null,null,"*=Kostenverzamelstaat!$N$61"]
[70120283,{"$f":"Kostenverzamelstaat!$I$62","v":0},null,null,null,"*=Kostenverzamelstaat!$I$62"]
[70120284,{"$f":"Kostenverzamelstaat!$J$62","v":0},null,null,null,"*=Kostenverzamelstaat!$J$62"]
[70120285,{"$f":"Kostenverzamelstaat!$K$62","v":0},null,null,null,"*=Kostenverzamelstaat!$K$62"]
[70120286,{"$f":"Kostenverzamelstaat!$L$62","v":0},null,null,null,"*=Kostenverzamelstaat!$L$62"]
[70120287,{"$f":"Kostenverzamelstaat!$M$62","v":0},null,null,null,"*=Kostenverzamelstaat!$M$62"]
[70120288,{"$f":"Kostenverzamelstaat!$N$62","v":0},null,null,null,"*=Kostenverzamelstaat!$N$62"]
[70120277,{"$f":"Kostenverzamelstaat!$I$63","v":0},null,null,null,"*=Kostenverzamelstaat!$I$63"]
[70120278,{"$f":"Kostenverzamelstaat!$J$63","v":0},null,null,null,"*=Kostenverzamelstaat!$J$63"]
[70120279,{"$f":"Kostenverzamelstaat!$K$63","v":0},null,null,null,"*=Kostenverzamelstaat!$K$63"]
[70120280,{"$f":"Kostenverzamelstaat!$L$63","v":0},null,null,null,"*=Kostenverzamelstaat!$L$63"]
[70120281,{"$f":"Kostenverzamelstaat!$M$63","v":0},null,null,null,"*=Kostenverzamelstaat!$M$63"]
[70120282,{"$f":"Kostenverzamelstaat!$N$63","v":0},null,null,null,"*=Kostenverzamelstaat!$N$63"]
[70120265,{"$f":"Kostenverzamelstaat!$I$64","v":0},null,null,null,"*=Kostenverzamelstaat!$I$64"]
[70120266,{"$f":"Kostenverzamelstaat!$J$64","v":0},null,null,null,"*=Kostenverzamelstaat!$J$64"]
[70120267,{"$f":"Kostenverzamelstaat!$K$64","v":0},null,null,null,"*=Kostenverzamelstaat!$K$64"]
[70120268,{"$f":"Kostenverzamelstaat!$L$64","v":0},null,null,null,"*=Kostenverzamelstaat!$L$64"]
[70120269,{"$f":"Kostenverzamelstaat!$M$64","v":0},null,null,null,"*=Kostenverzamelstaat!$M$64"]
[70120270,{"$f":"Kostenverzamelstaat!$N$64","v":0},null,null,null,"*=Kostenverzamelstaat!$N$64"]
[70120271,{"$f":"Kostenverzamelstaat!$I$65","v":0},null,null,null,"*=Kostenverzamelstaat!$I$65"]
[70120272,{"$f":"Kostenverzamelstaat!$J$65","v":0},null,null,null,"*=Kostenverzamelstaat!$J$65"]
[70120273,{"$f":"Kostenverzamelstaat!$K$65","v":0},null,null,null,"*=Kostenverzamelstaat!$K$65"]
[70120274,{"$f":"Kostenverzamelstaat!$L$65","v":0},null,null,null,"*=Kostenverzamelstaat!$L$65"]
[70120275,{"$f":"Kostenverzamelstaat!$M$65","v":0},null,null,null,"*=Kostenverzamelstaat!$M$65"]
[70120276,{"$f":"Kostenverzamelstaat!$N$65","v":0},null,null,null,"*=Kostenverzamelstaat!$N$65"]
[70119969,{"$f":"Kostenverzamelstaat!$I$68","v":0},null,null,null,"*=Kostenverzamelstaat!$I$68"]
[70119970,{"$f":"Kostenverzamelstaat!$J$68","v":0},null,null,null,"*=Kostenverzamelstaat!$J$68"]
[70119971,{"$f":"Kostenverzamelstaat!$K$68","v":0},null,null,null,"*=Kostenverzamelstaat!$K$68"]
[70119972,{"$f":"Kostenverzamelstaat!$L$68","v":0},null,null,null,"*=Kostenverzamelstaat!$L$68"]
[70119973,{"$f":"Kostenverzamelstaat!$M$68","v":0},null,null,null,"*=Kostenverzamelstaat!$M$68"]
[70119974,{"$f":"Kostenverzamelstaat!$N$68","v":0},null,null,null,"*=Kostenverzamelstaat!$N$68"]
[70120295,{"$f":"Kostenverzamelstaat!$I$70","v":0},null,null,null,"*=Kostenverzamelstaat!$I$70"]
[70120296,{"$f":"Kostenverzamelstaat!$J$70","v":0},null,null,null,"*=Kostenverzamelstaat!$J$70"]
[70120297,{"$f":"Kostenverzamelstaat!$K$70","v":0},null,null,null,"*=Kostenverzamelstaat!$K$70"]
[70120298,{"$f":"Kostenverzamelstaat!$L$70","v":0},null,null,null,"*=Kostenverzamelstaat!$L$70"]
[70120299,{"$f":"Kostenverzamelstaat!$M$70","v":0},null,null,null,"*=Kostenverzamelstaat!$M$70"]
[70120300,{"$f":"Kostenverzamelstaat!$N$70","v":0},null,null,null,"*=Kostenverzamelstaat!$N$70"]
[70120289,{"$f":"Kostenverzamelstaat!$I$71","v":0},null,null,null,"*=Kostenverzamelstaat!$I$71"]
[70120290,{"$f":"Kostenverzamelstaat!$J$71","v":0},null,null,null,"*=Kostenverzamelstaat!$J$71"]
[70120291,{"$f":"Kostenverzamelstaat!$K$71","v":0},null,null,null,"*=Kostenverzamelstaat!$K$71"]
[70120292,{"$f":"Kostenverzamelstaat!$L$71","v":0},null,null,null,"*=Kostenverzamelstaat!$L$71"]
[70120293,{"$f":"Kostenverzamelstaat!$M$71","v":0},null,null,null,"*=Kostenverzamelstaat!$M$71"]
[70120294,{"$f":"Kostenverzamelstaat!$N$71","v":0},null,null,null,"*=Kostenverzamelstaat!$N$71"]
[70120074,{"$f":"Kostenverzamelstaat!$I$86","v":0},null,null,null,"*=Kostenverzamelstaat!$I$86"]
[70120075,{"$f":"Kostenverzamelstaat!$J$86","v":0},null,null,null,"*=Kostenverzamelstaat!$J$86"]
[70120076,{"$f":"Kostenverzamelstaat!$K$86","v":0},null,null,null,"*=Kostenverzamelstaat!$K$86"]
[70120077,{"$f":"Kostenverzamelstaat!$L$86","v":0},null,null,null,"*=Kostenverzamelstaat!$L$86"]
[70120078,{"$f":"Kostenverzamelstaat!$M$86","v":0},null,null,null,"*=Kostenverzamelstaat!$M$86"]
[70120079,{"$f":"Kostenverzamelstaat!$N$86","v":0},null,null,null,"*=Kostenverzamelstaat!$N$86"]
[70120068,{"$f":"Kostenverzamelstaat!$I$87","v":0},null,null,null,"*=Kostenverzamelstaat!$I$87"]
[70120069,{"$f":"Kostenverzamelstaat!$J$87","v":0},null,null,null,"*=Kostenverzamelstaat!$J$87"]
[70120070,{"$f":"Kostenverzamelstaat!$K$87","v":0},null,null,null,"*=Kostenverzamelstaat!$K$87"]
[70120071,{"$f":"Kostenverzamelstaat!$L$87","v":0},null,null,null,"*=Kostenverzamelstaat!$L$87"]
[70120072,{"$f":"Kostenverzamelstaat!$M$87","v":0},null,null,null,"*=Kostenverzamelstaat!$M$87"]
[70120073,{"$f":"Kostenverzamelstaat!$N$87","v":0},null,null,null,"*=Kostenverzamelstaat!$N$87"]
[70120086,{"$f":"Kostenverzamelstaat!$I$88","v":0},null,null,null,"*=Kostenverzamelstaat!$I$88"]
[70120087,{"$f":"Kostenverzamelstaat!$J$88","v":0},null,null,null,"*=Kostenverzamelstaat!$J$88"]
[70120088,{"$f":"Kostenverzamelstaat!$K$88","v":0},null,null,null,"*=Kostenverzamelstaat!$K$88"]
[70120089,{"$f":"Kostenverzamelstaat!$L$88","v":0},null,null,null,"*=Kostenverzamelstaat!$L$88"]
[70120090,{"$f":"Kostenverzamelstaat!$M$88","v":0},null,null,null,"*=Kostenverzamelstaat!$M$88"]
[70120091,{"$f":"Kostenverzamelstaat!$N$88","v":0},null,null,null,"*=Kostenverzamelstaat!$N$88"]
[70120098,{"$f":"Kostenverzamelstaat!$I$89","v":0},null,null,null,"*=Kostenverzamelstaat!$I$89"]
[70120099,{"$f":"Kostenverzamelstaat!$J$89","v":0},null,null,null,"*=Kostenverzamelstaat!$J$89"]
[70120100,{"$f":"Kostenverzamelstaat!$K$89","v":0},null,null,null,"*=Kostenverzamelstaat!$K$89"]
[70120101,{"$f":"Kostenverzamelstaat!$L$89","v":0},null,null,null,"*=Kostenverzamelstaat!$L$89"]
[70120102,{"$f":"Kostenverzamelstaat!$M$89","v":0},null,null,null,"*=Kostenverzamelstaat!$M$89"]
[70120103,{"$f":"Kostenverzamelstaat!$N$89","v":0},null,null,null,"*=Kostenverzamelstaat!$N$89"]
[70120301,{"$f":"Kostenverzamelstaat!$I$96","v":0},null,null,null,"*=Kostenverzamelstaat!$I$96"]
[70120302,{"$f":"Kostenverzamelstaat!$J$96","v":0},null,null,null,"*=Kostenverzamelstaat!$J$96"]
[70120303,{"$f":"Kostenverzamelstaat!$K$96","v":0},null,null,null,"*=Kostenverzamelstaat!$K$96"]
[70120304,{"$f":"Kostenverzamelstaat!$L$96","v":0},null,null,null,"*=Kostenverzamelstaat!$L$96"]
[70120305,{"$f":"Kostenverzamelstaat!$M$96","v":0},null,null,null,"*=Kostenverzamelstaat!$M$96"]
[70120306,{"$f":"Kostenverzamelstaat!$N$96","v":0},null,null,null,"*=Kostenverzamelstaat!$N$96"]
[70120456,{"$f":"Kostenverzamelstaat!$I$98","v":0},null,null,null,"*=Kostenverzamelstaat!$I$98"]
[70120457,{"$f":"Kostenverzamelstaat!$J$98","v":0},null,null,null,"*=Kostenverzamelstaat!$J$98"]
[70120458,{"$f":"Kostenverzamelstaat!$K$98","v":0},null,null,null,"*=Kostenverzamelstaat!$K$98"]
[70120459,{"$f":"Kostenverzamelstaat!$L$98","v":0},null,null,null,"*=Kostenverzamelstaat!$L$98"]
[70120460,{"$f":"Kostenverzamelstaat!$M$98","v":0},null,null,null,"*=Kostenverzamelstaat!$M$98"]
[70120461,{"$f":"Kostenverzamelstaat!$N$98","v":0},null,null,null,"*=Kostenverzamelstaat!$N$98"]
[70120462,{"$f":"Kostenverzamelstaat!$I$99","v":0},null,null,null,"*=Kostenverzamelstaat!$I$99"]
[70120463,{"$f":"Kostenverzamelstaat!$J$99","v":0},null,null,null,"*=Kostenverzamelstaat!$J$99"]
[70120464,{"$f":"Kostenverzamelstaat!$K$99","v":0},null,null,null,"*=Kostenverzamelstaat!$K$99"]
[70120465,{"$f":"Kostenverzamelstaat!$L$99","v":0},null,null,null,"*=Kostenverzamelstaat!$L$99"]
[70120466,{"$f":"Kostenverzamelstaat!$M$99","v":0},null,null,null,"*=Kostenverzamelstaat!$M$99"]
[70120467,{"$f":"Kostenverzamelstaat!$N$99","v":0},null,null,null,"*=Kostenverzamelstaat!$N$99"]
[70120468,{"$f":"Kostenverzamelstaat!$I$100","v":0},null,null,null,"*=Kostenverzamelstaat!$I$100"]
[70120469,{"$f":"Kostenverzamelstaat!$J$100","v":0},null,null,null,"*=Kostenverzamelstaat!$J$100"]
[70120470,{"$f":"Kostenverzamelstaat!$K$100","v":0},null,null,null,"*=Kostenverzamelstaat!$K$100"]
[70120471,{"$f":"Kostenverzamelstaat!$L$100","v":0},null,null,null,"*=Kostenverzamelstaat!$L$100"]
[70120472,{"$f":"Kostenverzamelstaat!$M$100","v":0},null,null,null,"*=Kostenverzamelstaat!$M$100"]
[70120473,{"$f":"Kostenverzamelstaat!$N$100","v":0},null,null,null,"*=Kostenverzamelstaat!$N$100"]
[70120307,{"$f":"Kostenverzamelstaat!$I$103","v":0},null,null,null,"*=Kostenverzamelstaat!$I$103"]
[70120308,{"$f":"Kostenverzamelstaat!$J$103","v":0},null,null,null,"*=Kostenverzamelstaat!$J$103"]
[70120309,{"$f":"Kostenverzamelstaat!$K$103","v":0},null,null,null,"*=Kostenverzamelstaat!$K$103"]
[70120310,{"$f":"Kostenverzamelstaat!$L$103","v":0},null,null,null,"*=Kostenverzamelstaat!$L$103"]
[70120311,{"$f":"Kostenverzamelstaat!$M$103","v":0},null,null,null,"*=Kostenverzamelstaat!$M$103"]
[70120312,{"$f":"Kostenverzamelstaat!$N$103","v":0},null,null,null,"*=Kostenverzamelstaat!$N$103"]
[70120313,{"$f":"Kostenverzamelstaat!$I$105","v":0},null,null,null,"*=Kostenverzamelstaat!$I$105"]
[70120314,{"$f":"Kostenverzamelstaat!$J$105","v":0},null,null,null,"*=Kostenverzamelstaat!$J$105"]
[70120315,{"$f":"Kostenverzamelstaat!$K$105","v":0},null,null,null,"*=Kostenverzamelstaat!$K$105"]
[70120316,{"$f":"Kostenverzamelstaat!$L$105","v":0},null,null,null,"*=Kostenverzamelstaat!$L$105"]
[70120317,{"$f":"Kostenverzamelstaat!$M$105","v":0},null,null,null,"*=Kostenverzamelstaat!$M$105"]
[70120318,{"$f":"Kostenverzamelstaat!$N$105","v":0},null,null,null,"*=Kostenverzamelstaat!$N$105"]
[70120163,{"$f":"Kostenverzamelstaat!$I$92","v":0},null,null,null,"*=Kostenverzamelstaat!$I$92"]
[70120164,{"$f":"Kostenverzamelstaat!$J$92","v":0},null,null,null,"*=Kostenverzamelstaat!$J$92"]
[70120165,{"$f":"Kostenverzamelstaat!$K$92","v":0},null,null,null,"*=Kostenverzamelstaat!$K$92"]
[70120166,{"$f":"Kostenverzamelstaat!$L$92","v":0},null,null,null,"*=Kostenverzamelstaat!$L$92"]
[70120167,{"$f":"Kostenverzamelstaat!$M$92","v":0},null,null,null,"*=Kostenverzamelstaat!$M$92"]
[70120168,{"$f":"Kostenverzamelstaat!$N$92","v":0},null,null,null,"*=Kostenverzamelstaat!$N$92"]
[70120169,{"$f":"Kostenverzamelstaat!$I$93","v":0},null,null,null,"*=Kostenverzamelstaat!$I$93"]
[70120170,{"$f":"Kostenverzamelstaat!$J$93","v":0},null,null,null,"*=Kostenverzamelstaat!$J$93"]
[70120319,{"$f":"Kostenverzamelstaat!$I$118","v":0},null,null,null,"*=Kostenverzamelstaat!$I$118"]
[70119791,{"$f":"Kostenverzamelstaat!$I$119","v":0},null,null,null,"*=Kostenverzamelstaat!$I$119"]
[70119792,{"$f":"Kostenverzamelstaat!$J$119","v":0},null,null,null,"*=Kostenverzamelstaat!$J$119"]
[70119793,{"$f":"Kostenverzamelstaat!$K$119","v":0},null,null,null,"*=Kostenverzamelstaat!$K$119"]
[70119794,{"$f":"Kostenverzamelstaat!$L$119","v":0},null,null,null,"*=Kostenverzamelstaat!$L$119"]
[70119795,{"$f":"Kostenverzamelstaat!$M$119","v":0},null,null,null,"*=Kostenverzamelstaat!$M$119"]
[70119796,{"$f":"Kostenverzamelstaat!$N$119","v":0},null,null,null,"*=Kostenverzamelstaat!$N$119"]
[70119849,{"$f":"Kostenverzamelstaat!$I$120","v":0},null,null,null,"*=Kostenverzamelstaat!$I$120"]
[70119850,{"$f":"Kostenverzamelstaat!$J$120","v":0},null,null,null,"*=Kostenverzamelstaat!$J$120"]
[70119851,{"$f":"Kostenverzamelstaat!$K$120","v":0},null,null,null,"*=Kostenverzamelstaat!$K$120"]
[70119852,{"$f":"Kostenverzamelstaat!$L$120","v":0},null,null,null,"*=Kostenverzamelstaat!$L$120"]
[70119853,{"$f":"Kostenverzamelstaat!$M$120","v":0},null,null,null,"*=Kostenverzamelstaat!$M$120"]
[70119854,{"$f":"Kostenverzamelstaat!$N$120","v":0},null,null,null,"*=Kostenverzamelstaat!$N$120"]
[70119797,{"$f":"Kostenverzamelstaat!$I$121","v":0},null,null,null,"*=Kostenverzamelstaat!$I$121"]
[70119897,{"$f":"'Specifieke informatie A'!$L$14","v":0},null,null,null,"*='Specifieke informatie A'!$L$14"]
[70119898,{"$f":"'Specifieke informatie A'!$L$15","v":0},null,null,null,"*='Specifieke informatie A'!$L$15"]
[70119899,{"$f":"'Specifieke informatie A'!$L$16","v":0},null,null,null,"*='Specifieke informatie A'!$L$16"]
[70119875,{"$f":"'Specifieke informatie A'!$J$59","v":0},null,null,null,"*='Specifieke informatie A'!$J$59"]
[70119876,{"$f":"'Specifieke informatie A'!$K$59","v":0},null,null,null,"*='Specifieke informatie A'!$K$59"]
[70119877,{"$f":"'Specifieke informatie A'!$J$60","v":0},null,null,null,"*='Specifieke informatie A'!$J$60"]
[70119878,{"$f":"'Specifieke informatie A'!$K$60","v":0},null,null,null,"*='Specifieke informatie A'!$K$60"]
[70119879,{"$f":"'Specifieke informatie A'!$J$61","v":0},null,null,null,"*='Specifieke informatie A'!$J$61"]
[70119880,{"$f":"'Specifieke informatie A'!$K$61","v":0},null,null,null,"*='Specifieke informatie A'!$K$61"]
[70119873,{"$f":"'Specifieke informatie A'!$J$62","v":0},null,null,null,"*='Specifieke informatie A'!$J$62"]
[70119874,{"$f":"'Specifieke informatie A'!$K$62","v":0},null,null,null,"*='Specifieke informatie A'!$K$62"]
[70119881,{"$f":"'Specifieke informatie A'!$J$63","v":0},null,null,null,"*='Specifieke informatie A'!$J$63"]
[70119882,{"$f":"'Specifieke informatie A'!$K$63","v":0},null,null,null,"*='Specifieke informatie A'!$K$63"]
[70119883,{"$f":"'Specifieke informatie A'!$J$64","v":0},null,null,null,"*='Specifieke informatie A'!$J$64"]
[70119884,{"$f":"'Specifieke informatie A'!$K$64","v":0},null,null,null,"*='Specifieke informatie A'!$K$64"]
[70119885,{"$f":"'Specifieke informatie A'!$J$65","v":0},null,null,null,"*='Specifieke informatie A'!$J$65"]
[70119886,{"$f":"'Specifieke informatie A'!$K$65","v":0},null,null,null,"*='Specifieke informatie A'!$K$65"]
[70119887,{"$f":"'Specifieke informatie A'!$J$66","v":0},null,null,null,"*='Specifieke informatie A'!$J$66"]
[70119888,{"$f":"'Specifieke informatie A'!$K$66","v":0},null,null,null,"*='Specifieke informatie A'!$K$66"]
[70119889,{"$f":"'Specifieke informatie A'!$J$67","v":0},null,null,null,"*='Specifieke informatie A'!$J$67"]
[70119890,{"$f":"'Specifieke informatie A'!$K$67","v":0},null,null,null,"*='Specifieke informatie A'!$K$67"]
[70119891,{"$f":"'Specifieke informatie A'!$J$68","v":0},null,null,null,"*='Specifieke informatie A'!$J$68"]
[70119892,{"$f":"'Specifieke informatie A'!$K$68","v":0},null,null,null,"*='Specifieke informatie A'!$K$68"]
[70119893,{"$f":"'Specifieke informatie A'!$J$69","v":0},null,null,null,"*='Specifieke informatie A'!$J$69"]
[70119894,{"$f":"'Specifieke informatie A'!$K$69","v":0},null,null,null,"*='Specifieke informatie A'!$K$69"]
[70119855,{"$f":"'Specifieke informatie A'!$J$70","v":0},null,null,null,"*='Specifieke informatie A'!$J$70"]
[70119856,{"$f":"'Specifieke informatie A'!$K$70","v":0},null,null,null,"*='Specifieke informatie A'!$K$70"]
[70119857,{"$f":"'Specifieke informatie A'!$J$71","v":0},null,null,null,"*='Specifieke informatie A'!$J$71"]
[70119858,{"$f":"'Specifieke informatie A'!$K$71","v":0},null,null,null,"*='Specifieke informatie A'!$K$71"]
[70119859,{"$f":"'Specifieke informatie A'!$J$72","v":0},null,null,null,"*='Specifieke informatie A'!$J$72"]
[70119860,{"$f":"'Specifieke informatie A'!$K$72","v":0},null,null,null,"*='Specifieke informatie A'!$K$72"]
[70119861,{"$f":"'Specifieke informatie A'!$J$73","v":0},null,null,null,"*='Specifieke informatie A'!$J$73"]
[70119862,{"$f":"'Specifieke informatie A'!$K$73","v":0},null,null,null,"*='Specifieke informatie A'!$K$73"]
[70119863,{"$f":"'Specifieke informatie A'!$J$74","v":0},null,null,null,"*='Specifieke informatie A'!$J$74"]
[70119864,{"$f":"'Specifieke informatie A'!$K$74","v":0},null,null,null,"*='Specifieke informatie A'!$K$74"]
[70119865,{"$f":"'Specifieke informatie A'!$J$75","v":0},null,null,null,"*='Specifieke informatie A'!$J$75"]
[70119866,{"$f":"'Specifieke informatie A'!$K$75","v":0},null,null,null,"*='Specifieke informatie A'!$K$75"]
[70119867,{"$f":"'Specifieke informatie A'!$J$76","v":0},null,null,null,"*='Specifieke informatie A'!$J$76"]
[70119868,{"$f":"'Specifieke informatie A'!$K$76","v":0},null,null,null,"*='Specifieke informatie A'!$K$76"]
[70119869,{"$f":"'Specifieke informatie A'!$J$77","v":0},null,null,null,"*='Specifieke informatie A'!$J$77"]
[70119870,{"$f":"'Specifieke informatie A'!$K$77","v":0},null,null,null,"*='Specifieke informatie A'!$K$77"]
[70119871,{"$f":"'Specifieke informatie A'!$J$78","v":0},null,null,null,"*='Specifieke informatie A'!$J$78"]
[70119872,{"$f":"'Specifieke informatie A'!$K$78","v":0},null,null,null,"*='Specifieke informatie A'!$K$78"]
[70119895,{"$f":"'Specifieke informatie A'!$L$84","v":0},null,null,null,"*='Specifieke informatie A'!$L$84"]
[70119896,{"$f":"'Specifieke informatie A'!$L$85","v":0},null,null,null,"*='Specifieke informatie A'!$L$85"]
[70120033,{"$f":"'Specifieke informatie A'!$J$104","v":0},null,null,null,"*='Specifieke informatie A'!$J$104"]
[70120034,{"$f":"'Specifieke informatie A'!$K$104","v":0},null,null,null,"*='Specifieke informatie A'!$K$104"]
[70120035,{"$f":"'Specifieke informatie A'!$J$105","v":0},null,null,null,"*='Specifieke informatie A'!$J$105"]
[70120036,{"$f":"'Specifieke informatie A'!$K$105","v":0},null,null,null,"*='Specifieke informatie A'!$K$105"]
[70120037,{"$f":"'Specifieke informatie A'!$J$106","v":0},null,null,null,"*='Specifieke informatie A'!$J$106"]
[70120038,{"$f":"'Specifieke informatie A'!$K$106","v":0},null,null,null,"*='Specifieke informatie A'!$K$106"]
[70120039,{"$f":"'Specifieke informatie A'!$J$107","v":0},null,null,null,"*='Specifieke informatie A'!$J$107"]
[70120040,{"$f":"'Specifieke informatie A'!$K$107","v":0},null,null,null,"*='Specifieke informatie A'!$K$107"]
[70120041,{"$f":"'Specifieke informatie A'!$J$108","v":0},null,null,null,"*='Specifieke informatie A'!$J$108"]
[70120042,{"$f":"'Specifieke informatie A'!$K$108","v":0},null,null,null,"*='Specifieke informatie A'!$K$108"]
[70120043,{"$f":"'Specifieke informatie A'!$J$109","v":0},null,null,null,"*='Specifieke informatie A'!$J$109"]
[70120044,{"$f":"'Specifieke informatie A'!$K$109","v":0},null,null,null,"*='Specifieke informatie A'!$K$109"]
[70120045,{"$f":"'Specifieke informatie A'!$J$110","v":0},null,null,null,"*='Specifieke informatie A'!$J$110"]
[70120046,{"$f":"'Specifieke informatie A'!$K$110","v":0},null,null,null,"*='Specifieke informatie A'!$K$110"]
[70120047,{"$f":"'Specifieke informatie A'!$J$111","v":0},null,null,null,"*='Specifieke informatie A'!$J$111"]
[70120048,{"$f":"'Specifieke informatie A'!$K$111","v":0},null,null,null,"*='Specifieke informatie A'!$K$111"]
[70120049,{"$f":"'Specifieke informatie A'!$J$112","v":0},null,null,null,"*='Specifieke informatie A'!$J$112"]
[70120050,{"$f":"'Specifieke informatie A'!$K$112","v":0},null,null,null,"*='Specifieke informatie A'!$K$112"]
[70120051,{"$f":"'Specifieke informatie A'!$J$113","v":0},null,null,null,"*='Specifieke informatie A'!$J$113"]
[70120052,{"$f":"'Specifieke informatie A'!$K$113","v":0},null,null,null,"*='Specifieke informatie A'!$K$113"]
[70120053,{"$f":"'Specifieke informatie A'!$J$114","v":0},null,null,null,"*='Specifieke informatie A'!$J$114"]
[70120054,{"$f":"'Specifieke informatie A'!$K$114","v":0},null,null,null,"*='Specifieke informatie A'!$K$114"]
[70120055,{"$f":"'Specifieke informatie A'!$J$115","v":0},null,null,null,"*='Specifieke informatie A'!$J$115"]
[70120056,{"$f":"'Specifieke informatie A'!$K$115","v":0},null,null,null,"*='Specifieke informatie A'!$K$115"]
[70120057,{"$f":"'Specifieke informatie A'!$J$116","v":0},null,null,null,"*='Specifieke informatie A'!$J$116"]
[70120058,{"$f":"'Specifieke informatie A'!$K$116","v":0},null,null,null,"*='Specifieke informatie A'!$K$116"]
[70120059,{"$f":"'Specifieke informatie A'!$J$117","v":0},null,null,null,"*='Specifieke informatie A'!$J$117"]
[70120060,{"$f":"'Specifieke informatie A'!$K$117","v":0},null,null,null,"*='Specifieke informatie A'!$K$117"]
[70120061,{"$f":"'Specifieke informatie A'!$J$118","v":0},null,null,null,"*='Specifieke informatie A'!$J$118"]
[70120062,{"$f":"'Specifieke informatie A'!$K$118","v":0},null,null,null,"*='Specifieke informatie A'!$K$118"]
[70120031,{"$f":"'Specifieke informatie A'!$J$119","v":0},null,null,null,"*='Specifieke informatie A'!$J$119"]
[70120032,{"$f":"'Specifieke informatie A'!$K$119","v":0},null,null,null,"*='Specifieke informatie A'!$K$119"]
[70120023,{"$f":"'Specifieke informatie A'!$J$120","v":0},null,null,null,"*='Specifieke informatie A'!$J$120"]
[70120024,{"$f":"'Specifieke informatie A'!$K$120","v":0},null,null,null,"*='Specifieke informatie A'!$K$120"]
[70120025,{"$f":"'Specifieke informatie A'!$J$121","v":0},null,null,null,"*='Specifieke informatie A'!$J$121"]
[70120026,{"$f":"'Specifieke informatie A'!$K$121","v":0},null,null,null,"*='Specifieke informatie A'!$K$121"]
[70120027,{"$f":"'Specifieke informatie A'!$J$122","v":0},null,null,null,"*='Specifieke informatie A'!$J$122"]
[70120028,{"$f":"'Specifieke informatie A'!$K$122","v":0},null,null,null,"*='Specifieke informatie A'!$K$122"]
[70120029,{"$f":"'Specifieke informatie A'!$J$123","v":0},null,null,null,"*='Specifieke informatie A'!$J$123"]
[70120030,{"$f":"'Specifieke informatie A'!$K$123","v":0},null,null,null,"*='Specifieke informatie A'!$K$123"]
[70120105,{"$f":"'Specifieke informatie A'!$L$129","v":0},null,null,null,"*='Specifieke informatie A'!$L$129"]
[70120104,{"$f":"'Specifieke informatie A'!$L$130","v":0},null,null,null,"*='Specifieke informatie A'!$L$130"]
[70120175,{"$f":"'Specifieke informatie C'!$G$156","v":0},null,null,null,"*='Specifieke informatie C'!$G$156"]
[70120176,{"$f":"'Specifieke informatie C'!$H$156","v":0},null,null,null,"*='Specifieke informatie C'!$H$156"]
[70120177,{"$f":"'Specifieke informatie C'!$I$156","v":0},null,null,null,"*='Specifieke informatie C'!$I$156"]
[70120178,{"$f":"'Specifieke informatie C'!$J$156","v":0},null,null,null,"*='Specifieke informatie C'!$J$156"]
[70120179,{"$f":"'Specifieke informatie C'!$K$156","v":0},null,null,null,"*='Specifieke informatie C'!$K$156"]
[70120180,{"$f":"'Specifieke informatie C'!$L$156","v":0},null,null,null,"*='Specifieke informatie C'!$L$156"]
[70120181,{"$f":"'Specifieke informatie C'!$G$157","v":0},null,null,null,"*='Specifieke informatie C'!$G$157"]
[70120182,{"$f":"'Specifieke informatie C'!$H$157","v":0},null,null,null,"*='Specifieke informatie C'!$H$157"]
[70120183,{"$f":"'Specifieke informatie C'!$I$157","v":0},null,null,null,"*='Specifieke informatie C'!$I$157"]
[70120184,{"$f":"'Specifieke informatie C'!$J$157","v":0},null,null,null,"*='Specifieke informatie C'!$J$157"]
[70120185,{"$f":"'Specifieke informatie C'!$K$157","v":0},null,null,null,"*='Specifieke informatie C'!$K$157"]
[70120186,{"$f":"'Specifieke informatie C'!$L$157","v":0},null,null,null,"*='Specifieke informatie C'!$L$157"]
[70120187,{"$f":"'Specifieke informatie C'!$G$158","v":0},null,null,null,"*='Specifieke informatie C'!$G$158"]
[70120188,{"$f":"'Specifieke informatie C'!$H$158","v":0},null,null,null,"*='Specifieke informatie C'!$H$158"]
[70120189,{"$f":"'Specifieke informatie C'!$I$158","v":0},null,null,null,"*='Specifieke informatie C'!$I$158"]
[70120190,{"$f":"'Specifieke informatie C'!$J$158","v":0},null,null,null,"*='Specifieke informatie C'!$J$158"]
[70120191,{"$f":"'Specifieke informatie C'!$K$158","v":0},null,null,null,"*='Specifieke informatie C'!$K$158"]
[70120192,{"$f":"'Specifieke informatie C'!$L$158","v":0},null,null,null,"*='Specifieke informatie C'!$L$158"]
[70119847,{"$f":"'Specifieke informatie C'!$L$211","v":0},null,null,null,"*='Specifieke informatie C'!$L$211"]
[70119848,{"$f":"'Specifieke informatie C'!$L$212","v":0},null,null,null,"*='Specifieke informatie C'!$L$212"]
[70119901,{"$f":"Kostenverzamelstaat!$I$28","v":0},null,null,null,"*=Kostenverzamelstaat!$I$28"]
[70119902,{"$f":"Kostenverzamelstaat!$J$28","v":0},null,null,null,"*=Kostenverzamelstaat!$J$28"]
[70119903,{"$f":"Kostenverzamelstaat!$K$28","v":0},null,null,null,"*=Kostenverzamelstaat!$K$28"]
[70119904,{"$f":"Kostenverzamelstaat!$L$28","v":0},null,null,null,"*=Kostenverzamelstaat!$L$28"]
[70119905,{"$f":"Kostenverzamelstaat!$M$28","v":0},null,null,null,"*=Kostenverzamelstaat!$M$28"]
[70119906,{"$f":"Kostenverzamelstaat!$N$28","v":0},null,null,null,"*=Kostenverzamelstaat!$N$28"]
[70120124,{"$f":"'Specifieke informatie C'!$G$165","v":0},null,null,null,"*='Specifieke informatie C'!$G$165"]
[70120125,{"$f":"'Specifieke informatie C'!$H$165","v":0},null,null,null,"*='Specifieke informatie C'!$H$165"]
[70120126,{"$f":"'Specifieke informatie C'!$I$165","v":0},null,null,null,"*='Specifieke informatie C'!$I$165"]
[70120127,{"$f":"'Specifieke informatie C'!$J$165","v":0},null,null,null,"*='Specifieke informatie C'!$J$165"]
[70120128,{"$f":"'Specifieke informatie C'!$K$165","v":0},null,null,null,"*='Specifieke informatie C'!$K$165"]
[70120129,{"$f":"'Specifieke informatie C'!$L$165","v":0},null,null,null,"*='Specifieke informatie C'!$L$165"]
[70120106,{"$f":"'Specifieke informatie C'!$G$166","v":0},null,null,null,"*='Specifieke informatie C'!$G$166"]
[70120107,{"$f":"'Specifieke informatie C'!$H$166","v":0},null,null,null,"*='Specifieke informatie C'!$H$166"]
[70120108,{"$f":"'Specifieke informatie C'!$I$166","v":0},null,null,null,"*='Specifieke informatie C'!$I$166"]
[70120109,{"$f":"'Specifieke informatie C'!$J$166","v":0},null,null,null,"*='Specifieke informatie C'!$J$166"]
[70120110,{"$f":"'Specifieke informatie C'!$K$166","v":0},null,null,null,"*='Specifieke informatie C'!$K$166"]
[70120111,{"$f":"'Specifieke informatie C'!$L$166","v":0},null,null,null,"*='Specifieke informatie C'!$L$166"]
[70120112,{"$f":"'Specifieke informatie C'!$G$167","v":0},null,null,null,"*='Specifieke informatie C'!$G$167"]
[70120113,{"$f":"'Specifieke informatie C'!$H$167","v":0},null,null,null,"*='Specifieke informatie C'!$H$167"]
[70120114,{"$f":"'Specifieke informatie C'!$I$167","v":0},null,null,null,"*='Specifieke informatie C'!$I$167"]
[70120115,{"$f":"'Specifieke informatie C'!$J$167","v":0},null,null,null,"*='Specifieke informatie C'!$J$167"]
[70120116,{"$f":"'Specifieke informatie C'!$K$167","v":0},null,null,null,"*='Specifieke informatie C'!$K$167"]
[70120117,{"$f":"'Specifieke informatie C'!$L$167","v":0},null,null,null,"*='Specifieke informatie C'!$L$167"]
[70120118,{"$f":"'Specifieke informatie C'!$G$168","v":0},null,null,null,"*='Specifieke informatie C'!$G$168"]
[70120119,{"$f":"'Specifieke informatie C'!$H$168","v":0},null,null,null,"*='Specifieke informatie C'!$H$168"]
[70120120,{"$f":"'Specifieke informatie C'!$I$168","v":0},null,null,null,"*='Specifieke informatie C'!$I$168"]
[70120121,{"$f":"'Specifieke informatie C'!$J$168","v":0},null,null,null,"*='Specifieke informatie C'!$J$168"]
[70120122,{"$f":"'Specifieke informatie C'!$K$168","v":0},null,null,null,"*='Specifieke informatie C'!$K$168"]
[70120123,{"$f":"'Specifieke informatie C'!$L$168","v":0},null,null,null,"*='Specifieke informatie C'!$L$168"]
[70120578,{"$f":"'Specifieke informatie C'!$G$181","v":0},null,null,null,"*='Specifieke informatie C'!$G$181"]
[70120579,{"$f":"'Specifieke informatie C'!$H$181","v":0},null,null,null,"*='Specifieke informatie C'!$H$181"]
[70120580,{"$f":"'Specifieke informatie C'!$I$181","v":0},null,null,null,"*='Specifieke informatie C'!$I$181"]
[70120581,{"$f":"'Specifieke informatie C'!$J$181","v":0},null,null,null,"*='Specifieke informatie C'!$J$181"]
[70120582,{"$f":"'Specifieke informatie C'!$K$181","v":0},null,null,null,"*='Specifieke informatie C'!$K$181"]
[70120583,{"$f":"'Specifieke informatie C'!$L$181","v":0},null,null,null,"*='Specifieke informatie C'!$L$181"]
[70120584,{"$f":"'Specifieke informatie C'!$G$182","v":0},null,null,null,"*='Specifieke informatie C'!$G$182"]
[70120585,{"$f":"'Specifieke informatie C'!$H$182","v":0},null,null,null,"*='Specifieke informatie C'!$H$182"]
[70120586,{"$f":"'Specifieke informatie C'!$I$182","v":0},null,null,null,"*='Specifieke informatie C'!$I$182"]
[70120587,{"$f":"'Specifieke informatie C'!$J$182","v":0},null,null,null,"*='Specifieke informatie C'!$J$182"]
[70120588,{"$f":"'Specifieke informatie C'!$K$182","v":0},null,null,null,"*='Specifieke informatie C'!$K$182"]
[70120589,{"$f":"'Specifieke informatie C'!$L$182","v":0},null,null,null,"*='Specifieke informatie C'!$L$182"]
[70120590,{"$f":"'Specifieke informatie C'!$G$183","v":0},null,null,null,"*='Specifieke informatie C'!$G$183"]
[70120591,{"$f":"'Specifieke informatie C'!$H$183","v":0},null,null,null,"*='Specifieke informatie C'!$H$183"]
[70120592,{"$f":"'Specifieke informatie C'!$I$183","v":0},null,null,null,"*='Specifieke informatie C'!$I$183"]
[70120593,{"$f":"'Specifieke informatie C'!$J$183","v":0},null,null,null,"*='Specifieke informatie C'!$J$183"]
[70120594,{"$f":"'Specifieke informatie C'!$K$183","v":0},null,null,null,"*='Specifieke informatie C'!$K$183"]
[70120595,{"$f":"'Specifieke informatie C'!$L$183","v":0},null,null,null,"*='Specifieke informatie C'!$L$183"]
[70120596,{"$f":"'Specifieke informatie C'!$G$184","v":0},null,null,null,"*='Specifieke informatie C'!$G$184"]
[70120597,{"$f":"'Specifieke informatie C'!$H$184","v":0},null,null,null,"*='Specifieke informatie C'!$H$184"]
[70120598,{"$f":"'Specifieke informatie C'!$I$184","v":0},null,null,null,"*='Specifieke informatie C'!$I$184"]
[70120599,{"$f":"'Specifieke informatie C'!$J$184","v":0},null,null,null,"*='Specifieke informatie C'!$J$184"]
[70120600,{"$f":"'Specifieke informatie C'!$K$184","v":0},null,null,null,"*='Specifieke informatie C'!$K$184"]
[70120601,{"$f":"'Specifieke informatie C'!$L$184","v":0},null,null,null,"*='Specifieke informatie C'!$L$184"]
[70120554,{"$f":"'Specifieke informatie C'!$G$185","v":0},null,null,null,"*='Specifieke informatie C'!$G$185"]
[70120555,{"$f":"'Specifieke informatie C'!$H$185","v":0},null,null,null,"*='Specifieke informatie C'!$H$185"]
[70120556,{"$f":"'Specifieke informatie C'!$I$185","v":0},null,null,null,"*='Specifieke informatie C'!$I$185"]
[70120557,{"$f":"'Specifieke informatie C'!$J$185","v":0},null,null,null,"*='Specifieke informatie C'!$J$185"]
[70120558,{"$f":"'Specifieke informatie C'!$K$185","v":0},null,null,null,"*='Specifieke informatie C'!$K$185"]
[70120559,{"$f":"'Specifieke informatie C'!$L$185","v":0},null,null,null,"*='Specifieke informatie C'!$L$185"]
[70120560,{"$f":"'Specifieke informatie C'!$G$186","v":0},null,null,null,"*='Specifieke informatie C'!$G$186"]
[70120561,{"$f":"'Specifieke informatie C'!$H$186","v":0},null,null,null,"*='Specifieke informatie C'!$H$186"]
[70120562,{"$f":"'Specifieke informatie C'!$I$186","v":0},null,null,null,"*='Specifieke informatie C'!$I$186"]
[70120563,{"$f":"'Specifieke informatie C'!$J$186","v":0},null,null,null,"*='Specifieke informatie C'!$J$186"]
[70120564,{"$f":"'Specifieke informatie C'!$K$186","v":0},null,null,null,"*='Specifieke informatie C'!$K$186"]
[70120565,{"$f":"'Specifieke informatie C'!$L$186","v":0},null,null,null,"*='Specifieke informatie C'!$L$186"]
[70120566,{"$f":"'Specifieke informatie C'!$G$187","v":0},null,null,null,"*='Specifieke informatie C'!$G$187"]
[70120567,{"$f":"'Specifieke informatie C'!$H$187","v":0},null,null,null,"*='Specifieke informatie C'!$H$187"]
[70120568,{"$f":"'Specifieke informatie C'!$I$187","v":0},null,null,null,"*='Specifieke informatie C'!$I$187"]
[70120569,{"$f":"'Specifieke informatie C'!$J$187","v":0},null,null,null,"*='Specifieke informatie C'!$J$187"]
[70120570,{"$f":"'Specifieke informatie C'!$K$187","v":0},null,null,null,"*='Specifieke informatie C'!$K$187"]
[70120571,{"$f":"'Specifieke informatie C'!$L$187","v":0},null,null,null,"*='Specifieke informatie C'!$L$187"]
[70120572,{"$f":"'Specifieke informatie C'!$G$188","v":0},null,null,null,"*='Specifieke informatie C'!$G$188"]
[70120573,{"$f":"'Specifieke informatie C'!$H$188","v":0},null,null,null,"*='Specifieke informatie C'!$H$188"]
[70120574,{"$f":"'Specifieke informatie C'!$I$188","v":0},null,null,null,"*='Specifieke informatie C'!$I$188"]
[70120575,{"$f":"'Specifieke informatie C'!$J$188","v":0},null,null,null,"*='Specifieke informatie C'!$J$188"]
[70120576,{"$f":"'Specifieke informatie C'!$K$188","v":0},null,null,null,"*='Specifieke informatie C'!$K$188"]
[70120577,{"$f":"'Specifieke informatie C'!$L$188","v":0},null,null,null,"*='Specifieke informatie C'!$L$188"]
[70120608,{"$f":"Wanbetalers!$I$12","v":0},null,null,null,"*=Wanbetalers!$I$12"]
[70120609,{"$f":"Wanbetalers!$J$12","v":0},null,null,null,"*=Wanbetalers!$J$12"]
[70120610,{"$f":"Wanbetalers!$K$12","v":0},null,null,null,"*=Wanbetalers!$K$12"]
[70120620,{"$f":"Wanbetalers!$I$13","v":0},null,null,null,"*=Wanbetalers!$I$13"]
[70120621,{"$f":"Wanbetalers!$J$13","v":0},null,null,null,"*=Wanbetalers!$J$13"]
[70120622,{"$f":"Wanbetalers!$K$13","v":0},null,null,null,"*=Wanbetalers!$K$13"]
[70120632,{"$f":"Wanbetalers!$I$14","v":0},null,null,null,"*=Wanbetalers!$I$14"]
[70120633,{"$f":"Wanbetalers!$J$14","v":0},null,null,null,"*=Wanbetalers!$J$14"]
[70120634,{"$f":"Wanbetalers!$K$14","v":0},null,null,null,"*=Wanbetalers!$K$14"]
[70120644,{"$f":"Wanbetalers!$I$17","v":0},null,null,null,"*=Wanbetalers!$I$17"]
[70120645,{"$f":"Wanbetalers!$J$17","v":0},null,null,null,"*=Wanbetalers!$J$17"]
[70120646,{"$f":"Wanbetalers!$K$17","v":0},null,null,null,"*=Wanbetalers!$K$17"]
[70120656,{"$f":"Wanbetalers!$I$18","v":0},null,null,null,"*=Wanbetalers!$I$18"]
[70120657,{"$f":"Wanbetalers!$J$18","v":0},null,null,null,"*=Wanbetalers!$J$18"]
[70120658,{"$f":"Wanbetalers!$K$18","v":0},null,null,null,"*=Wanbetalers!$K$18"]
[70120728,{"$f":"Wanbetalers!$I$21","v":0},null,null,null,"*=Wanbetalers!$I$21"]
[70120729,{"$f":"Wanbetalers!$J$21","v":0},null,null,null,"*=Wanbetalers!$J$21"]
[70120730,{"$f":"Wanbetalers!$K$21","v":0},null,null,null,"*=Wanbetalers!$K$21"]
[70120668,{"$f":"Wanbetalers!$I$22","v":0},null,null,null,"*=Wanbetalers!$I$22"]
[70120669,{"$f":"Wanbetalers!$J$22","v":0},null,null,null,"*=Wanbetalers!$J$22"]
[70120670,{"$f":"Wanbetalers!$K$22","v":0},null,null,null,"*=Wanbetalers!$K$22"]
[70120680,{"$f":"Wanbetalers!$I$23","v":0},null,null,null,"*=Wanbetalers!$I$23"]
[70120681,{"$f":"Wanbetalers!$J$23","v":0},null,null,null,"*=Wanbetalers!$J$23"]
[70120682,{"$f":"Wanbetalers!$K$23","v":0},null,null,null,"*=Wanbetalers!$K$23"]
[70120692,{"$f":"Wanbetalers!$I$26","v":0},null,null,null,"*=Wanbetalers!$I$26"]
[70120693,{"$f":"Wanbetalers!$J$26","v":0},null,null,null,"*=Wanbetalers!$J$26"]
[70120694,{"$f":"Wanbetalers!$K$26","v":0},null,null,null,"*=Wanbetalers!$K$26"]
[70120704,{"$f":"Wanbetalers!$I$27","v":0},null,null,null,"*=Wanbetalers!$I$27"]
[70120705,{"$f":"Wanbetalers!$J$27","v":0},null,null,null,"*=Wanbetalers!$J$27"]
[70120706,{"$f":"Wanbetalers!$K$27","v":0},null,null,null,"*=Wanbetalers!$K$27"]
[70120716,{"$f":"Wanbetalers!$I$28","v":0},null,null,null,"*=Wanbetalers!$I$28"]
[70120717,{"$f":"Wanbetalers!$J$28","v":0},null,null,null,"*=Wanbetalers!$J$28"]
[70120718,{"$f":"Wanbetalers!$K$28","v":0},null,null,null,"*=Wanbetalers!$K$28"]
[70119911,{"$f":"'Specifieke informatie C'!$G$195","v":0},null,null,null,"*='Specifieke informatie C'!$G$195"]
[70119912,{"$f":"'Specifieke informatie C'!$H$195","v":0},null,null,null,"*='Specifieke informatie C'!$H$195"]
[70119913,{"$f":"'Specifieke informatie C'!$I$195","v":0},null,null,null,"*='Specifieke informatie C'!$I$195"]
[70119914,{"$f":"'Specifieke informatie C'!$J$195","v":0},null,null,null,"*='Specifieke informatie C'!$J$195"]
[70119915,{"$f":"'Specifieke informatie C'!$K$195","v":0},null,null,null,"*='Specifieke informatie C'!$K$195"]
[70119916,{"$f":"'Specifieke informatie C'!$L$195","v":0},null,null,null,"*='Specifieke informatie C'!$L$195"]
[70119917,{"$f":"'Specifieke informatie C'!$G$196","v":0},null,null,null,"*='Specifieke informatie C'!$G$196"]
[70119918,{"$f":"'Specifieke informatie C'!$H$196","v":0},null,null,null,"*='Specifieke informatie C'!$H$196"]
[70119919,{"$f":"'Specifieke informatie C'!$I$196","v":0},null,null,null,"*='Specifieke informatie C'!$I$196"]
[70119920,{"$f":"'Specifieke informatie C'!$J$196","v":0},null,null,null,"*='Specifieke informatie C'!$J$196"]
[70119921,{"$f":"'Specifieke informatie C'!$K$196","v":0},null,null,null,"*='Specifieke informatie C'!$K$196"]
[70119922,{"$f":"'Specifieke informatie C'!$L$196","v":0},null,null,null,"*='Specifieke informatie C'!$L$196"]
[70119923,{"$f":"'Specifieke informatie C'!$G$197","v":0},null,null,null,"*='Specifieke informatie C'!$G$197"]
[70119924,{"$f":"'Specifieke informatie C'!$H$197","v":0},null,null,null,"*='Specifieke informatie C'!$H$197"]
[70119925,{"$f":"'Specifieke informatie C'!$I$197","v":0},null,null,null,"*='Specifieke informatie C'!$I$197"]
[70119926,{"$f":"'Specifieke informatie C'!$J$197","v":0},null,null,null,"*='Specifieke informatie C'!$J$197"]
[70119927,{"$f":"'Specifieke informatie C'!$K$197","v":0},null,null,null,"*='Specifieke informatie C'!$K$197"]
[70119928,{"$f":"'Specifieke informatie C'!$L$197","v":0},null,null,null,"*='Specifieke informatie C'!$L$197"]
[70119929,{"$f":"'Specifieke informatie C'!$G$198","v":0},null,null,null,"*='Specifieke informatie C'!$G$198"]
[70119930,{"$f":"'Specifieke informatie C'!$H$198","v":0},null,null,null,"*='Specifieke informatie C'!$H$198"]
[70119931,{"$f":"'Specifieke informatie C'!$I$198","v":0},null,null,null,"*='Specifieke informatie C'!$I$198"]
[70119932,{"$f":"'Specifieke informatie C'!$J$198","v":0},null,null,null,"*='Specifieke informatie C'!$J$198"]
[70119933,{"$f":"'Specifieke informatie C'!$K$198","v":0},null,null,null,"*='Specifieke informatie C'!$K$198"]
[70119934,{"$f":"'Specifieke informatie C'!$L$198","v":0},null,null,null,"*='Specifieke informatie C'!$L$198"]
[70119935,{"$f":"'Specifieke informatie C'!$G$201","v":0},null,null,null,"*='Specifieke informatie C'!$G$201"]
[70119936,{"$f":"'Specifieke informatie C'!$H$201","v":0},null,null,null,"*='Specifieke informatie C'!$H$201"]
[70119937,{"$f":"'Specifieke informatie C'!$I$201","v":0},null,null,null,"*='Specifieke informatie C'!$I$201"]
[70119938,{"$f":"'Specifieke informatie C'!$J$201","v":0},null,null,null,"*='Specifieke informatie C'!$J$201"]
[70119939,{"$f":"'Specifieke informatie C'!$K$201","v":0},null,null,null,"*='Specifieke informatie C'!$K$201"]
[70119940,{"$f":"'Specifieke informatie C'!$L$201","v":0},null,null,null,"*='Specifieke informatie C'!$L$201"]
[70119941,{"$f":"'Specifieke informatie C'!$G$202","v":0},null,null,null,"*='Specifieke informatie C'!$G$202"]
[70119942,{"$f":"'Specifieke informatie C'!$H$202","v":0},null,null,null,"*='Specifieke informatie C'!$H$202"]
[70119943,{"$f":"'Specifieke informatie C'!$I$202","v":0},null,null,null,"*='Specifieke informatie C'!$I$202"]
[70119944,{"$f":"'Specifieke informatie C'!$J$202","v":0},null,null,null,"*='Specifieke informatie C'!$J$202"]
[70119945,{"$f":"'Specifieke informatie C'!$K$202","v":0},null,null,null,"*='Specifieke informatie C'!$K$202"]
[70119946,{"$f":"'Specifieke informatie C'!$L$202","v":0},null,null,null,"*='Specifieke informatie C'!$L$202"]
[70119947,{"$f":"'Specifieke informatie C'!$G$203","v":0},null,null,null,"*='Specifieke informatie C'!$G$203"]
[70119948,{"$f":"'Specifieke informatie C'!$H$203","v":0},null,null,null,"*='Specifieke informatie C'!$H$203"]
[70119949,{"$f":"'Specifieke informatie C'!$I$203","v":0},null,null,null,"*='Specifieke informatie C'!$I$203"]
[70119950,{"$f":"'Specifieke informatie C'!$J$203","v":0},null,null,null,"*='Specifieke informatie C'!$J$203"]
[70119951,{"$f":"'Specifieke informatie C'!$K$203","v":0},null,null,null,"*='Specifieke informatie C'!$K$203"]
[70119952,{"$f":"'Specifieke informatie C'!$L$203","v":0},null,null,null,"*='Specifieke informatie C'!$L$203"]
[70119953,{"$f":"'Specifieke informatie C'!$G$204","v":0},null,null,null,"*='Specifieke informatie C'!$G$204"]
[70119954,{"$f":"'Specifieke informatie C'!$H$204","v":0},null,null,null,"*='Specifieke informatie C'!$H$204"]
[70119955,{"$f":"'Specifieke informatie C'!$I$204","v":0},null,null,null,"*='Specifieke informatie C'!$I$204"]
[70119956,{"$f":"'Specifieke informatie C'!$J$204","v":0},null,null,null,"*='Specifieke informatie C'!$J$204"]
[70119957,{"$f":"'Specifieke informatie C'!$K$204","v":0},null,null,null,"*='Specifieke informatie C'!$K$204"]
[70119958,{"$f":"'Specifieke informatie C'!$L$204","v":0},null,null,null,"*='Specifieke informatie C'!$L$204"]
[70120763,{"$f":"'Specifieke informatie C'!$L$225","v":0},null,null,null,"*='Specifieke informatie C'!$L$225"]
[70120764,{"$f":"'Specifieke informatie C'!$L$226","v":0},null,null,null,"*='Specifieke informatie C'!$L$226"]
[70119960,{"$f":"'Specifieke informatie C'!$L$231","v":0},null,null,null,"*='Specifieke informatie C'!$L$231"]
[70119961,{"$f":"'Specifieke informatie C'!$L$232","v":0},null,null,null,"*='Specifieke informatie C'!$L$232"]
[70119962,{"$f":"'Specifieke informatie C'!$L$233","v":0},null,null,null,"*='Specifieke informatie C'!$L$233"]
[70119963,{"$f":"'Specifieke informatie C'!$L$234","v":0},null,null,null,"*='Specifieke informatie C'!$L$234"]
[70119959,{"$f":"'Specifieke informatie C'!$L$235","v":0},null,null,null,"*='Specifieke informatie C'!$L$235"]
[70119965,{"$f":"'Specifieke informatie C'!$L$240","v":0},null,null,null,"*='Specifieke informatie C'!$L$240"]
[70119966,{"$f":"'Specifieke informatie C'!$L$241","v":0},null,null,null,"*='Specifieke informatie C'!$L$241"]
[70119967,{"$f":"'Specifieke informatie C'!$L$242","v":0},null,null,null,"*='Specifieke informatie C'!$L$242"]
[70119968,{"$f":"'Specifieke informatie C'!$L$243","v":0},null,null,null,"*='Specifieke informatie C'!$L$243"]
[70119964,{"$f":"'Specifieke informatie C'!$L$244","v":0},null,null,null,"*='Specifieke informatie C'!$L$244"]
[70120342,{"$f":"'Specifieke informatie A'!$J$149","v":0},null,null,null,"*='Specifieke informatie A'!$J$149"]
[70120343,{"$f":"'Specifieke informatie A'!$K$149","v":0},null,null,null,"*='Specifieke informatie A'!$K$149"]
[70120344,{"$f":"'Specifieke informatie A'!$J$150","v":0},null,null,null,"*='Specifieke informatie A'!$J$150"]
[70120345,{"$f":"'Specifieke informatie A'!$K$150","v":0},null,null,null,"*='Specifieke informatie A'!$K$150"]
[70120346,{"$f":"'Specifieke informatie A'!$J$151","v":0},null,null,null,"*='Specifieke informatie A'!$J$151"]
[70120347,{"$f":"'Specifieke informatie A'!$K$151","v":0},null,null,null,"*='Specifieke informatie A'!$K$151"]
[70120348,{"$f":"'Specifieke informatie A'!$J$152","v":0},null,null,null,"*='Specifieke informatie A'!$J$152"]
[70120349,{"$f":"'Specifieke informatie A'!$K$152","v":0},null,null,null,"*='Specifieke informatie A'!$K$152"]
[70120350,{"$f":"'Specifieke informatie A'!$J$153","v":0},null,null,null,"*='Specifieke informatie A'!$J$153"]
[70120351,{"$f":"'Specifieke informatie A'!$K$153","v":0},null,null,null,"*='Specifieke informatie A'!$K$153"]
[70120352,{"$f":"'Specifieke informatie A'!$J$154","v":0},null,null,null,"*='Specifieke informatie A'!$J$154"]
[70120353,{"$f":"'Specifieke informatie A'!$K$154","v":0},null,null,null,"*='Specifieke informatie A'!$K$154"]
[70120354,{"$f":"'Specifieke informatie A'!$J$155","v":0},null,null,null,"*='Specifieke informatie A'!$J$155"]
[70120355,{"$f":"'Specifieke informatie A'!$K$155","v":0},null,null,null,"*='Specifieke informatie A'!$K$155"]
[70120356,{"$f":"'Specifieke informatie A'!$J$156","v":0},null,null,null,"*='Specifieke informatie A'!$J$156"]
[70120357,{"$f":"'Specifieke informatie A'!$K$156","v":0},null,null,null,"*='Specifieke informatie A'!$K$156"]
[70120358,{"$f":"'Specifieke informatie A'!$J$157","v":0},null,null,null,"*='Specifieke informatie A'!$J$157"]
[70120359,{"$f":"'Specifieke informatie A'!$K$157","v":0},null,null,null,"*='Specifieke informatie A'!$K$157"]
[70120360,{"$f":"'Specifieke informatie A'!$J$158","v":0},null,null,null,"*='Specifieke informatie A'!$J$158"]
[70120361,{"$f":"'Specifieke informatie A'!$K$158","v":0},null,null,null,"*='Specifieke informatie A'!$K$158"]
[70120362,{"$f":"'Specifieke informatie A'!$J$159","v":0},null,null,null,"*='Specifieke informatie A'!$J$159"]
[70120363,{"$f":"'Specifieke informatie A'!$K$159","v":0},null,null,null,"*='Specifieke informatie A'!$K$159"]
[70120364,{"$f":"'Specifieke informatie A'!$J$160","v":0},null,null,null,"*='Specifieke informatie A'!$J$160"]
[70120365,{"$f":"'Specifieke informatie A'!$K$160","v":0},null,null,null,"*='Specifieke informatie A'!$K$160"]
[70120366,{"$f":"'Specifieke informatie A'!$J$161","v":0},null,null,null,"*='Specifieke informatie A'!$J$161"]
[70120367,{"$f":"'Specifieke informatie A'!$K$161","v":0},null,null,null,"*='Specifieke informatie A'!$K$161"]
[70120368,{"$f":"'Specifieke informatie A'!$J$162","v":0},null,null,null,"*='Specifieke informatie A'!$J$162"]
[70120369,{"$f":"'Specifieke informatie A'!$K$162","v":0},null,null,null,"*='Specifieke informatie A'!$K$162"]
[70120370,{"$f":"'Specifieke informatie A'!$J$163","v":0},null,null,null,"*='Specifieke informatie A'!$J$163"]
[70120371,{"$f":"'Specifieke informatie A'!$K$163","v":0},null,null,null,"*='Specifieke informatie A'!$K$163"]
[70120372,{"$f":"'Specifieke informatie A'!$J$164","v":0},null,null,null,"*='Specifieke informatie A'!$J$164"]
[70120373,{"$f":"'Specifieke informatie A'!$K$164","v":0},null,null,null,"*='Specifieke informatie A'!$K$164"]
[70120374,{"$f":"'Specifieke informatie A'!$J$165","v":0},null,null,null,"*='Specifieke informatie A'!$J$165"]
[70120375,{"$f":"'Specifieke informatie A'!$K$165","v":0},null,null,null,"*='Specifieke informatie A'!$K$165"]
[70120376,{"$f":"'Specifieke informatie A'!$J$166","v":0},null,null,null,"*='Specifieke informatie A'!$J$166"]
[70120377,{"$f":"'Specifieke informatie A'!$K$166","v":0},null,null,null,"*='Specifieke informatie A'!$K$166"]
[70120378,{"$f":"'Specifieke informatie A'!$J$167","v":0},null,null,null,"*='Specifieke informatie A'!$J$167"]
[70120379,{"$f":"'Specifieke informatie A'!$K$167","v":0},null,null,null,"*='Specifieke informatie A'!$K$167"]
[70120380,{"$f":"'Specifieke informatie A'!$J$168","v":0},null,null,null,"*='Specifieke informatie A'!$J$168"]
[70120381,{"$f":"'Specifieke informatie A'!$K$168","v":0},null,null,null,"*='Specifieke informatie A'!$K$168"]
[70120340,{"$f":"'Specifieke informatie A'!$L$174","v":0},null,null,null,"*='Specifieke informatie A'!$L$174"]
[70120341,{"$f":"'Specifieke informatie A'!$L$175","v":0},null,null,null,"*='Specifieke informatie A'!$L$175"]
[70119772,{"$f":"'Specifieke informatie C'!$I$283","v":0},null,null,null,"*='Specifieke informatie C'!$I$283"]
[70119773,{"$f":"'Specifieke informatie C'!$J$283","v":0},null,null,null,"*='Specifieke informatie C'!$J$283"]
[70119774,{"$f":"'Specifieke informatie C'!$K$283","v":0},null,null,null,"*='Specifieke informatie C'!$K$283"]
[70119775,{"$f":"'Specifieke informatie C'!$L$283","v":0},null,null,null,"*='Specifieke informatie C'!$L$283"]
[70119776,{"$f":"'Specifieke informatie C'!$G$284","v":0},null,null,null,"*='Specifieke informatie C'!$G$284"]
[70119777,{"$f":"'Specifieke informatie C'!$H$284","v":0},null,null,null,"*='Specifieke informatie C'!$H$284"]
[70119778,{"$f":"'Specifieke informatie C'!$I$284","v":0},null,null,null,"*='Specifieke informatie C'!$I$284"]
[70119779,{"$f":"'Specifieke informatie C'!$J$284","v":0},null,null,null,"*='Specifieke informatie C'!$J$284"]
[70119780,{"$f":"'Specifieke informatie C'!$K$284","v":0},null,null,null,"*='Specifieke informatie C'!$K$284"]
[70119781,{"$f":"'Specifieke informatie C'!$L$284","v":0},null,null,null,"*='Specifieke informatie C'!$L$284"]

{"sheet":"Parameters","index":12,"n_rows":39,"n_cols":7,"rows_kept":39,"cut":false,"hidden":true,"merged":[[1,4,1,5]]}
[]
[null,"Kwartaal:",3,null,"HASHTOTALEN"]
[null,"Jaar:",2018,null,"Alle waarden tabblad specifieke informatie A",{"$f":"ROUND(SUM(alle_cellen_info_a),0)","v":{"$error":"#REF!"}},"Opm: kolom I..L"]
[null,"Wet:","ZVW",null,"Alle waarden tabblad specifieke informatie B",{"$f":"ROUND(SUM(alle_cellen_info_c),0)","v":173359},"Opm: kolom I..L"]
[null,"Document:",{"$f":"CONCATENATE(\"KS\",jaar_id,wet_id,\".\",kwartaal_id)","v":"KS2018ZVW.3"},null,"Alle waarden tabbladen specifieke informatie A en C",{"$f":"SUM(F3:F4)","v":{"$error":"#REF!"}},"Opm: kolom I..L"]
[null,"Revisie:","A"]
[null,"Revisiedatum:","2018-08-28"]
[null,"Versie:",{"$f":"CONCATENATE(document_id,revisie_id)","v":"KS2018ZVW.3A"}]
[]
[]
[]
[null,"NUMMER_UO","NAAM_UO","FORMAT_UO1"]
[null,"0000","KIES UW UZOVI-NUMMER",{"$f":"CONCATENATE(B13,\" \",C13)","v":"0000 KIES UW UZOVI-NUMMER"}]
[null,"0101","UNIVÉ ZORG","0101 UNIVÉ ZORG"]
[null,"0104","DELTA LLOYD","0104 DELTA LLOYD"]
[null,"0201","OHRA ZIEKTEKOSTENVERZEKERINGEN","0201 OHRA ZIEKTEKOSTENVERZEKERINGEN"]
[null,"0403","ASR ","0403 ASR "]
[null,"0420","CARES ","0420 CARES "]
[null,"0699","IZA","0699 IZA"]
[null,"0736","UMC","0736 UMC"]
[null,"3311","ZILVEREN KRUIS","3311 ZILVEREN KRUIS"]
[null,"3313","INTERPOLIS","3313 INTERPOLIS"]
[null,"3314","OZF","3314 OZF"]
[null,"3329","AVERO",{"$f":"CONCATENATE(B24,\" \",C24)","v":"3329 AVERO"}]
[null,"3332","MENZIS","3332 MENZIS"]
[null,"3333","ANDERZORG","3333 ANDERZORG"]
[null,"3343","ONVZ",{"$f":"CONCATENATE(B27,\" \",C27)","v":"3343 ONVZ"}]
[null,"3351","FBTO",{"$f":"CONCATENATE(B28,\" \",C28)","v":"3351 FBTO"}]
[null,"3352","IPTIQ",{"$f":"CONCATENATE(B29,\" \",C29)","v":"3352 IPTIQ"}]
[null,"7029","DSW","7029 DSW"]
[null,"7032","ENO","7032 ENO"]
[null,"7037","STAD HOLLAND","7037 STAD HOLLAND"]
[null,"7053","OHRA ZORGVERZEKERINGEN","7053 OHRA ZORGVERZEKERINGEN"]
[null,"7054","AZIVO","7054 AZIVO"]
[null,"7084","DE FRIESLAND","7084 DE FRIESLAND"]
[null,"7085","ZORG EN ZEKERHEID","7085 ZORG EN ZEKERHEID"]
[null,"7095","VGZ ZORGVERZEKERAAR","7095 VGZ ZORGVERZEKERAAR"]
[null,"7119","CZ","7119 CZ"]
[null,"9015","VGZ VOOR DE ZORG","9015 VGZ VOOR DE ZORG"]